Workbook

Sheet Cover
A1: =RIGHT(CELL("filename", $A$1), LEN(CELL("filename", $A$1)) - SEARCH("]", CELL("filename", $A$1))) -> Cover
C3: Model name: | D3: PR19 Revenue adjustments feeder model
C4: Version number: | D4: 01k - June 2018 update
C5: Filename: | D5: ="PR19 Revenue adjustments feeder model " & D4 & ".xlsm" -> PR19 Revenue adjustments feeder model 01k - June 2018 update.xlsm
C6: Date: | D6: 2018-07-04
C7: Author: | D7: Ofwat and F1F9 UK Ltd
C8: Author contact information: | D8: PR19@ofwat.gsi.gov.uk
C11: Summary of model: | D11: The model is designed to take the revenue adjustment outputs from the PR09 and PR14 reconciliations and convert them for use in the PR19 financial model in line
D12: with Delivering Water 2020: PR19 methodology, chapter 12 (accounting for past delivery).
C14: Known limitations: | D14: The model has been subject to internal Ofwat quality assurance.
C16: Feedback: | D16: We would welcome feedback on the PR19 revenue adjustments feeder model. Please send any feedback to the following email address
D17: PR19@ofwat.gsi.gov.uk
A20: End of sheet

Sheet Change Log
A1: Change log
B3: # | C3: Issue | D3: Change | E3: Sheet | F3: Row
A5: 2017-12-01 | B5: 1 | C5: Company noted that the Ofwat feeder model incorrectly deflates prices from 2020 year end prices to 2017-18 financial year average prices by referencing the RPI March index value in the numerator. | D5: Corrected calculation of the deflation factor to reference CPIH March 2020 index value. | E5: Indexation | F5: 109
A6: 2017-12-01 | B6: 2 | C6: Companies noted differences in item labels between the Ofwat feeder model and the business plan tables | D6: Item labels have been aligned with the business plan tables | E6: Calc Profiling Summary_Output
A7: 2018-06-01 | B7: 3 | C7: In response to a query a new business plan table has been created. The Ofwat feeder model has been updated to reflect the additional table Dmmy10. | D7: Include the Dummy10 revenue adjustment. | E7: Inputs Calc Summary_Output
A8: 2018-06-01 | B8: 4 | C8: Change email address | D8: Changed from water2020 mailbox to PR19 mailbox | E8: Cover
A9: 2018-07-01 | B9: 5 | C9: In response to a query a new business plan table has been created. The Ofwat feeder model has been updated to reflect the additional table Dmmy11. | D9: Include the Dmmy11 revenue adjustment. | E9: Inputs Calc Summary_Output

Sheet Map & Key
A1: =RIGHT(CELL("filename", $A$1), LEN(CELL("filename", $A$1)) - SEARCH("]", CELL("filename", $A$1))) -> Map & Key
A3: GENERIC MODEL DESIGN
F5: ABOVE BONNET - USER INTERFACE
H8: Inputs | P8: Output Summary
F13: BELOW BONNET - CALCULATION ENGINE
H19: Input Transition | L19: Calculations | P19: Detailed Outputs
F25: Note: FAST strictly applicable below the bonnet
A28: MODEL MAP
F30: MODEL MAP
H32: INPUTS | L32: CALCULATIONS | V32: DOCUMENTATION
H36: =Inputs!$A$1 -> Inputs | L36: =Time!$A$1 -> Time | P36: =Summary_Output!$A$1 -> Summary_Output | V36: =$A$1 -> Map & Key
H37: All the hardcoded inputs used in the model for calculation. | L37: The model timeline and flag calculations are done in this sheet. | P37: A summary of links of major output of this model. | V37: Sheet references and model flow; Sheet tabs colours, colour coding, abbreviations, range names are mentioned in this sheet.
L39: =Indexation!$A$1 -> Indexation
L40: All the indexation related calculations are done in this sheet.
L42: =Calc!$A$1 -> Calc
L43: All the price regulations related calculations are done in this sheet.
L45: =Profiling!$A$1 -> Profiling
L46: All the profiling of revenue inputs related calculations are done in this sheet.
A51: SHEET TABS
H53: Light Yellow | J53: Input sheets
H55: No colour (default Excel tab colour) | J55: Calculation and documentation sheets
H57: Pale Blue | J57: Key output sheets
H59: Turquoise | J59: Quality control sheets
H61: Yellow | J61: To be completed, temporary, restructured, or deleted
A64: COLOUR
B66: Font colour only
H67: Blue font | J67: Imported from another sheet
H69: Red font | J69: Exported to another sheet (except from Input sheets)
H71: Black font | J71: Within sheet link or calculation
B73: Font + shade combinations
H74: Black font + Light Yellow shade | J74: Inputs
H76: Black font + Light Grey shade on entire row | J76: Within-worksheet counter-flow
H78: Blue font + Light Grey shade on entire row | J78: Between-worksheet counter-flow
H80: Empty Cell with Light Grey shade | J80: Empty cells being deliberately referenced
B82: Other
H83: Black font + Pale Blue shade on entire row | J83: Section separator
H85: Light Turquoise shade | J85: Stored/dead/hard coded outputs
H87: Tan shade | J87: Pre-model time line actuals
H89: Yellow shade | J89: Work in progress / temporary
H91: Lime shade | J91: Values or logic to be reviewed
B93: Error checks & alerts
H94: Green shade | J94: OK
H96: Red shade | J96: Error
H98: Gold shade | J98: Alert
A101: ABBREVIATIONS
H103: BR | I103: Bio resources
H104: CPIH | I104: Consumer price index housing
H105: RCV | I105: Regulatory capital value
H106: RPI | I106: Retail price index
H107: WR | I107: Water resources
H108: WN | I108: Water network
H109: WWN | I109: Wastewater network
A112: NAMES
H114: NO NAME RANGES PRESENT IN THE MODEL
A117: LIST OF FUNCTIONS USED
H119: SUMPRODUCT | J119: Multiplies corresponding components in the given arrays, and returns the sum of those products.
H120: MATCH | J120: The MATCH function searches for a specified item in a range of cells, and then returns the relative position of that item in the range.
H121: INDEX | J121: Returns a value or the reference to a value from within a table or range, selected by the row and column number indexes
A124: End of sheet

Sheet F_Inputs
C1: PR19PD011_IN
A2: Acronym | B2: Reference | C2: Item description | D2: Unit | E2: Model | F2: Price Review 2019
F4: PR19 RUN 1: early view of past delivery
F5: Latest
F6: 2011-12 | G6: 2012-13 | H6: 2013-14 | I6: 2014-15 | J6: 2015-16 | K6: 2016-17 | L6: 2017-18 | M6: 2018-19 | N6: 2019-20 | O6: 2020-21 | P6: 2015-20 | Q6: 2014-20 | R6: PR19 application
A7: SRN | B7: BB3905AL | C7: Consumer Price Index (with housing) for April | D7: nr | E7: Price Review 2019 | F7: 93.3 | G7: 95.9 | H7: 98 | I7: 99.6 | J7: 99.9 | K7: 100.6 | L7: 103.2 | M7: 105.5 | N7: 108 | O7: 110.1
A8: SRN | B8: BB3905MY | C8: Consumer Price Index (with housing) for May | D8: nr | E8: Price Review 2019 | F8: 93.5 | G8: 95.9 | H8: 98.2 | I8: 99.6 | J8: 100.1 | K8: 100.8 | L8: 103.5 | M8: 105.9 | N8: 108.2 | O8: 110.4
A9: SRN | B9: BB3905JN | C9: Consumer Price Index (with housing) for June | D9: nr | E9: Price Review 2019 | F9: 93.5 | G9: 95.6 | H9: 98 | I9: 99.8 | J9: 100.1 | K9: 101 | L9: 103.5 | M9: 106.1 | N9: 108.4 | O9: 110.6
A10: SRN | B10: BB3905JL | C10: Consumer Price Index (with housing) for July | D10: nr | E10: Price Review 2019 | F10: 93.5 | G10: 95.7 | H10: 98 | I10: 99.6 | J10: 100 | K10: 100.9 | L10: 103.5 | M10: 106.1 | N10: 108.4 | O10: 110.5
A11: SRN | B11: BB3905AT | C11: Consumer Price Index (with housing) for August | D11: nr | E11: Price Review 2019 | F11: 93.9 | G11: 96.1 | H11: 98.4 | I11: 99.9 | J11: 100.3 | K11: 101.2 | L11: 104 | M11: 106.4 | N11: 108.8 | O11: 110.9
A12: SRN | B12: BB3905SR | C12: Consumer Price Index (with housing) for September | D12: nr | E12: Price Review 2019 | F12: 94.5 | G12: 96.4 | H12: 98.7 | I12: 100 | J12: 100.2 | K12: 101.5 | L12: 104.3 | M12: 106.7 | N12: 109 | O12: 111.2
A13: SRN | B13: BB3905OR | C13: Consumer Price Index (with housing) for October | D13: nr | E13: Price Review 2019 | F13: 94.5 | G13: 96.8 | H13: 98.8 | I13: 100.1 | J13: 100.3 | K13: 101.6 | L13: 104.4 | M13: 106.8 | N13: 109.1 | O13: 111.3
A14: SRN | B14: BB3905NR | C14: Consumer Price Index (with housing) for November | D14: nr | E14: Price Review 2019 | F14: 94.7 | G14: 97 | H14: 98.8 | I14: 99.9 | J14: 100.3 | K14: 101.8 | L14: 104.7 | M14: 106.9 | N14: 109 | O14: 111.2
A15: SRN | B15: BB3905DR | C15: Consumer Price Index (with housing) for December | D15: nr | E15: Price Review 2019 | F15: 95 | G15: 97.3 | H15: 99.2 | I15: 99.9 | J15: 100.4 | K15: 102.2 | L15: 105 | M15: 107.3 | N15: 109.4 | O15: 111.6
A16: SRN | B16: BB3905JY | C16: Consumer Price Index (with housing) for January | D16: nr | E16: Price Review 2019 | F16: 94.7 | G16: 97 | H16: 98.7 | I16: 99.2 | J16: 99.9 | K16: 101.8 | L16: 104.5 | M16: 106.9 | N16: 109 | O16: 111.2
A17: SRN | B17: BB3905FY | C17: Consumer Price Index (with housing) for February | D17: nr | E17: Price Review 2019 | F17: 95.2 | G17: 97.5 | H17: 99.1 | I17: 99.5 | J17: 100.1 | K17: 102.4 | L17: 104.9 | M17: 107.3 | N17: 109.4 | O17: 111.6
A18: SRN | B18: BB3905MH | C18: Consumer Price Index (with housing) for March | D18: nr | E18: Price Review 2019 | F18: 95.4 | G18: 97.8 | H18: 99.3 | I18: 99.6 | J18: 100.4 | K18: 102.7 | L18: 105.1 | M18: 107.5 | N18: 109.7 | O18: 111.8
A19: SRN | B19: BB3805AL | C19: Retail Price Index for April | D19: nr | E19: Price Review 2019 | F19: 234.4 | G19: 242.5 | H19: 249.5 | I19: 255.7 | J19: 258 | K19: 261.4 | L19: 270.6 | M19: 279.7 | N19: 288.3 | O19: 296.9
A20: SRN | B20: BB3805MY | C20: Retail Price Index for May | D20: nr | E20: Price Review 2019 | F20: 235.2 | G20: 242.4 | H20: 250 | I20: 255.9 | J20: 258.5 | K20: 262.1 | L20: 271.7 | M20: 280.7 | N20: 289.1 | O20: 297.8
A21: SRN | B21: BB3805JN | C21: Retail Price Index for June | D21: nr | E21: Price Review 2019 | F21: 235.2 | G21: 241.8 | H21: 249.7 | I21: 256.3 | J21: 258.9 | K21: 263.1 | L21: 272.3 | M21: 281.9 | N21: 290.1 | O21: 298.8
A22: SRN | B22: BB3805JL | C22: Retail Price Index for July | D22: nr | E22: Price Review 2019 | F22: 234.7 | G22: 242.1 | H22: 249.7 | I22: 256 | J22: 258.6 | K22: 263.4 | L22: 272.9 | M22: 282.1 | N22: 290.5 | O22: 299.2
A23: SRN | B23: BB3805AT | C23: Retail Price Index for August | D23: nr | E23: Price Review 2019 | F23: 236.1 | G23: 243 | H23: 251 | I23: 257 | J23: 259.8 | K23: 264.4 | L23: 274.7 | M23: 283.6 | N23: 292 | O23: 300.7
A24: SRN | B24: BB3805SR | C24: Retail Price Index for September | D24: nr | E24: Price Review 2019 | F24: 237.9 | G24: 244.2 | H24: 251.9 | I24: 257.6 | J24: 259.6 | K24: 264.9 | L24: 275.1 | M24: 283.9 | N24: 292.3 | O24: 301
A25: SRN | B25: BB3805OR | C25: Retail Price Index for October | D25: nr | E25: Price Review 2019 | F25: 238 | G25: 245.6 | H25: 251.9 | I25: 257.7 | J25: 259.5 | K25: 264.8 | L25: 275.3 | M25: 284.1 | N25: 292.5 | O25: 301.2
A26: SRN | B26: BB3805NR | C26: Retail Price Index for November | D26: nr | E26: Price Review 2019 | F26: 238.5 | G26: 245.6 | H26: 252.1 | I26: 257.1 | J26: 259.8 | K26: 265.5 | L26: 275.8 | M26: 284.3 | N26: 292.8 | O26: 301.6
A27: SRN | B27: BB3805DR | C27: Retail Price Index for December | D27: nr | E27: Price Review 2019 | F27: 239.4 | G27: 246.8 | H27: 253.4 | I27: 257.5 | J27: 260.6 | K27: 267.1 | L27: 278.1 | M27: 286.6 | N27: 295.2 | O27: 304.1
A28: SRN | B28: BB3805JY | C28: Retail Price Index for January | D28: nr | E28: Price Review 2019 | F28: 238 | G28: 245.8 | H28: 252.6 | I28: 255.4 | J28: 258.8 | K28: 265.5 | L28: 276 | M28: 284.4 | N28: 292.9 | O28: 301.7
A29: SRN | B29: BB3805FY | C29: Retail Price Index for February | D29: nr | E29: Price Review 2019 | F29: 239.9 | G29: 247.6 | H29: 254.2 | I29: 256.7 | J29: 260 | K29: 268.4 | L29: 278.1 | M29: 286.6 | N29: 295.2 | O29: 304.1
A30: SRN | B30: BB3805MH | C30: Retail Price Index for March | D30: nr | E30: Price Review 2019 | F30: 240.8 | G30: 248.7 | H30: 254.8 | I30: 257.1 | J30: 261.1 | K30: 269.3 | L30: 278.3 | M30: 287.1 | N30: 295.7 | O30: 304.5
A31: SRN | B31: C_APP27015_PD002 | C31: Net performance payment / (penalty) applied to revenue for in-period ODI adjustments ~ Water resources | D31: £m | E31: Price Review 2019 | J31: 0 | K31: 0 | L31: 0 | M31: 0 | N31: 0 | R31: 0
A32: SRN | B32: C_APP27022_PD002 | C32: Net performance payment / (penalty) applied to revenue for end of period ODI adjustments ~ Water resources | D32: £m | E32: Price Review 2019 | J32: 0 | K32: 0 | L32: 0 | M32: 0 | N32: 6.875 | R32: 6.875
A33: SRN | B33: C_WS17013_PR19D007 | C33: Incentives to be paid at PR19 - Water resources control - Export incentives (2012-13 prices) | D33: £m | E33: Price Review 2019
A34: SRN | B34: C_WS17025_PR19D007 | C34: Incentives to be paid at PR19 - Water resources control - Import incentives (2012-13 prices) | D34: £m | E34: Price Review 2019
A35: SRN | B35: C00578_L021 | C35: Water - Total Adjustment Revenue carry forward to PR19 | D35: £m | E35: Price Review 2019 | P35: -0.7567694099
A36: SRN | B36: C_APP27016_PD002 | C36: Net performance payment / (penalty) applied to revenue for in-period ODI adjustments ~ Water network plus | D36: £m | E36: Price Review 2019 | J36: 0 | K36: 0 | L36: 0 | M36: 0 | N36: 0 | R36: 0
A37: SRN | B37: C_APP27023_PD002 | C37: Net performance payment / (penalty) applied to revenue for end of period ODI adjustments ~ Water network plus | D37: £m | E37: Price Review 2019 | J37: 0 | K37: 0 | L37: -0.287 | M37: 0 | N37: 0 | R37: -0.287
A38: SRN | B38: C_WS15024_PR19PD006 | C38: Water: revenue adjustment from totex menu model | D38: £m | E38: Price Review 2019 | R38: -2.79338834
A39: SRN | B39: C_WS17014_PR19D007 | C39: Incentives to be paid at PR19 - Network plus water control - Export incentives (2012-13 prices) | D39: £m | E39: Price Review 2019
A40: SRN | B40: C_WS17026_PR19D007 | C40: Incentives to be paid at PR19 - Network plus water control - Import incentives (2012-13 prices) | D40: £m | E40: Price Review 2019
A41: SRN | B41: C_WS13026_PR19PD005 | C41: Total reward / (penalty) at the end of AMP6 - water | D41: £m | E41: Price Review 2019 | N41: 0.0007909515679 | R41: 0.0007909515679
A42: SRN | B42: C_APP27018_PD002 | C42: Net performance payment / (penalty) applied to revenue for in-period ODI adjustments ~ Bioresources | D42: £m | E42: Price Review 2019 | J42: 0 | K42: 0 | L42: 0 | M42: 0 | N42: 0 | R42: 0
A43: SRN | B43: C_APP27025_PD002 | C43: Net performance payment / (penalty) applied to revenue for end of period ODI adjustments ~ Bioresources | D43: £m | E43: Price Review 2019 | J43: 0 | K43: 0 | L43: 0 | M43: 0 | N43: 0 | R43: 0
A44: SRN | B44: C00585_L021 | C44: Wastewater - Total Adjustment Revenue carry forward to PR19 | D44: £m | E44: Price Review 2019 | P44: -4.108912387
A45: SRN | B45: C_APP27017_PD002 | C45: Net performance payment / (penalty) applied to revenue for in-period ODI adjustments ~ Wastewater network plus | D45: £m | E45: Price Review 2019 | J45: 0 | K45: 0 | L45: 0 | M45: 0 | N45: 0 | R45: 0
A46: SRN | B46: C_APP27024_PD002 | C46: Net performance payment / (penalty) applied to revenue for end of period ODI adjustments ~ Wastewater network plus | D46: £m | E46: Price Review 2019 | J46: -1.458 | K46: 0 | L46: 0 | M46: -1.58 | N46: -0.158 | R46: -3.196
A47: SRN | B47: C_WWS15019_PR19PD006 | C47: Wastewater: revenue adjustment from totex menu model | D47: £m | E47: Price Review 2019 | R47: -2.344458871
A48: SRN | B48: C_WWS13026_PR19PD005 | C48: Total reward / (penalty) at the end of AMP6 - waste | D48: £m | E48: Price Review 2019 | N48: -0.0009344978295 | R48: -0.0009344978295
A49: SRN | B49: C_WWS15019_DMMY_PR19PD006 | C49: Wastewater: revenue adjustment from totex menu model (TTT) | D49: £m | E49: Price Review 2019
A50: SRN | B50: C_WWS13026_DMMY_PR19PD005 | C50: Total reward / (penalty) at the end of AMP6 - dmmy | D50: £m | E50: Price Review 2019 | N50: 0 | R50: 0
A51: SRN | B51: C_APP27019_PD002 | C51: Net performance payment / (penalty) applied to revenue for in-period ODI adjustments ~ Residential retail | D51: £m | E51: Price Review 2019 | J51: 0 | K51: 0 | L51: 0 | M51: 0 | N51: 0 | R51: 0
A52: SRN | B52: C_APP27026_PD002 | C52: Net performance payment / (penalty) applied to revenue for end of period ODI adjustments ~ Residential retail | D52: £m | E52: Price Review 2019 | J52: 0 | K52: 0 | L52: 0 | M52: 0 | N52: 0 | R52: 0
A53: SRN | B53: C_R9045_PR19PD008 | C53: Total reward / (penalty) at the end of AMP6 - Residential retail revenue adjustment at the end of AMP6 | D53: £m | E53: Price Review 2019 | N53: 0.1104263361 | R53: 0.1104263361
A54: SRN | B54: C_R10009_PR19PD009 | C54: SIM adjustment - Household retail £m | D54: £m | E54: Price Review 2019
A55: SRN | B55: C_APP27020_PD002 | C55: Net performance payment / (penalty) applied to revenue for in-period ODI adjustments ~ Business retail | D55: £m | E55: Price Review 2019 | J55: 0 | K55: 0 | L55: 0 | M55: 0 | N55: 0 | R55: 0
A56: SRN | B56: C_APP27027_PD002 | C56: Net performance payment / (penalty) applied to revenue for end of period ODI adjustments ~ Business retail | D56: £m | E56: Price Review 2019 | J56: 0 | K56: 0 | L56: 0 | M56: 0 | N56: 0 | R56: 0

Sheet Inputs
A1: =RIGHT(CELL("FILENAME", $A$1), LEN(CELL("FILENAME", $A$1)) - SEARCH("]", CELL("FILENAME", $A$1))) -> Inputs
E2: =Time!E$25 -> Model period ending | J2: =Time!J$25 -> 2013-03-31 | K2: =Time!K$25 -> 2014-03-31 | L2: =Time!L$25 -> 2015-03-31 | M2: =Time!M$25 -> 2016-03-31 | N2: =Time!N$25 -> 2017-03-31 | O2: =Time!O$25 -> 2018-03-31 | P2: =Time!P$25 -> 2019-03-31 | Q2: =Time!Q$25 -> 2020-03-31 | R2: =Time!R$25 -> 2021-03-31 | S2: =Time!S$25 -> 2022-03-31 | T2: =Time!T$25 -> 2023-03-31 | U2: =Time!U$25 -> 2024-03-31 | V2: =Time!V$25 -> 2025-03-31
E3: =Time!E$80 -> Timeline label | J3: =Time!J$80 -> Pre-Fcst | K3: =Time!K$80 -> Pre-Fcst | L3: =Time!L$80 -> Pre-Fcst | M3: =Time!M$80 -> Pre-Fcst | N3: =Time!N$80 -> Pre-Fcst | O3: =Time!O$80 -> Pre-Fcst | P3: =Time!P$80 -> Pre-Fcst | Q3: =Time!Q$80 -> Pre-Fcst | R3: =Time!R$80 -> Forecast | S3: =Time!S$80 -> Forecast | T3: =Time!T$80 -> Forecast | U3: =Time!U$80 -> Forecast | V3: =Time!V$80 -> Forecast
E4: =Time!E$103 -> Financial year ending | J4: =Time!J$103 -> 2013 | K4: =Time!K$103 -> 2014 | L4: =Time!L$103 -> 2015 | M4: =Time!M$103 -> 2016 | N4: =Time!N$103 -> 2017 | O4: =Time!O$103 -> 2018 | P4: =Time!P$103 -> 2019 | Q4: =Time!Q$103 -> 2020 | R4: =Time!R$103 -> 2021 | S4: =Time!S$103 -> 2022 | T4: =Time!T$103 -> 2023 | U4: =Time!U$103 -> 2024 | V4: =Time!V$103 -> 2025
A5: =IF(COUNTIF(A6:A166,"< 0") + COUNTIF(A6:A166,">0") <> 0, 1, 0) -> 0 | D5: Input references | E5: =Time!E$10 -> Model column counter | F5: Constant | G5: Unit | H5: Total | J5: =Time!J$10 -> 1 | K5: =Time!K$10 -> 2 | L5: =Time!L$10 -> 3 | M5: =Time!M$10 -> 4 | N5: =Time!N$10 -> 5 | O5: =Time!O$10 -> 6 | P5: =Time!P$10 -> 7 | Q5: =Time!Q$10 -> 8 | R5: =Time!R$10 -> 9 | S5: =Time!S$10 -> 10 | T5: =Time!T$10 -> 11 | U5: =Time!U$10 -> 12 | V5: =Time!V$10 -> 13
E6: [Used in formula range - Do not delete]
A8: A: TIME
B10: Timeline setup
C12: Timeline start dates
A13: C001 | E13: 1st model column start date | F13: 2012-04-01 | G13: date | H13: Date should be the first date of the financial year
C15: Financial year inputs
A16: C002 | E16: First modelling column financial year# | F16: 2013 | G16: year # | H16: Financial model start year
A17: C003 | E17: Financial year end month number | F17: 3 | G17: month # | H17: Month of financial year end for financial model
C19: Timeline labels
A20: C004 | E20: Pre - forecast period | F20: Pre-Fcst | G20: label
A21: C005 | E21: Forecast period | F21: Forecast | G21: label
A22: C006 | E22: Post - forecast period | F22: Post-Fcst | G22: label
B24: Project dates
A26: C007 | E26: Forecast start date | F26: 2020-04-01 | G26: date
A27: C008 | E27: Forecast duration | F27: 5 | G27: years
A28: C009 | E28: Forecast duration (text) | F28: =YEAR(F26) & "-" & TEXT(DATE(YEAR(F26) + F27, 1, 1), "yy") -> 2020-25 | G28: years # | H28: For info. only
A31: B: INDEXATION
B33: CPIH INDEXATION
A35: BB3905AL | E35: Consumer Price Index for April | G35: index | J35: =F_Inputs!G7 -> 95.9 | K35: =F_Inputs!H7 -> 98 | L35: =F_Inputs!I7 -> 99.6 | M35: =F_Inputs!J7 -> 99.9 | N35: =F_Inputs!K7 -> 100.6 | O35: =F_Inputs!L7 -> 103.2 | P35: =F_Inputs!M7 -> 105.5 | Q35: =F_Inputs!N7 -> 108
A36: BB3905MY | E36: Consumer Price Index for May | G36: index | J36: =F_Inputs!G8 -> 95.9 | K36: =F_Inputs!H8 -> 98.2 | L36: =F_Inputs!I8 -> 99.6 | M36: =F_Inputs!J8 -> 100.1 | N36: =F_Inputs!K8 -> 100.8 | O36: =F_Inputs!L8 -> 103.5 | P36: =F_Inputs!M8 -> 105.9 | Q36: =F_Inputs!N8 -> 108.2
A37: BB3905JN | E37: Consumer Price Index for June | G37: index | J37: =F_Inputs!G9 -> 95.6 | K37: =F_Inputs!H9 -> 98 | L37: =F_Inputs!I9 -> 99.8 | M37: =F_Inputs!J9 -> 100.1 | N37: =F_Inputs!K9 -> 101 | O37: =F_Inputs!L9 -> 103.5 | P37: =F_Inputs!M9 -> 106.1 | Q37: =F_Inputs!N9 -> 108.4
A38: BB3905JL | E38: Consumer Price Index for July | G38: index | J38: =F_Inputs!G10 -> 95.7 | K38: =F_Inputs!H10 -> 98 | L38: =F_Inputs!I10 -> 99.6 | M38: =F_Inputs!J10 -> 100 | N38: =F_Inputs!K10 -> 100.9 | O38: =F_Inputs!L10 -> 103.5 | P38: =F_Inputs!M10 -> 106.1 | Q38: =F_Inputs!N10 -> 108.4
A39: BB3905AT | E39: Consumer Price Index for August | G39: index | J39: =F_Inputs!G11 -> 96.1 | K39: =F_Inputs!H11 -> 98.4 | L39: =F_Inputs!I11 -> 99.9 | M39: =F_Inputs!J11 -> 100.3 | N39: =F_Inputs!K11 -> 101.2 | O39: =F_Inputs!L11 -> 104 | P39: =F_Inputs!M11 -> 106.4 | Q39: =F_Inputs!N11 -> 108.8
A40: BB3905SR | E40: Consumer Price Index for September | G40: index | J40: =F_Inputs!G12 -> 96.4 | K40: =F_Inputs!H12 -> 98.7 | L40: =F_Inputs!I12 -> 100 | M40: =F_Inputs!J12 -> 100.2 | N40: =F_Inputs!K12 -> 101.5 | O40: =F_Inputs!L12 -> 104.3 | P40: =F_Inputs!M12 -> 106.7 | Q40: =F_Inputs!N12 -> 109
A41: BB3905OR | E41: Consumer Price Index for October | G41: index | J41: =F_Inputs!G13 -> 96.8 | K41: =F_Inputs!H13 -> 98.8 | L41: =F_Inputs!I13 -> 100.1 | M41: =F_Inputs!J13 -> 100.3 | N41: =F_Inputs!K13 -> 101.6 | O41: =F_Inputs!L13 -> 104.4 | P41: =F_Inputs!M13 -> 106.8 | Q41: =F_Inputs!N13 -> 109.1
A42: BB3905NR | E42: Consumer Price Index for November | G42: index | J42: =F_Inputs!G14 -> 97 | K42: =F_Inputs!H14 -> 98.8 | L42: =F_Inputs!I14 -> 99.9 | M42: =F_Inputs!J14 -> 100.3 | N42: =F_Inputs!K14 -> 101.8 | O42: =F_Inputs!L14 -> 104.7 | P42: =F_Inputs!M14 -> 106.9 | Q42: =F_Inputs!N14 -> 109
A43: BB3905DR | E43: Consumer Price Index for December | G43: index | J43: =F_Inputs!G15 -> 97.3 | K43: =F_Inputs!H15 -> 99.2 | L43: =F_Inputs!I15 -> 99.9 | M43: =F_Inputs!J15 -> 100.4 | N43: =F_Inputs!K15 -> 102.2 | O43: =F_Inputs!L15 -> 105 | P43: =F_Inputs!M15 -> 107.3 | Q43: =F_Inputs!N15 -> 109.4
A44: BB3905JY | E44: Consumer Price Index for January | G44: index | J44: =F_Inputs!G16 -> 97 | K44: =F_Inputs!H16 -> 98.7 | L44: =F_Inputs!I16 -> 99.2 | M44: =F_Inputs!J16 -> 99.9 | N44: =F_Inputs!K16 -> 101.8 | O44: =F_Inputs!L16 -> 104.5 | P44: =F_Inputs!M16 -> 106.9 | Q44: =F_Inputs!N16 -> 109
A45: BB3905FY | E45: Consumer Price Index for February | G45: index | J45: =F_Inputs!G17 -> 97.5 | K45: =F_Inputs!H17 -> 99.1 | L45: =F_Inputs!I17 -> 99.5 | M45: =F_Inputs!J17 -> 100.1 | N45: =F_Inputs!K17 -> 102.4 | O45: =F_Inputs!L17 -> 104.9 | P45: =F_Inputs!M17 -> 107.3 | Q45: =F_Inputs!N17 -> 109.4
A46: BB3905MH | E46: Consumer Price Index for March | G46: index | J46: =F_Inputs!G18 -> 97.8 | K46: =F_Inputs!H18 -> 99.3 | L46: =F_Inputs!I18 -> 99.6 | M46: =F_Inputs!J18 -> 100.4 | N46: =F_Inputs!K18 -> 102.7 | O46: =F_Inputs!L18 -> 105.1 | P46: =F_Inputs!M18 -> 107.5 | Q46: =F_Inputs!N18 -> 109.7
E48: CPIH: Assumed percentage increase for unpopulated monthly values | G48: %
B50: RPI INDEXATION
A52: BB3805AL | E52: Retail Price Index for April | G52: index | J52: =F_Inputs!G19 -> 242.5 | K52: =F_Inputs!H19 -> 249.5 | L52: =F_Inputs!I19 -> 255.7 | M52: =F_Inputs!J19 -> 258 | N52: =F_Inputs!K19 -> 261.4 | O52: =F_Inputs!L19 -> 270.6 | P52: =F_Inputs!M19 -> 279.7 | Q52: =F_Inputs!N19 -> 288.3
A53: BB3805MY | E53: Retail Price Index for May | G53: index | J53: =F_Inputs!G20 -> 242.4 | K53: =F_Inputs!H20 -> 250 | L53: =F_Inputs!I20 -> 255.9 | M53: =F_Inputs!J20 -> 258.5 | N53: =F_Inputs!K20 -> 262.1 | O53: =F_Inputs!L20 -> 271.7 | P53: =F_Inputs!M20 -> 280.7 | Q53: =F_Inputs!N20 -> 289.1
A54: BB3805JN | E54: Retail Price Index for June | G54: index | J54: =F_Inputs!G21 -> 241.8 | K54: =F_Inputs!H21 -> 249.7 | L54: =F_Inputs!I21 -> 256.3 | M54: =F_Inputs!J21 -> 258.9 | N54: =F_Inputs!K21 -> 263.1 | O54: =F_Inputs!L21 -> 272.3 | P54: =F_Inputs!M21 -> 281.9 | Q54: =F_Inputs!N21 -> 290.1
A55: BB3805JL | E55: Retail Price Index for July | G55: index | J55: =F_Inputs!G22 -> 242.1 | K55: =F_Inputs!H22 -> 249.7 | L55: =F_Inputs!I22 -> 256 | M55: =F_Inputs!J22 -> 258.6 | N55: =F_Inputs!K22 -> 263.4 | O55: =F_Inputs!L22 -> 272.9 | P55: =F_Inputs!M22 -> 282.1 | Q55: =F_Inputs!N22 -> 290.5
A56: BB3805AT | E56: Retail Price Index for August | G56: index | J56: =F_Inputs!G23 -> 243 | K56: =F_Inputs!H23 -> 251 | L56: =F_Inputs!I23 -> 257 | M56: =F_Inputs!J23 -> 259.8 | N56: =F_Inputs!K23 -> 264.4 | O56: =F_Inputs!L23 -> 274.7 | P56: =F_Inputs!M23 -> 283.6 | Q56: =F_Inputs!N23 -> 292
A57: BB3805SR | E57: Retail Price Index for September | G57: index | J57: =F_Inputs!G24 -> 244.2 | K57: =F_Inputs!H24 -> 251.9 | L57: =F_Inputs!I24 -> 257.6 | M57: =F_Inputs!J24 -> 259.6 | N57: =F_Inputs!K24 -> 264.9 | O57: =F_Inputs!L24 -> 275.1 | P57: =F_Inputs!M24 -> 283.9 | Q57: =F_Inputs!N24 -> 292.3
A58: BB3805OR | E58: Retail Price Index for October | G58: index | J58: =F_Inputs!G25 -> 245.6 | K58: =F_Inputs!H25 -> 251.9 | L58: =F_Inputs!I25 -> 257.7 | M58: =F_Inputs!J25 -> 259.5 | N58: =F_Inputs!K25 -> 264.8 | O58: =F_Inputs!L25 -> 275.3 | P58: =F_Inputs!M25 -> 284.1 | Q58: =F_Inputs!N25 -> 292.5
A59: BB3805NR | E59: Retail Price Index for November | G59: index | J59: =F_Inputs!G26 -> 245.6 | K59: =F_Inputs!H26 -> 252.1 | L59: =F_Inputs!I26 -> 257.1 | M59: =F_Inputs!J26 -> 259.8 | N59: =F_Inputs!K26 -> 265.5 | O59: =F_Inputs!L26 -> 275.8 | P59: =F_Inputs!M26 -> 284.3 | Q59: =F_Inputs!N26 -> 292.8
A60: BB3805DR | E60: Retail Price Index for December | G60: index | J60: =F_Inputs!G27 -> 246.8 | K60: =F_Inputs!H27 -> 253.4 | L60: =F_Inputs!I27 -> 257.5 | M60: =F_Inputs!J27 -> 260.6 | N60: =F_Inputs!K27 -> 267.1 | O60: =F_Inputs!L27 -> 278.1 | P60: =F_Inputs!M27 -> 286.6 | Q60: =F_Inputs!N27 -> 295.2
A61: BB3805JY | E61: Retail Price Index for January | G61: index | J61: =F_Inputs!G28 -> 245.8 | K61: =F_Inputs!H28 -> 252.6 | L61: =F_Inputs!I28 -> 255.4 | M61: =F_Inputs!J28 -> 258.8 | N61: =F_Inputs!K28 -> 265.5 | O61: =F_Inputs!L28 -> 276 | P61: =F_Inputs!M28 -> 284.4 | Q61: =F_Inputs!N28 -> 292.9
A62: BB3805FY | E62: Retail Price Index for February | G62: index | J62: =F_Inputs!G29 -> 247.6 | K62: =F_Inputs!H29 -> 254.2 | L62: =F_Inputs!I29 -> 256.7 | M62: =F_Inputs!J29 -> 260 | N62: =F_Inputs!K29 -> 268.4 | O62: =F_Inputs!L29 -> 278.1 | P62: =F_Inputs!M29 -> 286.6 | Q62: =F_Inputs!N29 -> 295.2
A63: BB3805MH | E63: Retail Price Index for March | G63: index | J63: =F_Inputs!G30 -> 248.7 | K63: =F_Inputs!H30 -> 254.8 | L63: =F_Inputs!I30 -> 257.1 | M63: =F_Inputs!J30 -> 261.1 | N63: =F_Inputs!K30 -> 269.3 | O63: =F_Inputs!L30 -> 278.3 | P63: =F_Inputs!M30 -> 287.1 | Q63: =F_Inputs!N30 -> 295.7
E65: RPI: Assumed percentage increase for unpopulated monthly values | G65: %
B67: Inflation
A69: C010 | E69: Year reference for FYA base price 1 | F69: 2013 | G69: year #
A70: C011 | E70: Year reference for FYA base price 2 | F70: 2018 | G70: year #
A71: C012 | E71: Year reference for FYE base price 1 | F71: 2020 | G71: year #
A72: C013 | E72: Year reference for FYE base price 2 | F72: 2019 | G72: year #
A73: C014 | E73: Year reference for FYE end price | F73: 2020 | G73: year #
B75: Deflation
A77: C015 | E77: Year reference for FYE base price | F77: 2020 | G77: year #
A78: C016 | E78: Year reference for FYA end price | F78: 2018 | G78: year #
A81: C: REVENUE INPUTS
B83: Water services
D85: Water resources
A86: =F_Inputs!B31 -> C_APP27015_PD002 | E86: Net performance payment / (penalty) applied to revenue for in-period ODI adjustments ~ Water resources | F86: =F_Inputs!R31 -> 0 | G86: £m | H86: 2012/13 FYA
A87: =F_Inputs!B32 -> C_APP27022_PD002 | E87: Net performance payment / (penalty) applied to revenue for end of period ODI adjustments ~ Water resources | F87: =F_Inputs!R32 -> 6.875 | G87: £m | H87: 2012/13 FYA
A88: =F_Inputs!B33 -> C_WS17013_PR19D007 | E88: Total value of export incentive to be paid to water resources at PR19 | F88: =F_Inputs!R33 -> 0 | G88: £m | H88: 2017/18 FYA
A89: =F_Inputs!B34 -> C_WS17025_PR19D007 | E89: Total value of import incentive - water resources | F89: =F_Inputs!R34 -> 0 | G89: £m | H89: 2017/18 FYA
D91: Water network plus
A92: =F_Inputs!B35 -> C00578_L021 | E92: Further 2010-15 reconciliation total adjustment carry forward to PR19 ~ Water network plus | F92: =F_Inputs!P35 -> -0.7567694099 | G92: £m | H92: 2012/13 FYA
A93: =F_Inputs!B36 -> C_APP27016_PD002 | E93: Net performance payment / (penalty) applied to revenue for in-period ODI adjustments ~ Water network plus | F93: =F_Inputs!R36 -> 0 | G93: £m | H93: 2012/13 FYA
A94: =F_Inputs!B37 -> C_APP27023_PD002 | E94: Net performance payment / (penalty) applied to revenue for end of period ODI adjustments ~ Water network plus | F94: =F_Inputs!R37 -> -0.287 | G94: £m | H94: 2012/13 FYA
A95: =F_Inputs!B38 -> C_WS15024_PR19PD006 | E95: Water: revenue adjustment from totex menu model | F95: =F_Inputs!R38 -> -2.79338834 | G95: £m | H95: 2012/13 FYA
A96: =F_Inputs!B39 -> C_WS17014_PR19D007 | E96: Total value of export incentive to be paid to water network plus at PR19 | F96: =F_Inputs!R39 -> 0 | G96: £m | H96: 2017/18 FYA
A97: =F_Inputs!B40 -> C_WS17026_PR19D007 | E97: Total value of import incentive - water network plus | F97: =F_Inputs!R40 -> 0 | G97: £m | H97: 2017/18 FYA
A98: =F_Inputs!B41 -> C_WS13026_PR19PD005 | E98: WRFIM total reward / (penalty) at end of AMP6 ~ Water | F98: =F_Inputs!R41 -> 0.0007909515679 | G98: £m | H98: November 2018/2019
B100: Wastewater services
D102: Bioresources
A103: =F_Inputs!B42 -> C_APP27018_PD002 | E103: Net performance payment / (penalty) applied to revenue for in-period ODI adjustments ~ Bioresources | F103: =F_Inputs!R42 -> 0 | G103: £m | H103: 2012/13 FYA
A104: =F_Inputs!B43 -> C_APP27025_PD002 | E104: Net performance payment / (penalty) applied to revenue for end of period ODI adjustments ~ Bioresources | F104: =F_Inputs!R43 -> 0 | G104: £m | H104: 2012/13 FYA
D106: Wastewater network plus
A107: =F_Inputs!B44 -> C00585_L021 | E107: Further 2010-15 reconciliation total adjustment carry forward to PR19 ~ Wastewater network plus | F107: =F_Inputs!P44 -> -4.108912387 | G107: £m | H107: 2012/13 FYA
A108: =F_Inputs!B45 -> C_APP27017_PD002 | E108: Net performance payment / (penalty) applied to revenue for in-period ODI adjustments ~ Wastewater network plus | F108: =F_Inputs!R45 -> 0 | G108: £m | H108: 2012/13 FYA
A109: =F_Inputs!B46 -> C_APP27024_PD002 | E109: Net performance payment / (penalty) applied to revenue for end of period ODI adjustments ~ Wastewater network plus | F109: =F_Inputs!R46 -> -3.196 | G109: £m | H109: 2012/13 FYA
A110: =F_Inputs!B47 -> C_WWS15019_PR19PD006 | E110: Wastewater: revenue adjustment from totex menu model | F110: =F_Inputs!R47 -> -2.344458871 | G110: £m | H110: 2012/13 FYA
A111: =F_Inputs!B48 -> C_WWS13026_PR19PD005 | E111: WRFIM total reward / (penalty) at the end of AMP6 ~ Wastewater | F111: =F_Inputs!R48 -> -0.0009344978295 | G111: £m | H111: November 2018/2019
D113: Dummy control
A114: =F_Inputs!B49 -> C_WWS15019_DMMY_PR19PD006 | E114: Dummy: revenue adjustment from totex menu model | F114: =F_Inputs!R49 -> 0 | G114: £m | H114: 2012/13 FYA
A115: =F_Inputs!B50 -> C_WWS13026_DMMY_PR19PD005 | E115: Dummy: WRFIM total reward / (penalty) at the end of AMP6 | F115: =F_Inputs!R50 -> 0 | G115: £m | H115: November 2018/2019
B117: Residential retail
A119: =F_Inputs!B51 -> C_APP27019_PD002 | E119: Net performance payment / (penalty) applied to revenue for in-period ODI adjustments ~ Residential retail | F119: =F_Inputs!R51 -> 0 | G119: £m | H119: 2012/13 FYA
A120: =F_Inputs!B52 -> C_APP27026_PD002 | E120: Net performance payment / (penalty) applied to revenue for end of period ODI adjustments ~ Residential retail | F120: =F_Inputs!R52 -> 0 | G120: £m | H120: 2012/13 FYA
A121: =F_Inputs!B53 -> C_R9045_PR19PD008 | E121: Residential retail revenue adjustment at end of AMP6 | F121: =F_Inputs!R53 -> 0.1104263361 | G121: £m | H121: 2019/20 FYE
A122: =F_Inputs!B54 -> C_R10009_PR19PD009 | E122: SIM forecast revenue adjustment | F122: =F_Inputs!R54 -> 0 | G122: £m | H122: 2017/18 FYA
B124: Business retail
A126: =F_Inputs!B55 -> C_APP27020_PD002 | E126: Net performance payment / (penalty) applied to revenue for in-period ODI adjustments ~ Business retail | F126: =F_Inputs!R55 -> 0 | G126: £m | H126: 2012/13 FYA
A127: =F_Inputs!B56 -> C_APP27027_PD002 | E127: Net performance payment / (penalty) applied to revenue for end of period ODI adjustments ~ Business retail | F127: =F_Inputs!R56 -> 0 | G127: £m | H127: 2012/13 FYA
A130: D: PROFILING INPUTS
B132: Discounting
A134: C020 | E134: PV base date | F134: 2021-03-31 | G134: date
A136: C040 | E136: Discount rate - Water resources | G136: %
A137: C050 | E137: Discount rate - Water network plus | F137: 0.036 | G137: %
A138: C060 | E138: Discount rate - Bioresources | G138: %
A139: C070 | E139: Discount rate - Wastewater network plus | G139: %
A140: C080 | E140: Discount rate - Dummy control | G140: %
A141: C090 | E141: Discount rate - Residential retail | G141: %
A142: C100 | E142: Discount rate - Business retail | G142: %
A144: C030 | E144: Number of years to profile over | F144: 5 | G144: #
B146: Profile selector
A148: C041 | E148: Water resources revenue adjustment selector | F148: 0 | G148: 0 = Apply in first year, 1 = Constant annuity 2020-25, 2 = Even allocation - NPV neutral
A149: C051 | E149: Water network plus revenue adjustment selector | F149: 1 | G149: 0 = Apply in first year, 1 = Constant annuity 2020-25, 2 = Even allocation - NPV neutral
A150: C061 | E150: Bioresources revenue adjustment selector | F150: 0 | G150: 0 = Apply in first year, 1 = Constant annuity 2020-25, 2 = Even allocation - NPV neutral
A151: C071 | E151: Wastewater network plus revenue adjustment selector | F151: 0 | G151: 0 = Apply in first year, 1 = Constant annuity 2020-25, 2 = Even allocation - NPV neutral
A152: C081 | E152: Dummy control revenue adjustment selector | F152: 0 | G152: 0 = Apply in first year, 1 = Constant annuity 2020-25, 2 = Even allocation - NPV neutral
A153: C091 | E153: Residential retail revenue adjustment selector | F153: 0 | G153: 0 = Apply in first year, 1 = Constant annuity 2020-25, 2 = Even allocation - NPV neutral
A154: C101 | E154: Business retail revenue adjustment selector | F154: 0 | G154: 0 = Apply in first year, 1 = Constant annuity 2020-25, 2 = Even allocation - NPV neutral
A157: E: NON CHANGEABLE MODEL TECHNICAL INPUTS
A159: C017 | E159: Months per model period | F159: 12 | G159: months
A161: C018 | E161: Months in a year | F161: 12 | G161: months
A163: C019 | E163: Days in a year | F163: 365 | G163: days
E166: [Used in formula range - Do not delete]

Sheet Time
A1: =RIGHT(CELL("FILENAME", $A$1), LEN(CELL("FILENAME", $A$1)) - SEARCH("]", CELL("FILENAME", $A$1))) -> Time
E2: =Time!E$25 -> Model period ending | J2: =Time!J$25 -> 2013-03-31 | K2: =Time!K$25 -> 2014-03-31 | L2: =Time!L$25 -> 2015-03-31 | M2: =Time!M$25 -> 2016-03-31 | N2: =Time!N$25 -> 2017-03-31 | O2: =Time!O$25 -> 2018-03-31 | P2: =Time!P$25 -> 2019-03-31 | Q2: =Time!Q$25 -> 2020-03-31 | R2: =Time!R$25 -> 2021-03-31 | S2: =Time!S$25 -> 2022-03-31 | T2: =Time!T$25 -> 2023-03-31 | U2: =Time!U$25 -> 2024-03-31 | V2: =Time!V$25 -> 2025-03-31
E3: =Time!E$80 -> Timeline label | J3: =Time!J$80 -> Pre-Fcst | K3: =Time!K$80 -> Pre-Fcst | L3: =Time!L$80 -> Pre-Fcst | M3: =Time!M$80 -> Pre-Fcst | N3: =Time!N$80 -> Pre-Fcst | O3: =Time!O$80 -> Pre-Fcst | P3: =Time!P$80 -> Pre-Fcst | Q3: =Time!Q$80 -> Pre-Fcst | R3: =Time!R$80 -> Forecast | S3: =Time!S$80 -> Forecast | T3: =Time!T$80 -> Forecast | U3: =Time!U$80 -> Forecast | V3: =Time!V$80 -> Forecast
E4: =Time!E$103 -> Financial year ending | J4: =Time!J$103 -> 2013 | K4: =Time!K$103 -> 2014 | L4: =Time!L$103 -> 2015 | M4: =Time!M$103 -> 2016 | N4: =Time!N$103 -> 2017 | O4: =Time!O$103 -> 2018 | P4: =Time!P$103 -> 2019 | Q4: =Time!Q$103 -> 2020 | R4: =Time!R$103 -> 2021 | S4: =Time!S$103 -> 2022 | T4: =Time!T$103 -> 2023 | U4: =Time!U$103 -> 2024 | V4: =Time!V$103 -> 2025
E5: =Time!E$10 -> Model column counter | F5: Constant | G5: Unit | H5: Total | J5: =Time!J$10 -> 1 | K5: =Time!K$10 -> 2 | L5: =Time!L$10 -> 3 | M5: =Time!M$10 -> 4 | N5: =Time!N$10 -> 5 | O5: =Time!O$10 -> 6 | P5: =Time!P$10 -> 7 | Q5: =Time!Q$10 -> 8 | R5: =Time!R$10 -> 9 | S5: =Time!S$10 -> 10 | T5: =Time!T$10 -> 11 | U5: =Time!U$10 -> 12 | V5: =Time!V$10 -> 13
A7: MODEL PERIOD
B9: Model column counter
E10: Model column counter | G10: counter | J10: =I10 + 1 -> 1 | K10: 2 | L10: 3 | M10: 4 | N10: 5 | O10: 6 | P10: 7 | Q10: =P10 + 1 -> 8 | R10: =Q10 + 1 -> 9 | S10: =R10 + 1 -> 10 | T10: =S10 + 1 -> 11 | U10: =T10 + 1 -> 12 | V10: =U10 + 1 -> 13
E11: Model column total | F11: =MAX(J10:V10) -> 13 | G11: columns
E13: =E$10 -> Model column counter | F13: 0 | G13: counter | H13: 0 | I13: 0 | J13: 1 | K13: 2 | L13: 3 | M13: 4 | N13: 5 | O13: 6 | P13: 7 | Q13: 8 | R13: 9 | S13: 10 | T13: 11 | U13: 12 | V13: 13
E14: 1st model column flag | G14: flag | H14: =SUM(J14:V14) -> 1 | J14: =IF(J13 = 1, 1, 0) -> 1 | K14: 0 | L14: 0 | M14: 0 | N14: 0 | O14: 0 | P14: 0 | Q14: =IF(Q13 = 1, 1, 0) -> 0 | R14: 0 | S14: 0 | T14: 0 | U14: 0 | V14: 0
B16: Model period beginning
E17: =Inputs!E$13 -> 1st model column start date | F17: =Inputs!F$13 -> 2012-04-01 | G17: =Inputs!G$13 -> date
E18: =Inputs!E$159 -> Months per model period | F18: =Inputs!F$159 -> 12 | G18: =Inputs!G$159 -> months
E19: =E$14 -> 1st model column flag | F19: 0 | G19: flag | H19: 1 | I19: 0 | J19: 1 | K19: 0 | L19: 0 | M19: 0 | N19: 0 | O19: 0 | P19: 0 | Q19: 0 | R19: 0 | S19: 0 | T19: 0 | U19: 0 | V19: 0
E20: Model period beginning | G20: date | J20: =IF(J19 = 1, $F17, DATE(YEAR(I20), MONTH(I20) + $F18, DAY(1))) -> 2012-04-01 | K20: 2013-04-01 | L20: 2014-04-01 | M20: 2015-04-01 | N20: 2016-04-01 | O20: 2017-04-01 | P20: 2018-04-01 | Q20: =IF(Q19 = 1, $F17, DATE(YEAR(P20), MONTH(P20) + $F18, DAY(1))) -> 2019-04-01 | R20: =IF(R19 = 1, $F17, DATE(YEAR(Q20), MONTH(Q20) + $F18, DAY(1))) -> 2020-04-01 | S20: =IF(S19 = 1, $F17, DATE(YEAR(R20), MONTH(R20) + $F18, DAY(1))) -> 2021-04-01 | T20: =IF(T19 = 1, $F17, DATE(YEAR(S20), MONTH(S20) + $F18, DAY(1))) -> 2022-04-01 | U20: =IF(U19 = 1, $F17, DATE(YEAR(T20), MONTH(T20) + $F18, DAY(1))) -> 2023-04-01 | V20: =IF(V19 = 1, $F17, DATE(YEAR(U20), MONTH(U20) + $F18, DAY(1))) -> 2024-04-01
B22: Model period ending
E23: =Inputs!E$159 -> Months per model period | F23: =Inputs!F$159 -> 12 | G23: =Inputs!G$159 -> months
E24: =E$20 -> Model period beginning | F24: 00:00:00 | G24: date | H24: 00:00:00 | I24: 00:00:00 | J24: 2012-04-01 | K24: 2013-04-01 | L24: 2014-04-01 | M24: 2015-04-01 | N24: 2016-04-01 | O24: 2017-04-01 | P24: 2018-04-01 | Q24: 2019-04-01 | R24: 2020-04-01 | S24: 2021-04-01 | T24: 2022-04-01 | U24: 2023-04-01 | V24: 2024-04-01
E25: Model period ending | G25: date | J25: =DATE(YEAR(J24), MONTH(J24) + $F23, DAY(J24) - 1) -> 2013-03-31 | K25: 2014-03-31 | L25: 2015-03-31 | M25: 2016-03-31 | N25: 2017-03-31 | O25: 2018-03-31 | P25: 2019-03-31 | Q25: =DATE(YEAR(Q24), MONTH(Q24) + $F23, DAY(Q24) - 1) -> 2020-03-31 | R25: 2021-03-31 | S25: 2022-03-31 | T25: 2023-03-31 | U25: 2024-03-31 | V25: 2025-03-31
A28: FORECAST PERIOD
B30: Forecast start period flag
E31: =Inputs!E$26 -> Forecast start date | F31: =Inputs!F$26 -> 2020-04-01 | G31: =Inputs!G$26 -> date
E32: =E$20 -> Model period beginning | F32: 00:00:00 | G32: date | H32: 00:00:00 | I32: 00:00:00 | J32: 2012-04-01 | K32: 2013-04-01 | L32: 2014-04-01 | M32: 2015-04-01 | N32: 2016-04-01 | O32: 2017-04-01 | P32: 2018-04-01 | Q32: 2019-04-01 | R32: 2020-04-01 | S32: 2021-04-01 | T32: 2022-04-01 | U32: 2023-04-01 | V32: 2024-04-01
E33: =E$25 -> Model period ending | F33: 00:00:00 | G33: date | H33: 00:00:00 | I33: 00:00:00 | J33: 2013-03-31 | K33: 2014-03-31 | L33: 2015-03-31 | M33: 2016-03-31 | N33: 2017-03-31 | O33: 2018-03-31 | P33: 2019-03-31 | Q33: 2020-03-31 | R33: 2021-03-31 | S33: 2022-03-31 | T33: 2023-03-31 | U33: 2024-03-31 | V33: 2025-03-31
E34: Forecast start period flag | G34: flag | H34: =SUM(J34:V34) -> 1 | J34: =IF(AND($F31 >= J32, $F31 <= J33), 1, 0) -> 0 | K34: =IF(AND($F31 >= K32, $F31 <= K33), 1, 0) -> 0 | L34: 0 | M34: 0 | N34: 0 | O34: 0 | P34: 0 | Q34: =IF(AND($F31 >= Q32, $F31 <= Q33), 1, 0) -> 0 | R34: 1 | S34: 0 | T34: 0 | U34: 0 | V34: 0
B36: Forecast end period flag
E37: =Inputs!E$26 -> Forecast start date | F37: =Inputs!F$26 -> 2020-04-01 | G37: =Inputs!G$26 -> date
E38: =Inputs!E$27 -> Forecast duration | F38: =Inputs!F$27 -> 5 | G38: =Inputs!G$27 -> years
E39: Forecast end date | F39: =DATE(YEAR(F37) + F38, MONTH(F37), DAY(F37) - 1) -> 2025-03-31 | G39: date
E41: =E$39 -> Forecast end date | F41: =F$39 -> 2025-03-31 | G41: =G$39 -> date
E42: =E$20 -> Model period beginning | F42: 00:00:00 | G42: date | H42: 00:00:00 | I42: 00:00:00 | J42: 2012-04-01 | K42: 2013-04-01 | L42: 2014-04-01 | M42: 2015-04-01 | N42: 2016-04-01 | O42: 2017-04-01 | P42: 2018-04-01 | Q42: 2019-04-01 | R42: 2020-04-01 | S42: 2021-04-01 | T42: 2022-04-01 | U42: 2023-04-01 | V42: 2024-04-01
E43: =E$25 -> Model period ending | F43: 00:00:00 | G43: date | H43: 00:00:00 | I43: 00:00:00 | J43: 2013-03-31 | K43: 2014-03-31 | L43: 2015-03-31 | M43: 2016-03-31 | N43: 2017-03-31 | O43: 2018-03-31 | P43: 2019-03-31 | Q43: 2020-03-31 | R43: 2021-03-31 | S43: 2022-03-31 | T43: 2023-03-31 | U43: 2024-03-31 | V43: 2025-03-31
E44: Forecast end period flag | G44: flag | H44: =SUM(J44:V44) -> 1 | J44: =IF(AND($F41 >= J42, $F41 <= J43), 1, 0) -> 0 | K44: 0 | L44: 0 | M44: 0 | N44: 0 | O44: 0 | P44: 0 | Q44: =IF(AND($F41 >= Q42, $F41 <= Q43), 1, 0) -> 0 | R44: 0 | S44: 0 | T44: 0 | U44: 0 | V44: 1
B46: Forecast period flag
E47: =E$34 -> Forecast start period flag | F47: =F$34 -> 0 | G47: flag | H47: 1 | I47: 0 | J47: 0 | K47: 0 | L47: 0 | M47: 0 | N47: 0 | O47: 0 | P47: 0 | Q47: 0 | R47: 1 | S47: 0 | T47: 0 | U47: 0 | V47: 0
E48: =E$44 -> Forecast end period flag | F48: =F$44 -> 0 | G48: flag | H48: 1 | I48: 0 | J48: 0 | K48: 0 | L48: 0 | M48: 0 | N48: 0 | O48: 0 | P48: 0 | Q48: 0 | R48: 0 | S48: 0 | T48: 0 | U48: 0 | V48: 1
E49: Forecast period flag | G49: flag | H49: =SUM(J49:V49) -> 5 | J49: =J47 + I49 - I48 -> 0 | K49: =K47 + J49 - J48 -> 0 | L49: 0 | M49: 0 | N49: 0 | O49: 0 | P49: 0 | Q49: =Q47 + P49 - P48 -> 0 | R49: =R47 + Q49 - Q48 -> 1 | S49: =S47 + R49 - R48 -> 1 | T49: =T47 + S49 - S48 -> 1 | U49: =U47 + T49 - T48 -> 1 | V49: =V47 + U49 - U48 -> 1
E50: Total number of forecast periods | F50: =SUM(J49:V49) -> 5 | G50: periods
B52: Pre-forecast period flag
E53: =E$14 -> 1st model column flag | F53: =F$14 -> 0 | G53: flag | H53: 1 | I53: 0 | J53: 1 | K53: 0 | L53: 0 | M53: 0 | N53: 0 | O53: 0 | P53: 0 | Q53: 0 | R53: 0 | S53: 0 | T53: 0 | U53: 0 | V53: 0
E54: =E$34 -> Forecast start period flag | F54: =F$34 -> 0 | G54: flag | H54: 1 | I54: 0 | J54: 0 | K54: 0 | L54: 0 | M54: 0 | N54: 0 | O54: 0 | P54: 0 | Q54: 0 | R54: 1 | S54: 0 | T54: 0 | U54: 0 | V54: 0
E55: Pre-forecast period flag | G55: flag | H55: =SUM(J55:V55) -> 8 | J55: =J53 + I55 - J54 -> 1 | K55: =K53 + J55 - K54 -> 1 | L55: 1 | M55: 1 | N55: 1 | O55: 1 | P55: 1 | Q55: =Q53 + P55 - Q54 -> 1 | R55: =R53 + Q55 - R54 -> 0 | S55: =S53 + R55 - S54 -> 0 | T55: =T53 + S55 - T54 -> 0 | U55: =U53 + T55 - U54 -> 0 | V55: =V53 + U55 - V54 -> 0
E56: Pre-forecast period flag - total | F56: =SUM(J55:V55) -> 8 | G56: periods
B58: First post-forecast period flag
E59: =E$44 -> Forecast end period flag | F59: =F$44 -> 0 | G59: flag | H59: 1 | I59: 0 | J59: 0 | K59: 0 | L59: 0 | M59: 0 | N59: 0 | O59: 0 | P59: 0 | Q59: 0 | R59: 0 | S59: 0 | T59: 0 | U59: 0 | V59: 1
E60: First post-forecast period flag | G60: flag | H60: =SUM(J60:V60) -> 0 | J60: =I59 -> 0 | K60: =J59 -> 0 | L60: 0 | M60: 0 | N60: 0 | O60: 0 | P60: 0 | Q60: =P59 -> 0 | R60: =Q59 -> 0 | S60: =R59 -> 0 | T60: =S59 -> 0 | U60: =T59 -> 0 | V60: =U59 -> 0
B62: Post-forecast period flag
E63: =E$60 -> First post-forecast period flag | F63: 0 | G63: flag | H63: 0 | I63: 0 | J63: 0 | K63: 0 | L63: 0 | M63: 0 | N63: 0 | O63: 0 | P63: 0 | Q63: 0 | R63: 0 | S63: 0 | T63: 0 | U63: 0 | V63: 0
E64: Post-forecast period flag | G64: flag | H64: =SUM(J64:V64) -> 0 | J64: =J63 + I64 -> 0 | K64: =K63 + J64 -> 0 | L64: 0 | M64: 0 | N64: 0 | O64: 0 | P64: 0 | Q64: =Q63 + P64 -> 0 | R64: =R63 + Q64 -> 0 | S64: =S63 + R64 -> 0 | T64: =T63 + S64 -> 0 | U64: =U63 + T64 -> 0 | V64: =V63 + U64 -> 0
E65: Post-forecast period - total | F65: =SUM(J64:V64) -> 0 | G65: periods
A68: MODEL TIMELINE
B70: Timeline label
E71: =E$14 -> 1st model column flag | F71: 0 | G71: flag | H71: 1 | I71: 0 | J71: 1 | K71: 0 | L71: 0 | M71: 0 | N71: 0 | O71: 0 | P71: 0 | Q71: 0 | R71: 0 | S71: 0 | T71: 0 | U71: 0 | V71: 0
E72: =E$34 -> Forecast start period flag | F72: =F$34 -> 0 | G72: flag | H72: 1 | I72: 0 | J72: 0 | K72: 0 | L72: 0 | M72: 0 | N72: 0 | O72: 0 | P72: 0 | Q72: 0 | R72: 1 | S72: 0 | T72: 0 | U72: 0 | V72: 0
E73: =E$60 -> First post-forecast period flag | F73: 0 | G73: flag | H73: 0 | I73: 0 | J73: 0 | K73: 0 | L73: 0 | M73: 0 | N73: 0 | O73: 0 | P73: 0 | Q73: 0 | R73: 0 | S73: 0 | T73: 0 | U73: 0 | V73: 0
E74: Timeline label counter | G74: counter | J74: =I74 + SUM(J71:J73) -> 1 | K74: 1 | L74: 1 | M74: 1 | N74: 1 | O74: 1 | P74: 1 | Q74: =P74 + SUM(Q71:Q73) -> 1 | R74: =Q74 + SUM(R71:R73) -> 2 | S74: =R74 + SUM(S71:S73) -> 2 | T74: =S74 + SUM(T71:T73) -> 2 | U74: =T74 + SUM(U71:U73) -> 2 | V74: =U74 + SUM(V71:V73) -> 2
E76: =Inputs!E$20 -> Pre - forecast period | F76: =Inputs!F$20 -> Pre-Fcst | G76: =Inputs!G$20 -> label
E77: =Inputs!E$21 -> Forecast period | F77: =Inputs!F$21 -> Forecast | G77: =Inputs!G$21 -> label
E78: =Inputs!E$22 -> Post - forecast period | F78: =Inputs!F$22 -> Post-Fcst | G78: =Inputs!G$22 -> label
E79: =E$74 -> Timeline label counter | F79: 0 | G79: counter | H79: 0 | I79: 0 | J79: 1 | K79: 1 | L79: 1 | M79: 1 | N79: 1 | O79: 1 | P79: 1 | Q79: 1 | R79: 2 | S79: 2 | T79: 2 | U79: 2 | V79: 2
E80: Timeline label | G80: label | J80: =INDEX($F76:$F78, J79) -> Pre-Fcst | K80: Pre-Fcst | L80: Pre-Fcst | M80: Pre-Fcst | N80: Pre-Fcst | O80: Pre-Fcst | P80: Pre-Fcst | Q80: =INDEX($F76:$F78, Q79) -> Pre-Fcst | R80: Forecast | S80: Forecast | T80: Forecast | U80: Forecast | V80: Forecast
B82: Modelling period check
E83: =E$55 -> Pre-forecast period flag | F83: =F$55 -> 0 | G83: flag | H83: 8 | I83: 0 | J83: 1 | K83: 1 | L83: 1 | M83: 1 | N83: 1 | O83: 1 | P83: 1 | Q83: 1 | R83: 0 | S83: 0 | T83: 0 | U83: 0 | V83: 0
E84: =E$49 -> Forecast period flag | F84: =F$49 -> 0 | G84: flag | H84: 5 | I84: 0 | J84: 0 | K84: 0 | L84: 0 | M84: 0 | N84: 0 | O84: 0 | P84: 0 | Q84: 0 | R84: 1 | S84: 1 | T84: 1 | U84: 1 | V84: 1
E85: =E$64 -> Post-forecast period flag | F85: 0 | G85: flag | H85: 0 | I85: 0 | J85: 0 | K85: 0 | L85: 0 | M85: 0 | N85: 0 | O85: 0 | P85: 0 | Q85: 0 | R85: 0 | S85: 0 | T85: 0 | U85: 0 | V85: 0
E86: No. of overlapping in flags | G86: # | H86: =SUM(J86:V86) -> 0 | J86: =MAX(0, SUM(J83:J85) - 1) -> 0 | K86: 0 | L86: 0 | M86: 0 | N86: 0 | O86: 0 | P86: 0 | Q86: =MAX(0, SUM(Q83:Q85) - 1) -> 0 | R86: 0 | S86: 0 | T86: 0 | U86: 0 | V86: 0
E87: Overlapping in periods - total | F87: =SUM(J86:V86) -> 0 | G87: periods
E89: =E$11 -> Model column total | F89: =F$11 -> 13 | G89: =G$11 -> columns
E90: =E$87 -> Overlapping in periods - total | F90: =F$87 -> 0 | G90: =G$87 -> periods
E91: =E$56 -> Pre-forecast period flag - total | F91: =F$56 -> 8 | G91: =G$56 -> periods
E92: =E$50 -> Total number of forecast periods | F92: =F$50 -> 5 | G92: =G$50 -> periods
E93: =E$65 -> Post-forecast period - total | F93: =F$65 -> 0 | G93: =G$65 -> periods
E94: Modelling period check | F94: =IF(SUM(F89:F90) - SUM(F91:F93) <> 0, 1, 0) -> 0 | G94: check
A97: FINANCIAL YEAR
E99: =Inputs!E$16 -> First modelling column financial year# | F99: =Inputs!F$16 -> 2013 | G99: =Inputs!G$16 -> year #
E100: =Inputs!E$17 -> Financial year end month number | F100: =Inputs!F$17 -> 3 | G100: =Inputs!G$17 -> month #
E101: =E$25 -> Model period ending | F101: 00:00:00 | G101: date | H101: 00:00:00 | I101: 00:00:00 | J101: 2013-03-31 | K101: 2014-03-31 | L101: 2015-03-31 | M101: 2016-03-31 | N101: 2017-03-31 | O101: 2018-03-31 | P101: 2019-03-31 | Q101: 2020-03-31 | R101: 2021-03-31 | S101: 2022-03-31 | T101: 2023-03-31 | U101: 2024-03-31 | V101: 2025-03-31
E102: =E$14 -> 1st model column flag | F102: 0 | G102: flag | H102: 1 | I102: 0 | J102: 1 | K102: 0 | L102: 0 | M102: 0 | N102: 0 | O102: 0 | P102: 0 | Q102: 0 | R102: 0 | S102: 0 | T102: 0 | U102: 0 | V102: 0
E103: Financial year ending | G103: year # | J103: =IF(J102 = 1, $F99, IF(J101 > (DATE(I103, $F100 + 1, 1) - 1), I103 + 1, I103)) -> 2013 | K103: 2014 | L103: 2015 | M103: 2016 | N103: 2017 | O103: 2018 | P103: 2019 | Q103: =IF(Q102 = 1, $F99, IF(Q101 > (DATE(P103, $F100 + 1, 1) - 1), P103 + 1, P103)) -> 2020 | R103: =IF(R102 = 1, $F99, IF(R101 > (DATE(Q103, $F100 + 1, 1) - 1), Q103 + 1, Q103)) -> 2021 | S103: =IF(S102 = 1, $F99, IF(S101 > (DATE(R103, $F100 + 1, 1) - 1), R103 + 1, R103)) -> 2022 | T103: =IF(T102 = 1, $F99, IF(T101 > (DATE(S103, $F100 + 1, 1) - 1), S103 + 1, S103)) -> 2023 | U103: =IF(U102 = 1, $F99, IF(U101 > (DATE(T103, $F100 + 1, 1) - 1), T103 + 1, T103)) -> 2024 | V103: =IF(V102 = 1, $F99, IF(V101 > (DATE(U103, $F100 + 1, 1) - 1), U103 + 1, U103)) -> 2025

Sheet Indexation
A1: =RIGHT(CELL("filename", $A$1), LEN(CELL("filename", $A$1)) - SEARCH("]", CELL("filename", $A$1))) -> Indexation
E2: =Time!E$25 -> Model period ending | J2: =Time!J$25 -> 2013-03-31 | K2: =Time!K$25 -> 2014-03-31 | L2: =Time!L$25 -> 2015-03-31 | M2: =Time!M$25 -> 2016-03-31 | N2: =Time!N$25 -> 2017-03-31 | O2: =Time!O$25 -> 2018-03-31 | P2: =Time!P$25 -> 2019-03-31 | Q2: =Time!Q$25 -> 2020-03-31 | R2: =Time!R$25 -> 2021-03-31 | S2: =Time!S$25 -> 2022-03-31 | T2: =Time!T$25 -> 2023-03-31 | U2: =Time!U$25 -> 2024-03-31 | V2: =Time!V$25 -> 2025-03-31
E3: =Time!E$80 -> Timeline label | J3: =Time!J$80 -> Pre-Fcst | K3: =Time!K$80 -> Pre-Fcst | L3: =Time!L$80 -> Pre-Fcst | M3: =Time!M$80 -> Pre-Fcst | N3: =Time!N$80 -> Pre-Fcst | O3: =Time!O$80 -> Pre-Fcst | P3: =Time!P$80 -> Pre-Fcst | Q3: =Time!Q$80 -> Pre-Fcst | R3: =Time!R$80 -> Forecast | S3: =Time!S$80 -> Forecast | T3: =Time!T$80 -> Forecast | U3: =Time!U$80 -> Forecast | V3: =Time!V$80 -> Forecast
E4: =Time!E$103 -> Financial year ending | J4: =Time!J$103 -> 2013 | K4: =Time!K$103 -> 2014 | L4: =Time!L$103 -> 2015 | M4: =Time!M$103 -> 2016 | N4: =Time!N$103 -> 2017 | O4: =Time!O$103 -> 2018 | P4: =Time!P$103 -> 2019 | Q4: =Time!Q$103 -> 2020 | R4: =Time!R$103 -> 2021 | S4: =Time!S$103 -> 2022 | T4: =Time!T$103 -> 2023 | U4: =Time!U$103 -> 2024 | V4: =Time!V$103 -> 2025
E5: =Time!E$10 -> Model column counter | F5: Constant | G5: Unit | H5: Total | J5: =Time!J$10 -> 1 | K5: =Time!K$10 -> 2 | L5: =Time!L$10 -> 3 | M5: =Time!M$10 -> 4 | N5: =Time!N$10 -> 5 | O5: =Time!O$10 -> 6 | P5: =Time!P$10 -> 7 | Q5: =Time!Q$10 -> 8 | R5: =Time!R$10 -> 9 | S5: =Time!S$10 -> 10 | T5: =Time!T$10 -> 11 | U5: =Time!U$10 -> 12 | V5: =Time!V$10 -> 13
A7: CPIH INDEXATION
B9: CPIH: Index value series
E10: =Inputs!E$35 -> Consumer Price Index for April | F10: =Inputs!F$35 -> 0 | G10: =Inputs!G$35 -> index | H10: =Inputs!H$35 -> 0 | I10: =Inputs!I$35 -> 0 | J10: =Inputs!J$35 -> 95.9 | K10: =Inputs!K$35 -> 98 | L10: =Inputs!L$35 -> 99.6 | M10: =Inputs!M$35 -> 99.9 | N10: =Inputs!N$35 -> 100.6 | O10: =Inputs!O$35 -> 103.2 | P10: =Inputs!P$35 -> 105.5 | Q10: =Inputs!Q$35 -> 108 | R10: =Inputs!R$35 -> 0 | S10: =Inputs!S$35 -> 0 | T10: =Inputs!T$35 -> 0 | U10: =Inputs!U$35 -> 0 | V10: =Inputs!V$35 -> 0
E11: =Inputs!E$36 -> Consumer Price Index for May | F11: =Inputs!F$36 -> 0 | G11: =Inputs!G$36 -> index | H11: =Inputs!H$36 -> 0 | I11: =Inputs!I$36 -> 0 | J11: =Inputs!J$36 -> 95.9 | K11: =Inputs!K$36 -> 98.2 | L11: =Inputs!L$36 -> 99.6 | M11: =Inputs!M$36 -> 100.1 | N11: =Inputs!N$36 -> 100.8 | O11: =Inputs!O$36 -> 103.5 | P11: =Inputs!P$36 -> 105.9 | Q11: =Inputs!Q$36 -> 108.2 | R11: =Inputs!R$36 -> 0 | S11: =Inputs!S$36 -> 0 | T11: =Inputs!T$36 -> 0 | U11: =Inputs!U$36 -> 0 | V11: =Inputs!V$36 -> 0
E12: =Inputs!E$37 -> Consumer Price Index for June | F12: =Inputs!F$37 -> 0 | G12: =Inputs!G$37 -> index | H12: =Inputs!H$37 -> 0 | I12: =Inputs!I$37 -> 0 | J12: =Inputs!J$37 -> 95.6 | K12: =Inputs!K$37 -> 98 | L12: =Inputs!L$37 -> 99.8 | M12: =Inputs!M$37 -> 100.1 | N12: =Inputs!N$37 -> 101 | O12: =Inputs!O$37 -> 103.5 | P12: =Inputs!P$37 -> 106.1 | Q12: =Inputs!Q$37 -> 108.4 | R12: =Inputs!R$37 -> 0 | S12: =Inputs!S$37 -> 0 | T12: =Inputs!T$37 -> 0 | U12: =Inputs!U$37 -> 0 | V12: =Inputs!V$37 -> 0
E13: =Inputs!E$38 -> Consumer Price Index for July | F13: =Inputs!F$38 -> 0 | G13: =Inputs!G$38 -> index | H13: =Inputs!H$38 -> 0 | I13: =Inputs!I$38 -> 0 | J13: =Inputs!J$38 -> 95.7 | K13: =Inputs!K$38 -> 98 | L13: =Inputs!L$38 -> 99.6 | M13: =Inputs!M$38 -> 100 | N13: =Inputs!N$38 -> 100.9 | O13: =Inputs!O$38 -> 103.5 | P13: =Inputs!P$38 -> 106.1 | Q13: =Inputs!Q$38 -> 108.4 | R13: =Inputs!R$38 -> 0 | S13: =Inputs!S$38 -> 0 | T13: =Inputs!T$38 -> 0 | U13: =Inputs!U$38 -> 0 | V13: =Inputs!V$38 -> 0
E14: =Inputs!E$39 -> Consumer Price Index for August | F14: =Inputs!F$39 -> 0 | G14: =Inputs!G$39 -> index | H14: =Inputs!H$39 -> 0 | I14: =Inputs!I$39 -> 0 | J14: =Inputs!J$39 -> 96.1 | K14: =Inputs!K$39 -> 98.4 | L14: =Inputs!L$39 -> 99.9 | M14: =Inputs!M$39 -> 100.3 | N14: =Inputs!N$39 -> 101.2 | O14: =Inputs!O$39 -> 104 | P14: =Inputs!P$39 -> 106.4 | Q14: =Inputs!Q$39 -> 108.8 | R14: =Inputs!R$39 -> 0 | S14: =Inputs!S$39 -> 0 | T14: =Inputs!T$39 -> 0 | U14: =Inputs!U$39 -> 0 | V14: =Inputs!V$39 -> 0
E15: =Inputs!E$40 -> Consumer Price Index for September | F15: =Inputs!F$40 -> 0 | G15: =Inputs!G$40 -> index | H15: =Inputs!H$40 -> 0 | I15: =Inputs!I$40 -> 0 | J15: =Inputs!J$40 -> 96.4 | K15: =Inputs!K$40 -> 98.7 | L15: =Inputs!L$40 -> 100 | M15: =Inputs!M$40 -> 100.2 | N15: =Inputs!N$40 -> 101.5 | O15: =Inputs!O$40 -> 104.3 | P15: =Inputs!P$40 -> 106.7 | Q15: =Inputs!Q$40 -> 109 | R15: =Inputs!R$40 -> 0 | S15: =Inputs!S$40 -> 0 | T15: =Inputs!T$40 -> 0 | U15: =Inputs!U$40 -> 0 | V15: =Inputs!V$40 -> 0
E16: =Inputs!E$41 -> Consumer Price Index for October | F16: =Inputs!F$41 -> 0 | G16: =Inputs!G$41 -> index | H16: =Inputs!H$41 -> 0 | I16: =Inputs!I$41 -> 0 | J16: =Inputs!J$41 -> 96.8 | K16: =Inputs!K$41 -> 98.8 | L16: =Inputs!L$41 -> 100.1 | M16: =Inputs!M$41 -> 100.3 | N16: =Inputs!N$41 -> 101.6 | O16: =Inputs!O$41 -> 104.4 | P16: =Inputs!P$41 -> 106.8 | Q16: =Inputs!Q$41 -> 109.1 | R16: =Inputs!R$41 -> 0 | S16: =Inputs!S$41 -> 0 | T16: =Inputs!T$41 -> 0 | U16: =Inputs!U$41 -> 0 | V16: =Inputs!V$41 -> 0
E17: =Inputs!E$42 -> Consumer Price Index for November | F17: =Inputs!F$42 -> 0 | G17: =Inputs!G$42 -> index | H17: =Inputs!H$42 -> 0 | I17: =Inputs!I$42 -> 0 | J17: =Inputs!J$42 -> 97 | K17: =Inputs!K$42 -> 98.8 | L17: =Inputs!L$42 -> 99.9 | M17: =Inputs!M$42 -> 100.3 | N17: =Inputs!N$42 -> 101.8 | O17: =Inputs!O$42 -> 104.7 | P17: =Inputs!P$42 -> 106.9 | Q17: =Inputs!Q$42 -> 109 | R17: =Inputs!R$42 -> 0 | S17: =Inputs!S$42 -> 0 | T17: =Inputs!T$42 -> 0 | U17: =Inputs!U$42 -> 0 | V17: =Inputs!V$42 -> 0
E18: =Inputs!E$43 -> Consumer Price Index for December | F18: =Inputs!F$43 -> 0 | G18: =Inputs!G$43 -> index | H18: =Inputs!H$43 -> 0 | I18: =Inputs!I$43 -> 0 | J18: =Inputs!J$43 -> 97.3 | K18: =Inputs!K$43 -> 99.2 | L18: =Inputs!L$43 -> 99.9 | M18: =Inputs!M$43 -> 100.4 | N18: =Inputs!N$43 -> 102.2 | O18: =Inputs!O$43 -> 105 | P18: =Inputs!P$43 -> 107.3 | Q18: =Inputs!Q$43 -> 109.4 | R18: =Inputs!R$43 -> 0 | S18: =Inputs!S$43 -> 0 | T18: =Inputs!T$43 -> 0 | U18: =Inputs!U$43 -> 0 | V18: =Inputs!V$43 -> 0
E19: =Inputs!E$44 -> Consumer Price Index for January | F19: =Inputs!F$44 -> 0 | G19: =Inputs!G$44 -> index | H19: =Inputs!H$44 -> 0 | I19: =Inputs!I$44 -> 0 | J19: =Inputs!J$44 -> 97 | K19: =Inputs!K$44 -> 98.7 | L19: =Inputs!L$44 -> 99.2 | M19: =Inputs!M$44 -> 99.9 | N19: =Inputs!N$44 -> 101.8 | O19: =Inputs!O$44 -> 104.5 | P19: =Inputs!P$44 -> 106.9 | Q19: =Inputs!Q$44 -> 109 | R19: =Inputs!R$44 -> 0 | S19: =Inputs!S$44 -> 0 | T19: =Inputs!T$44 -> 0 | U19: =Inputs!U$44 -> 0 | V19: =Inputs!V$44 -> 0
E20: =Inputs!E$45 -> Consumer Price Index for February | F20: =Inputs!F$45 -> 0 | G20: =Inputs!G$45 -> index | H20: =Inputs!H$45 -> 0 | I20: =Inputs!I$45 -> 0 | J20: =Inputs!J$45 -> 97.5 | K20: =Inputs!K$45 -> 99.1 | L20: =Inputs!L$45 -> 99.5 | M20: =Inputs!M$45 -> 100.1 | N20: =Inputs!N$45 -> 102.4 | O20: =Inputs!O$45 -> 104.9 | P20: =Inputs!P$45 -> 107.3 | Q20: =Inputs!Q$45 -> 109.4 | R20: =Inputs!R$45 -> 0 | S20: =Inputs!S$45 -> 0 | T20: =Inputs!T$45 -> 0 | U20: =Inputs!U$45 -> 0 | V20: =Inputs!V$45 -> 0
E21: =Inputs!E$46 -> Consumer Price Index for March | F21: =Inputs!F$46 -> 0 | G21: =Inputs!G$46 -> index | H21: =Inputs!H$46 -> 0 | I21: =Inputs!I$46 -> 0 | J21: =Inputs!J$46 -> 97.8 | K21: =Inputs!K$46 -> 99.3 | L21: =Inputs!L$46 -> 99.6 | M21: =Inputs!M$46 -> 100.4 | N21: =Inputs!N$46 -> 102.7 | O21: =Inputs!O$46 -> 105.1 | P21: =Inputs!P$46 -> 107.5 | Q21: =Inputs!Q$46 -> 109.7 | R21: =Inputs!R$46 -> 0 | S21: =Inputs!S$46 -> 0 | T21: =Inputs!T$46 -> 0 | U21: =Inputs!U$46 -> 0 | V21: =Inputs!V$46 -> 0
E23: =Inputs!E$48 -> CPIH: Assumed percentage increase for unpopulated monthly values | F23: =Inputs!F$48 -> 0 | G23: =Inputs!G$48 -> % | H23: =Inputs!H$48 -> 0 | I23: =Inputs!I$48 -> 0 | J23: =Inputs!J$48 -> 0 | K23: =Inputs!K$48 -> 0 | L23: =Inputs!L$48 -> 0 | M23: =Inputs!M$48 -> 0 | N23: =Inputs!N$48 -> 0 | O23: =Inputs!O$48 -> 0 | P23: =Inputs!P$48 -> 0 | Q23: =Inputs!Q$48 -> 0 | R23: =Inputs!R$48 -> 0 | S23: =Inputs!S$48 -> 0 | T23: =Inputs!T$48 -> 0 | U23: =Inputs!U$48 -> 0 | V23: =Inputs!V$48 -> 0
E25: CPIH: April - index | G25: index | J25: =IF(J10 > 0, J10, I25 * (1 + J$23)) -> 95.9 | K25: =IF(K10 > 0, K10, J25 * (1 + K$23)) -> 98 | L25: 99.6 | M25: 99.9 | N25: 100.6 | O25: 103.2 | P25: 105.5 | Q25: =IF(Q10 > 0, Q10, P25 * (1 + Q$23)) -> 108 | R25: =IF(R10 > 0, R10, Q25 * (1 + R$23)) -> 108 | S25: =IF(S10 > 0, S10, R25 * (1 + S$23)) -> 108 | T25: =IF(T10 > 0, T10, S25 * (1 + T$23)) -> 108 | U25: =IF(U10 > 0, U10, T25 * (1 + U$23)) -> 108 | V25: =IF(V10 > 0, V10, U25 * (1 + V$23)) -> 108
E26: CPIH: May - index | G26: index | J26: =IF(J11 > 0, J11, I26 * (1 + J$23)) -> 95.9 | K26: 98.2 | L26: 99.6 | M26: 100.1 | N26: 100.8 | O26: 103.5 | P26: 105.9 | Q26: 108.2 | R26: 108.2 | S26: 108.2 | T26: 108.2 | U26: 108.2 | V26: 108.2
E27: CPIH: June - index | G27: index | J27: 95.6 | K27: 98 | L27: 99.8 | M27: 100.1 | N27: 101 | O27: 103.5 | P27: 106.1 | Q27: 108.4 | R27: 108.4 | S27: 108.4 | T27: 108.4 | U27: 108.4 | V27: 108.4
E28: CPIH: July - index | G28: index | J28: 95.7 | K28: 98 | L28: 99.6 | M28: 100 | N28: 100.9 | O28: 103.5 | P28: 106.1 | Q28: 108.4 | R28: 108.4 | S28: 108.4 | T28: 108.4 | U28: 108.4 | V28: 108.4
E29: CPIH: August - index | G29: index | J29: 96.1 | K29: 98.4 | L29: 99.9 | M29: 100.3 | N29: 101.2 | O29: 104 | P29: 106.4 | Q29: 108.8 | R29: 108.8 | S29: 108.8 | T29: 108.8 | U29: 108.8 | V29: 108.8
E30: CPIH: September- index | G30: index | J30: 96.4 | K30: 98.7 | L30: 100 | M30: 100.2 | N30: 101.5 | O30: 104.3 | P30: 106.7 | Q30: 109 | R30: 109 | S30: 109 | T30: 109 | U30: 109 | V30: 109
E31: CPIH: October - index | G31: index | J31: 96.8 | K31: 98.8 | L31: 100.1 | M31: 100.3 | N31: 101.6 | O31: 104.4 | P31: 106.8 | Q31: 109.1 | R31: 109.1 | S31: 109.1 | T31: 109.1 | U31: 109.1 | V31: 109.1
E32: CPIH: November - index | G32: index | J32: 97 | K32: 98.8 | L32: 99.9 | M32: 100.3 | N32: 101.8 | O32: 104.7 | P32: 106.9 | Q32: 109 | R32: 109 | S32: 109 | T32: 109 | U32: 109 | V32: 109
E33: CPIH: December - index | G33: index | J33: 97.3 | K33: 99.2 | L33: 99.9 | M33: 100.4 | N33: 102.2 | O33: 105 | P33: 107.3 | Q33: 109.4 | R33: 109.4 | S33: 109.4 | T33: 109.4 | U33: 109.4 | V33: 109.4
E34: CPIH: January - index | G34: index | J34: 97 | K34: 98.7 | L34: 99.2 | M34: 99.9 | N34: 101.8 | O34: 104.5 | P34: 106.9 | Q34: 109 | R34: 109 | S34: 109 | T34: 109 | U34: 109 | V34: 109
E35: CPIH: February - index | G35: index | J35: 97.5 | K35: 99.1 | L35: 99.5 | M35: 100.1 | N35: 102.4 | O35: 104.9 | P35: 107.3 | Q35: 109.4 | R35: 109.4 | S35: 109.4 | T35: 109.4 | U35: 109.4 | V35: 109.4
E36: CPIH: March - index | G36: index | J36: 97.8 | K36: 99.3 | L36: 99.6 | M36: 100.4 | N36: 102.7 | O36: 105.1 | P36: 107.5 | Q36: 109.7 | R36: 109.7 | S36: 109.7 | T36: 109.7 | U36: 109.7 | V36: 109.7
E38: CPIH: Financial year average - index | G38: index | J38: =AVERAGE(J25:J36) -> 96.58333333 | K38: 98.6 | L38: 99.725 | M38: 100.1666667 | N38: 101.5416667 | O38: 104.2166667 | P38: 106.6166667 | Q38: =AVERAGE(Q25:Q36) -> 108.8666667 | R38: 108.8666667 | S38: 108.8666667 | T38: 108.8666667 | U38: 108.8666667 | V38: 108.8666667
A41: RPI INDEXATION
B43: RPI: Index value series
E44: =Inputs!E$52 -> Retail Price Index for April | F44: =Inputs!F$52 -> 0 | G44: =Inputs!G$52 -> index | H44: =Inputs!H$52 -> 0 | I44: =Inputs!I$52 -> 0 | J44: =Inputs!J$52 -> 242.5 | K44: =Inputs!K$52 -> 249.5 | L44: =Inputs!L$52 -> 255.7 | M44: =Inputs!M$52 -> 258 | N44: =Inputs!N$52 -> 261.4 | O44: =Inputs!O$52 -> 270.6 | P44: =Inputs!P$52 -> 279.7 | Q44: =Inputs!Q$52 -> 288.3 | R44: =Inputs!R$52 -> 0 | S44: =Inputs!S$52 -> 0 | T44: =Inputs!T$52 -> 0 | U44: =Inputs!U$52 -> 0 | V44: =Inputs!V$52 -> 0
E45: =Inputs!E$53 -> Retail Price Index for May | F45: =Inputs!F$53 -> 0 | G45: =Inputs!G$53 -> index | H45: =Inputs!H$53 -> 0 | I45: =Inputs!I$53 -> 0 | J45: =Inputs!J$53 -> 242.4 | K45: =Inputs!K$53 -> 250 | L45: =Inputs!L$53 -> 255.9 | M45: =Inputs!M$53 -> 258.5 | N45: =Inputs!N$53 -> 262.1 | O45: =Inputs!O$53 -> 271.7 | P45: =Inputs!P$53 -> 280.7 | Q45: =Inputs!Q$53 -> 289.1 | R45: =Inputs!R$53 -> 0 | S45: =Inputs!S$53 -> 0 | T45: =Inputs!T$53 -> 0 | U45: =Inputs!U$53 -> 0 | V45: =Inputs!V$53 -> 0
E46: =Inputs!E$54 -> Retail Price Index for June | F46: =Inputs!F$54 -> 0 | G46: =Inputs!G$54 -> index | H46: =Inputs!H$54 -> 0 | I46: =Inputs!I$54 -> 0 | J46: =Inputs!J$54 -> 241.8 | K46: =Inputs!K$54 -> 249.7 | L46: =Inputs!L$54 -> 256.3 | M46: =Inputs!M$54 -> 258.9 | N46: =Inputs!N$54 -> 263.1 | O46: =Inputs!O$54 -> 272.3 | P46: =Inputs!P$54 -> 281.9 | Q46: =Inputs!Q$54 -> 290.1 | R46: =Inputs!R$54 -> 0 | S46: =Inputs!S$54 -> 0 | T46: =Inputs!T$54 -> 0 | U46: =Inputs!U$54 -> 0 | V46: =Inputs!V$54 -> 0
E47: =Inputs!E$55 -> Retail Price Index for July | F47: =Inputs!F$55 -> 0 | G47: =Inputs!G$55 -> index | H47: =Inputs!H$55 -> 0 | I47: =Inputs!I$55 -> 0 | J47: =Inputs!J$55 -> 242.1 | K47: =Inputs!K$55 -> 249.7 | L47: =Inputs!L$55 -> 256 | M47: =Inputs!M$55 -> 258.6 | N47: =Inputs!N$55 -> 263.4 | O47: =Inputs!O$55 -> 272.9 | P47: =Inputs!P$55 -> 282.1 | Q47: =Inputs!Q$55 -> 290.5 | R47: =Inputs!R$55 -> 0 | S47: =Inputs!S$55 -> 0 | T47: =Inputs!T$55 -> 0 | U47: =Inputs!U$55 -> 0 | V47: =Inputs!V$55 -> 0
E48: =Inputs!E$56 -> Retail Price Index for August | F48: =Inputs!F$56 -> 0 | G48: =Inputs!G$56 -> index | H48: =Inputs!H$56 -> 0 | I48: =Inputs!I$56 -> 0 | J48: =Inputs!J$56 -> 243 | K48: =Inputs!K$56 -> 251 | L48: =Inputs!L$56 -> 257 | M48: =Inputs!M$56 -> 259.8 | N48: =Inputs!N$56 -> 264.4 | O48: =Inputs!O$56 -> 274.7 | P48: =Inputs!P$56 -> 283.6 | Q48: =Inputs!Q$56 -> 292 | R48: =Inputs!R$56 -> 0 | S48: =Inputs!S$56 -> 0 | T48: =Inputs!T$56 -> 0 | U48: =Inputs!U$56 -> 0 | V48: =Inputs!V$56 -> 0
E49: =Inputs!E$57 -> Retail Price Index for September | F49: =Inputs!F$57 -> 0 | G49: =Inputs!G$57 -> index | H49: =Inputs!H$57 -> 0 | I49: =Inputs!I$57 -> 0 | J49: =Inputs!J$57 -> 244.2 | K49: =Inputs!K$57 -> 251.9 | L49: =Inputs!L$57 -> 257.6 | M49: =Inputs!M$57 -> 259.6 | N49: =Inputs!N$57 -> 264.9 | O49: =Inputs!O$57 -> 275.1 | P49: =Inputs!P$57 -> 283.9 | Q49: =Inputs!Q$57 -> 292.3 | R49: =Inputs!R$57 -> 0 | S49: =Inputs!S$57 -> 0 | T49: =Inputs!T$57 -> 0 | U49: =Inputs!U$57 -> 0 | V49: =Inputs!V$57 -> 0
E50: =Inputs!E$58 -> Retail Price Index for October | F50: =Inputs!F$58 -> 0 | G50: =Inputs!G$58 -> index | H50: =Inputs!H$58 -> 0 | I50: =Inputs!I$58 -> 0 | J50: =Inputs!J$58 -> 245.6 | K50: =Inputs!K$58 -> 251.9 | L50: =Inputs!L$58 -> 257.7 | M50: =Inputs!M$58 -> 259.5 | N50: =Inputs!N$58 -> 264.8 | O50: =Inputs!O$58 -> 275.3 | P50: =Inputs!P$58 -> 284.1 | Q50: =Inputs!Q$58 -> 292.5 | R50: =Inputs!R$58 -> 0 | S50: =Inputs!S$58 -> 0 | T50: =Inputs!T$58 -> 0 | U50: =Inputs!U$58 -> 0 | V50: =Inputs!V$58 -> 0
E51: =Inputs!E$59 -> Retail Price Index for November | F51: =Inputs!F$59 -> 0 | G51: =Inputs!G$59 -> index | H51: =Inputs!H$59 -> 0 | I51: =Inputs!I$59 -> 0 | J51: =Inputs!J$59 -> 245.6 | K51: =Inputs!K$59 -> 252.1 | L51: =Inputs!L$59 -> 257.1 | M51: =Inputs!M$59 -> 259.8 | N51: =Inputs!N$59 -> 265.5 | O51: =Inputs!O$59 -> 275.8 | P51: =Inputs!P$59 -> 284.3 | Q51: =Inputs!Q$59 -> 292.8 | R51: =Inputs!R$59 -> 0 | S51: =Inputs!S$59 -> 0 | T51: =Inputs!T$59 -> 0 | U51: =Inputs!U$59 -> 0 | V51: =Inputs!V$59 -> 0
E52: =Inputs!E$60 -> Retail Price Index for December | F52: =Inputs!F$60 -> 0 | G52: =Inputs!G$60 -> index | H52: =Inputs!H$60 -> 0 | I52: =Inputs!I$60 -> 0 | J52: =Inputs!J$60 -> 246.8 | K52: =Inputs!K$60 -> 253.4 | L52: =Inputs!L$60 -> 257.5 | M52: =Inputs!M$60 -> 260.6 | N52: =Inputs!N$60 -> 267.1 | O52: =Inputs!O$60 -> 278.1 | P52: =Inputs!P$60 -> 286.6 | Q52: =Inputs!Q$60 -> 295.2 | R52: =Inputs!R$60 -> 0 | S52: =Inputs!S$60 -> 0 | T52: =Inputs!T$60 -> 0 | U52: =Inputs!U$60 -> 0 | V52: =Inputs!V$60 -> 0
E53: =Inputs!E$61 -> Retail Price Index for January | F53: =Inputs!F$61 -> 0 | G53: =Inputs!G$61 -> index | H53: =Inputs!H$61 -> 0 | I53: =Inputs!I$61 -> 0 | J53: =Inputs!J$61 -> 245.8 | K53: =Inputs!K$61 -> 252.6 | L53: =Inputs!L$61 -> 255.4 | M53: =Inputs!M$61 -> 258.8 | N53: =Inputs!N$61 -> 265.5 | O53: =Inputs!O$61 -> 276 | P53: =Inputs!P$61 -> 284.4 | Q53: =Inputs!Q$61 -> 292.9 | R53: =Inputs!R$61 -> 0 | S53: =Inputs!S$61 -> 0 | T53: =Inputs!T$61 -> 0 | U53: =Inputs!U$61 -> 0 | V53: =Inputs!V$61 -> 0
E54: =Inputs!E$62 -> Retail Price Index for February | F54: =Inputs!F$62 -> 0 | G54: =Inputs!G$62 -> index | H54: =Inputs!H$62 -> 0 | I54: =Inputs!I$62 -> 0 | J54: =Inputs!J$62 -> 247.6 | K54: =Inputs!K$62 -> 254.2 | L54: =Inputs!L$62 -> 256.7 | M54: =Inputs!M$62 -> 260 | N54: =Inputs!N$62 -> 268.4 | O54: =Inputs!O$62 -> 278.1 | P54: =Inputs!P$62 -> 286.6 | Q54: =Inputs!Q$62 -> 295.2 | R54: =Inputs!R$62 -> 0 | S54: =Inputs!S$62 -> 0 | T54: =Inputs!T$62 -> 0 | U54: =Inputs!U$62 -> 0 | V54: =Inputs!V$62 -> 0
E55: =Inputs!E$63 -> Retail Price Index for March | F55: =Inputs!F$63 -> 0 | G55: =Inputs!G$63 -> index | H55: =Inputs!H$63 -> 0 | I55: =Inputs!I$63 -> 0 | J55: =Inputs!J$63 -> 248.7 | K55: =Inputs!K$63 -> 254.8 | L55: =Inputs!L$63 -> 257.1 | M55: =Inputs!M$63 -> 261.1 | N55: =Inputs!N$63 -> 269.3 | O55: =Inputs!O$63 -> 278.3 | P55: =Inputs!P$63 -> 287.1 | Q55: =Inputs!Q$63 -> 295.7 | R55: =Inputs!R$63 -> 0 | S55: =Inputs!S$63 -> 0 | T55: =Inputs!T$63 -> 0 | U55: =Inputs!U$63 -> 0 | V55: =Inputs!V$63 -> 0
E57: =Inputs!E$65 -> RPI: Assumed percentage increase for unpopulated monthly values | F57: =Inputs!F$65 -> 0 | G57: =Inputs!G$65 -> % | H57: =Inputs!H$65 -> 0 | I57: =Inputs!I$65 -> 0 | J57: =Inputs!J$65 -> 0 | K57: =Inputs!K$65 -> 0 | L57: =Inputs!L$65 -> 0 | M57: =Inputs!M$65 -> 0 | N57: =Inputs!N$65 -> 0 | O57: =Inputs!O$65 -> 0 | P57: =Inputs!P$65 -> 0 | Q57: =Inputs!Q$65 -> 0 | R57: =Inputs!R$65 -> 0 | S57: =Inputs!S$65 -> 0 | T57: =Inputs!T$65 -> 0 | U57: =Inputs!U$65 -> 0 | V57: =Inputs!V$65 -> 0
E59: RPI: April - index | G59: index | J59: =IF(J44 > 0, J44, I59 * (1 + J$57)) -> 242.5 | K59: =IF(K44 > 0, K44, J59 * (1 + K$57)) -> 249.5 | L59: 255.7 | M59: 258 | N59: 261.4 | O59: 270.6 | P59: 279.7 | Q59: =IF(Q44 > 0, Q44, P59 * (1 + Q$57)) -> 288.3 | R59: =IF(R44 > 0, R44, Q59 * (1 + R$57)) -> 288.3 | S59: =IF(S44 > 0, S44, R59 * (1 + S$57)) -> 288.3 | T59: =IF(T44 > 0, T44, S59 * (1 + T$57)) -> 288.3 | U59: =IF(U44 > 0, U44, T59 * (1 + U$57)) -> 288.3 | V59: =IF(V44 > 0, V44, U59 * (1 + V$57)) -> 288.3
E60: RPI: May - index | G60: index | J60: =IF(J45 > 0, J45, I60 * (1 + J$57)) -> 242.4 | K60: 250 | L60: 255.9 | M60: 258.5 | N60: 262.1 | O60: 271.7 | P60: 280.7 | Q60: 289.1 | R60: 289.1 | S60: 289.1 | T60: 289.1 | U60: 289.1 | V60: 289.1
E61: RPI: June - index | G61: index | J61: =IF(J46 > 0, J46, I61 * (1 + J$57)) -> 241.8 | K61: 249.7 | L61: 256.3 | M61: 258.9 | N61: 263.1 | O61: 272.3 | P61: 281.9 | Q61: 290.1 | R61: 290.1 | S61: 290.1 | T61: 290.1 | U61: 290.1 | V61: 290.1
E62: RPI: July - index | G62: index | J62: =IF(J47 > 0, J47, I62 * (1 + J$57)) -> 242.1 | K62: 249.7 | L62: 256 | M62: 258.6 | N62: 263.4 | O62: 272.9 | P62: 282.1 | Q62: 290.5 | R62: 290.5 | S62: 290.5 | T62: 290.5 | U62: 290.5 | V62: 290.5
E63: RPI: August - index | G63: index | J63: =IF(J48 > 0, J48, I63 * (1 + J$57)) -> 243 | K63: 251 | L63: 257 | M63: 259.8 | N63: 264.4 | O63: 274.7 | P63: 283.6 | Q63: 292 | R63: 292 | S63: 292 | T63: 292 | U63: 292 | V63: 292
E64: RPI: September- index | G64: index | J64: =IF(J49 > 0, J49, I64 * (1 + J$57)) -> 244.2 | K64: 251.9 | L64: 257.6 | M64: 259.6 | N64: 264.9 | O64: 275.1 | P64: 283.9 | Q64: 292.3 | R64: 292.3 | S64: 292.3 | T64: 292.3 | U64: 292.3 | V64: 292.3
E65: RPI: October - index | G65: index | J65: =IF(J50 > 0, J50, I65 * (1 + J$57)) -> 245.6 | K65: 251.9 | L65: 257.7 | M65: 259.5 | N65: 264.8 | O65: 275.3 | P65: 284.1 | Q65: 292.5 | R65: 292.5 | S65: 292.5 | T65: 292.5 | U65: 292.5 | V65: 292.5
E66: RPI: November - index | G66: index | J66: =IF(J51 > 0, J51, I66 * (1 + J$57)) -> 245.6 | K66: 252.1 | L66: 257.1 | M66: 259.8 | N66: 265.5 | O66: 275.8 | P66: 284.3 | Q66: 292.8 | R66: 292.8 | S66: 292.8 | T66: 292.8 | U66: 292.8 | V66: 292.8
E67: RPI: December - index | G67: index | J67: =IF(J52 > 0, J52, I67 * (1 + J$57)) -> 246.8 | K67: 253.4 | L67: 257.5 | M67: 260.6 | N67: 267.1 | O67: 278.1 | P67: 286.6 | Q67: 295.2 | R67: 295.2 | S67: 295.2 | T67: 295.2 | U67: 295.2 | V67: 295.2
E68: RPI: January - index | G68: index | J68: =IF(J53 > 0, J53, I68 * (1 + J$57)) -> 245.8 | K68: 252.6 | L68: 255.4 | M68: 258.8 | N68: 265.5 | O68: 276 | P68: 284.4 | Q68: 292.9 | R68: 292.9 | S68: 292.9 | T68: 292.9 | U68: 292.9 | V68: 292.9
E69: RPI: February - index | G69: index | J69: =IF(J54 > 0, J54, I69 * (1 + J$57)) -> 247.6 | K69: 254.2 | L69: 256.7 | M69: 260 | N69: 268.4 | O69: 278.1 | P69: 286.6 | Q69: 295.2 | R69: 295.2 | S69: 295.2 | T69: 295.2 | U69: 295.2 | V69: 295.2
E70: RPI: March - index | G70: index | J70: =IF(J55 > 0, J55, I70 * (1 + J$57)) -> 248.7 | K70: 254.8 | L70: 257.1 | M70: 261.1 | N70: 269.3 | O70: 278.3 | P70: 287.1 | Q70: 295.7 | R70: 295.7 | S70: 295.7 | T70: 295.7 | U70: 295.7 | V70: 295.7
E72: RPI: Financial year average - index | G72: index | J72: =AVERAGE(J59:J70) -> 244.675 | K72: 251.7333333 | L72: 256.6666667 | M72: 259.4333333 | N72: 264.9916667 | O72: 274.9083333 | P72: 283.75 | Q72: =AVERAGE(Q59:Q70) -> 292.2166667 | R72: 292.2166667 | S72: 292.2166667 | T72: 292.2166667 | U72: 292.2166667 | V72: 292.2166667
A75: INFLATION
B77: ="Inflation from " & F78 & " FYA to " & F79 & " FYE - RPI" -> Inflation from 2013 FYA to 2020 FYE - RPI
E78: =Inputs!E$69 -> Year reference for FYA base price 1 | F78: =Inputs!F$69 -> 2013 | G78: =Inputs!G$69 -> year #
E79: =Inputs!E$73 -> Year reference for FYE end price | F79: =Inputs!F$73 -> 2020 | G79: =Inputs!G$73 -> year #
E80: =E$72 -> RPI: Financial year average - index | F80: 0 | G80: index | H80: 0 | I80: 0 | J80: 244.675 | K80: 251.7333333 | L80: 256.6666667 | M80: 259.4333333 | N80: 264.9916667 | O80: 274.9083333 | P80: 283.75 | Q80: 292.2166667 | R80: 292.2166667 | S80: 292.2166667 | T80: 292.2166667 | U80: 292.2166667 | V80: 292.2166667
E81: =E$70 -> RPI: March - index | F81: 0 | G81: index | H81: 0 | I81: 0 | J81: 248.7 | K81: 254.8 | L81: 257.1 | M81: 261.1 | N81: 269.3 | O81: 278.3 | P81: 287.1 | Q81: 295.7 | R81: 295.7 | S81: 295.7 | T81: 295.7 | U81: 295.7 | V81: 295.7
E82: ="RPI inflate from " & F78 & " FYA to " & F79 & " FYE" -> RPI inflate from 2013 FYA to 2020 FYE | F82: =INDEX($J81:$V81, 1, MATCH($F79,$J$4:$V$4)) / INDEX($J80:$V80, 1, MATCH($F78,$J$4:$V$4)) -> 1.208541943 | G82: factor
B84: ="Inflation from " & F85 & " FYA to " & F86 & " FYE - RPI" -> Inflation from 2018 FYA to 2020 FYE - RPI
E85: =Inputs!E$70 -> Year reference for FYA base price 2 | F85: =Inputs!F$70 -> 2018 | G85: =Inputs!G$70 -> year #
E86: =Inputs!E$73 -> Year reference for FYE end price | F86: =Inputs!F$73 -> 2020 | G86: =Inputs!G$73 -> year #
E87: =E$72 -> RPI: Financial year average - index | F87: 0 | G87: index | H87: 0 | I87: 0 | J87: 244.675 | K87: 251.7333333 | L87: 256.6666667 | M87: 259.4333333 | N87: 264.9916667 | O87: 274.9083333 | P87: 283.75 | Q87: 292.2166667 | R87: 292.2166667 | S87: 292.2166667 | T87: 292.2166667 | U87: 292.2166667 | V87: 292.2166667
E88: =E$70 -> RPI: March - index | F88: 0 | G88: index | H88: 0 | I88: 0 | J88: 248.7 | K88: 254.8 | L88: 257.1 | M88: 261.1 | N88: 269.3 | O88: 278.3 | P88: 287.1 | Q88: 295.7 | R88: 295.7 | S88: 295.7 | T88: 295.7 | U88: 295.7 | V88: 295.7
E89: ="RPI inflate from " & F85 & " FYA to " & F86 & " FYE" -> RPI inflate from 2018 FYA to 2020 FYE | F89: =INDEX($J88:$V88, 1, MATCH($F86,$J$4:$V$4)) / INDEX($J87:$V87, 1, MATCH($F85,$J$4:$V$4)) -> 1.075631271 | G89: factor
B91: ="Inflation from " & F92 & " FYE to " & F93 & " FYE - RPI" -> Inflation from 2020 FYE to 2020 FYE - RPI
E92: =Inputs!E$71 -> Year reference for FYE base price 1 | F92: =Inputs!F$71 -> 2020 | G92: =Inputs!G$71 -> year #
E93: =Inputs!E$73 -> Year reference for FYE end price | F93: =Inputs!F$73 -> 2020 | G93: =Inputs!G$73 -> year #
E94: =E$70 -> RPI: March - index | F94: 0 | G94: index | H94: 0 | I94: 0 | J94: 248.7 | K94: 254.8 | L94: 257.1 | M94: 261.1 | N94: 269.3 | O94: 278.3 | P94: 287.1 | Q94: 295.7 | R94: 295.7 | S94: 295.7 | T94: 295.7 | U94: 295.7 | V94: 295.7
E95: ="RPI inflate from " & F92 & " FYE to " & F93 & " FYE" -> RPI inflate from 2020 FYE to 2020 FYE | F95: =INDEX($J94:$V94, 1, MATCH($F93,$J$4:$V$4)) / INDEX($J94:$V94, 1, MATCH($F92,$J$4:$V$4)) -> 1 | G95: factor
B97: ="Inflation from November " & F98 & " FYE to " & F99 & " FYE - RPI" -> Inflation from November 2019 FYE to 2020 FYE - RPI
E98: =Inputs!E$72 -> Year reference for FYE base price 2 | F98: =Inputs!F$72 -> 2019 | G98: =Inputs!G$72 -> year #
E99: =Inputs!E$73 -> Year reference for FYE end price | F99: =Inputs!F$73 -> 2020 | G99: =Inputs!G$73 -> year #
E100: =E$66 -> RPI: November - index | F100: 0 | G100: index | H100: 0 | I100: 0 | J100: 245.6 | K100: 252.1 | L100: 257.1 | M100: 259.8 | N100: 265.5 | O100: 275.8 | P100: 284.3 | Q100: 292.8 | R100: 292.8 | S100: 292.8 | T100: 292.8 | U100: 292.8 | V100: 292.8
E101: =E$70 -> RPI: March - index | F101: 0 | G101: index | H101: 0 | I101: 0 | J101: 248.7 | K101: 254.8 | L101: 257.1 | M101: 261.1 | N101: 269.3 | O101: 278.3 | P101: 287.1 | Q101: 295.7 | R101: 295.7 | S101: 295.7 | T101: 295.7 | U101: 295.7 | V101: 295.7
E102: ="RPI inflate from November " & F98 & " FYE to " & F99 & " FYE" -> RPI inflate from November 2019 FYE to 2020 FYE | F102: =INDEX($J101:$V101, 1, MATCH($F99,$J$4:$V$4)) / INDEX($J100:$V100, 1, MATCH($F98,$J$4:$V$4)) -> 1.040098488 | G102: factor
A105: DEFLATION
E107: =Inputs!E$77 -> Year reference for FYE base price | F107: =Inputs!F$77 -> 2020 | G107: =Inputs!G$77 -> year #
E108: =Inputs!E$78 -> Year reference for FYA end price | F108: =Inputs!F$78 -> 2018 | G108: =Inputs!G$78 -> year #
E109: =E$36 -> CPIH: March - index | F109: =F$36 -> 0 | G109: index | H109: 0 | I109: 0 | J109: 97.8 | K109: 99.3 | L109: 99.6 | M109: 100.4 | N109: 102.7 | O109: 105.1 | P109: 107.5 | Q109: 109.7 | R109: 109.7 | S109: 109.7 | T109: 109.7 | U109: 109.7 | V109: 109.7
E110: =E$38 -> CPIH: Financial year average - index | F110: 0 | G110: index | H110: 0 | I110: 0 | J110: 96.58333333 | K110: 98.6 | L110: 99.725 | M110: 100.1666667 | N110: 101.5416667 | O110: 104.2166667 | P110: 106.6166667 | Q110: 108.8666667 | R110: 108.8666667 | S110: 108.8666667 | T110: 108.8666667 | U110: 108.8666667 | V110: 108.8666667
E111: ="CPIH deflate from " & F107 & " FYE to " & F108 & " FYA" -> CPIH deflate from 2020 FYE to 2018 FYA | F111: =INDEX($J110:$V110, 1, MATCH($F108,$J$4:$V$4)) / INDEX($J109:$V109, 1, MATCH($F107,$J$4:$V$4)) -> 0.950015193 | G111: factor

Sheet Calc
A1: =RIGHT(CELL("filename", $A$1), LEN(CELL("filename", $A$1)) - SEARCH("]", CELL("filename", $A$1))) -> Calc
E2: =Time!E$25 -> Model period ending | J2: =Time!J$25 -> 2013-03-31 | K2: =Time!K$25 -> 2014-03-31 | L2: =Time!L$25 -> 2015-03-31 | M2: =Time!M$25 -> 2016-03-31 | N2: =Time!N$25 -> 2017-03-31 | O2: =Time!O$25 -> 2018-03-31 | P2: =Time!P$25 -> 2019-03-31 | Q2: =Time!Q$25 -> 2020-03-31 | R2: =Time!R$25 -> 2021-03-31 | S2: =Time!S$25 -> 2022-03-31 | T2: =Time!T$25 -> 2023-03-31 | U2: =Time!U$25 -> 2024-03-31 | V2: =Time!V$25 -> 2025-03-31
E3: =Time!E$80 -> Timeline label | J3: =Time!J$80 -> Pre-Fcst | K3: =Time!K$80 -> Pre-Fcst | L3: =Time!L$80 -> Pre-Fcst | M3: =Time!M$80 -> Pre-Fcst | N3: =Time!N$80 -> Pre-Fcst | O3: =Time!O$80 -> Pre-Fcst | P3: =Time!P$80 -> Pre-Fcst | Q3: =Time!Q$80 -> Pre-Fcst | R3: =Time!R$80 -> Forecast | S3: =Time!S$80 -> Forecast | T3: =Time!T$80 -> Forecast | U3: =Time!U$80 -> Forecast | V3: =Time!V$80 -> Forecast
E4: =Time!E$103 -> Financial year ending | J4: =Time!J$103 -> 2013 | K4: =Time!K$103 -> 2014 | L4: =Time!L$103 -> 2015 | M4: =Time!M$103 -> 2016 | N4: =Time!N$103 -> 2017 | O4: =Time!O$103 -> 2018 | P4: =Time!P$103 -> 2019 | Q4: =Time!Q$103 -> 2020 | R4: =Time!R$103 -> 2021 | S4: =Time!S$103 -> 2022 | T4: =Time!T$103 -> 2023 | U4: =Time!U$103 -> 2024 | V4: =Time!V$103 -> 2025
E5: =Time!E$10 -> Model column counter | F5: Constant | G5: Unit | H5: Total | J5: =Time!J$10 -> 1 | K5: =Time!K$10 -> 2 | L5: =Time!L$10 -> 3 | M5: =Time!M$10 -> 4 | N5: =Time!N$10 -> 5 | O5: =Time!O$10 -> 6 | P5: =Time!P$10 -> 7 | Q5: =Time!Q$10 -> 8 | R5: =Time!R$10 -> 9 | S5: =Time!S$10 -> 10 | T5: =Time!T$10 -> 11 | U5: =Time!U$10 -> 12 | V5: =Time!V$10 -> 13
A7: WATER SERVICES INPUTS INFLATION
D9: Water resources
A10: =Inputs!A$86 -> C_APP27015_PD002 | E10: =Inputs!E$86 -> Net performance payment / (penalty) applied to revenue for in-period ODI adjustments ~ Water resources | F10: =Inputs!F$86 -> 0 | G10: =Inputs!G$86 -> £m
A11: =Inputs!A$87 -> C_APP27022_PD002 | E11: =Inputs!E$87 -> Net performance payment / (penalty) applied to revenue for end of period ODI adjustments ~ Water resources | F11: =Inputs!F$87 -> 6.875 | G11: =Inputs!G$87 -> £m
E13: =Indexation!E$82 -> RPI inflate from 2013 FYA to 2020 FYE | F13: =Indexation!F$82 -> 1.208541943 | G13: =Indexation!G$82 -> factor
A15: C_APP27015 | E15: =E10 & " at 2020 FYE price base" -> Net performance payment / (penalty) applied to revenue for in-period ODI adjustments ~ Water resources at 2020 FYE price base | F15: =F10 * F$13 -> 0 | G15: £m
A16: C_APP27022 | E16: =E11 & " at 2020 FYE price base" -> Net performance payment / (penalty) applied to revenue for end of period ODI adjustments ~ Water resources at 2020 FYE price base | F16: =F11 * F$13 -> 8.308725861 | G16: £m
A18: =Inputs!A$88 -> C_WS17013_PR19D007 | E18: =Inputs!E$88 -> Total value of export incentive to be paid to water resources at PR19 | F18: =Inputs!F$88 -> 0 | G18: =Inputs!G$88 -> £m
A19: =Inputs!A$89 -> C_WS17025_PR19D007 | E19: =Inputs!E$89 -> Total value of import incentive - water resources | F19: =Inputs!F$89 -> 0 | G19: =Inputs!G$89 -> £m
E21: =Indexation!E$89 -> RPI inflate from 2018 FYA to 2020 FYE | F21: =Indexation!F$89 -> 1.075631271 | G21: =Indexation!G$89 -> factor
A23: C_WS17013 | E23: Water trading total value of export incentive ~ Water resources at 2020 FYE price base | F23: =F18 * F$21 -> 0 | G23: £m
A24: C_WS17025 | E24: Water trading total value of import incentive ~ Water resources at 2020 FYE price base | F24: =F19 * F$21 -> 0 | G24: £m
B26: Water network plus
A27: =Inputs!A$92 -> C00578_L021 | E27: =Inputs!E$92 -> Further 2010-15 reconciliation total adjustment carry forward to PR19 ~ Water network plus | F27: =Inputs!F$92 -> -0.7567694099 | G27: =Inputs!G$92 -> £m
A28: =Inputs!A$93 -> C_APP27016_PD002 | E28: =Inputs!E$93 -> Net performance payment / (penalty) applied to revenue for in-period ODI adjustments ~ Water network plus | F28: =Inputs!F$93 -> 0 | G28: =Inputs!G$93 -> £m
A29: =Inputs!A$94 -> C_APP27023_PD002 | E29: =Inputs!E$94 -> Net performance payment / (penalty) applied to revenue for end of period ODI adjustments ~ Water network plus | F29: =Inputs!F$94 -> -0.287 | G29: =Inputs!G$94 -> £m
A30: =Inputs!A$95 -> C_WS15024_PR19PD006 | E30: =Inputs!E$95 -> Water: revenue adjustment from totex menu model | F30: =Inputs!F$95 -> -2.79338834 | G30: =Inputs!G$95 -> £m
E32: =Indexation!E$82 -> RPI inflate from 2013 FYA to 2020 FYE | F32: =Indexation!F$82 -> 1.208541943 | G32: =Indexation!G$82 -> factor
A34: C00578 | E34: =E27 & " at 2020 FYE price base" -> Further 2010-15 reconciliation total adjustment carry forward to PR19 ~ Water network plus at 2020 FYE price base | F34: =F27 * F$32 -> -0.9145875734 | G34: £m
A35: C_APP27016 | E35: =E28 & " at 2020 FYE price base" -> Net performance payment / (penalty) applied to revenue for in-period ODI adjustments ~ Water network plus at 2020 FYE price base | F35: =F28 * F$32 -> 0 | G35: £m
A36: C_APP27023 | E36: =E29 & " at 2020 FYE price base" -> Net performance payment / (penalty) applied to revenue for end of period ODI adjustments ~ Water network plus at 2020 FYE price base | F36: =F29 * F$32 -> -0.3468515378 | G36: £m
A37: C_WS15024 | E37: ="Totex menu revenue adjustment ~ Water network plus " & " at 2020 FYE price base" -> Totex menu revenue adjustment ~ Water network plus at 2020 FYE price base | F37: =F30 * F$32 -> -3.375926973 | G37: £m
A39: =Inputs!A$96 -> C_WS17014_PR19D007 | E39: =Inputs!E$96 -> Total value of export incentive to be paid to water network plus at PR19 | F39: =Inputs!F$96 -> 0 | G39: =Inputs!G$96 -> £m
A40: =Inputs!A$97 -> C_WS17026_PR19D007 | E40: =Inputs!E$97 -> Total value of import incentive - water network plus | F40: =Inputs!F$97 -> 0 | G40: =Inputs!G$97 -> £m
A41: =Inputs!A$98 -> C_WS13026_PR19PD005 | E41: =Inputs!E$98 -> WRFIM total reward / (penalty) at end of AMP6 ~ Water | F41: =Inputs!F$98 -> 0.0007909515679 | G41: =Inputs!G$98 -> £m
E43: =Indexation!E$89 -> RPI inflate from 2018 FYA to 2020 FYE | F43: =Indexation!F$89 -> 1.075631271 | G43: =Indexation!G$89 -> factor
E44: =Indexation!E$102 -> RPI inflate from November 2019 FYE to 2020 FYE | F44: =Indexation!F$102 -> 1.040098488 | G44: =Indexation!G$102 -> factor
A46: C_WS17014 | E46: Water trading total value of export incentive - Water network plus at 2020 FYE price base | F46: =F39 * F$43 -> 0 | G46: £m
A47: C_WS17026 | E47: Water trading total value of import incentive - Water network plus at 2020 FYE price base | F47: =F40 * F$43 -> 0 | G47: £m
A48: C_WS13026 | E48: WRFIM total reward / (penalty) at the end of AMP6 ~ Water network plus at 2020 FYE price base | F48: =F41 * F$44 -> 0.0008226675294 | G48: £m
A51: WASTEWATER SERVICES INPUTS INFLATION
B53: Bioresources
A54: =Inputs!A$103 -> C_APP27018_PD002 | E54: =Inputs!E$103 -> Net performance payment / (penalty) applied to revenue for in-period ODI adjustments ~ Bioresources | F54: =Inputs!F$103 -> 0 | G54: =Inputs!G$103 -> £m
A55: =Inputs!A$104 -> C_APP27025_PD002 | E55: =Inputs!E$104 -> Net performance payment / (penalty) applied to revenue for end of period ODI adjustments ~ Bioresources | F55: =Inputs!F$104 -> 0 | G55: =Inputs!G$104 -> £m
E57: =Indexation!E$82 -> RPI inflate from 2013 FYA to 2020 FYE | F57: =Indexation!F$82 -> 1.208541943 | G57: =Indexation!G$82 -> factor
A59: C_APP27018 | E59: =E54 & " at 2020 FYE price base" -> Net performance payment / (penalty) applied to revenue for in-period ODI adjustments ~ Bioresources at 2020 FYE price base | F59: =F54 * F$57 -> 0 | G59: £m
A60: C_APP27025 | E60: =E55 & " at 2020 FYE price base" -> Net performance payment / (penalty) applied to revenue for end of period ODI adjustments ~ Bioresources at 2020 FYE price base | F60: =F55 * F$57 -> 0 | G60: £m
B62: Wastewater network plus
A63: =Inputs!A$107 -> C00585_L021 | E63: =Inputs!E$107 -> Further 2010-15 reconciliation total adjustment carry forward to PR19 ~ Wastewater network plus | F63: =Inputs!F$107 -> -4.108912387 | G63: =Inputs!G$107 -> £m
A64: =Inputs!A$108 -> C_APP27017_PD002 | E64: =Inputs!E$108 -> Net performance payment / (penalty) applied to revenue for in-period ODI adjustments ~ Wastewater network plus | F64: =Inputs!F$108 -> 0 | G64: =Inputs!G$108 -> £m
A65: =Inputs!A$109 -> C_APP27024_PD002 | E65: =Inputs!E$109 -> Net performance payment / (penalty) applied to revenue for end of period ODI adjustments ~ Wastewater network plus | F65: =Inputs!F$109 -> -3.196 | G65: =Inputs!G$109 -> £m
A66: =Inputs!A$110 -> C_WWS15019_PR19PD006 | E66: =Inputs!E$110 -> Wastewater: revenue adjustment from totex menu model | F66: =Inputs!F$110 -> -2.344458871 | G66: =Inputs!G$110 -> £m
E68: =Indexation!E$82 -> RPI inflate from 2013 FYA to 2020 FYE | F68: =Indexation!F$82 -> 1.208541943 | G68: =Indexation!G$82 -> factor
A70: C00585 | E70: =E63 & " at 2020 FYE price base" -> Further 2010-15 reconciliation total adjustment carry forward to PR19 ~ Wastewater network plus at 2020 FYE price base | F70: =F63 * F$68 -> -4.965792961 | G70: £m
A71: C_APP27017 | E71: =E64 & " at 2020 FYE price base" -> Net performance payment / (penalty) applied to revenue for in-period ODI adjustments ~ Wastewater network plus at 2020 FYE price base | F71: =F64 * F$68 -> 0 | G71: £m
A72: C_APP27024 | E72: =E65 & " at 2020 FYE price base" -> Net performance payment / (penalty) applied to revenue for end of period ODI adjustments ~ Wastewater network plus at 2020 FYE price base | F72: =F65 * F$68 -> -3.862500051 | G72: £m
A73: C_WWS15019 | E73: =E66 & " at 2020 FYE price base" -> Wastewater: revenue adjustment from totex menu model at 2020 FYE price base | F73: =F66 * F$68 -> -2.83337688 | G73: £m
A75: =Inputs!A$111 -> C_WWS13026_PR19PD005 | E75: =Inputs!E$111 -> WRFIM total reward / (penalty) at the end of AMP6 ~ Wastewater | F75: =Inputs!F$111 -> -0.0009344978295 | G75: =Inputs!G$111 -> £m
E76: =Indexation!E$102 -> RPI inflate from November 2019 FYE to 2020 FYE | F76: =Indexation!F$102 -> 1.040098488 | G76: =Indexation!G$102 -> factor
A78: C_WWS13026 | E78: WRFIM total reward / (penalty) at the end of AMP6 ~ Wastewater network plus at 2020 FYE price base | F78: =F75 * F76 -> -0.0009719697791 | G78: £m
B80: Dummy control
A81: =Inputs!A$114 -> C_WWS15019_DMMY_PR19PD006 | E81: =Inputs!E$114 -> Dummy: revenue adjustment from totex menu model | F81: =Inputs!F$114 -> 0 | G81: =Inputs!G$114 -> £m
E83: =Indexation!E$82 -> RPI inflate from 2013 FYA to 2020 FYE | F83: =Indexation!F$82 -> 1.208541943 | G83: =Indexation!G$82 -> factor
A85: C_WWS15019_DMMY | E85: =E81 & " at 2020 FYE price base" -> Dummy: revenue adjustment from totex menu model at 2020 FYE price base | F85: =F81 * F$83 -> 0 | G85: £m
A87: =Inputs!A115 -> C_WWS13026_DMMY_PR19PD005 | E87: =Inputs!E115 -> Dummy: WRFIM total reward / (penalty) at the end of AMP6 | F87: =Inputs!F115 -> 0 | G87: =Inputs!G115 -> £m
E88: =Indexation!E$102 -> RPI inflate from November 2019 FYE to 2020 FYE | F88: =Indexation!F$102 -> 1.040098488 | G88: =Indexation!G$102 -> factor
A90: C_WWS13026_DMMY | E90: Dummy: WRFIM total reward / (penalty) at the end of AMP6 at 2020 FYE price base | F90: =F87 * F88 -> 0 | G90: £m
A94: RESIDENTIAL RETAIL INPUTS INFLATION
A96: =Inputs!A$119 -> C_APP27019_PD002 | E96: =Inputs!E$119 -> Net performance payment / (penalty) applied to revenue for in-period ODI adjustments ~ Residential retail | F96: =Inputs!F$119 -> 0 | G96: =Inputs!G$119 -> £m
A97: =Inputs!A$120 -> C_APP27026_PD002 | E97: =Inputs!E$120 -> Net performance payment / (penalty) applied to revenue for end of period ODI adjustments ~ Residential retail | F97: =Inputs!F$120 -> 0 | G97: =Inputs!G$120 -> £m
A98: =Inputs!A$121 -> C_R9045_PR19PD008 | E98: =Inputs!E$121 -> Residential retail revenue adjustment at end of AMP6 | F98: =Inputs!F$121 -> 0.1104263361 | G98: =Inputs!G$121 -> £m
A99: =Inputs!A$122 -> C_R10009_PR19PD009 | E99: =Inputs!E$122 -> SIM forecast revenue adjustment | F99: =Inputs!F$122 -> 0 | G99: =Inputs!G$122 -> £m
E101: =Indexation!E$82 -> RPI inflate from 2013 FYA to 2020 FYE | F101: =Indexation!F$82 -> 1.208541943 | G101: =Indexation!G$82 -> factor
E102: =Indexation!E$95 -> RPI inflate from 2020 FYE to 2020 FYE | F102: =Indexation!F$95 -> 1 | G102: =Indexation!G$95 -> factor
E103: =Indexation!E$89 -> RPI inflate from 2018 FYA to 2020 FYE | F103: =Indexation!F$89 -> 1.075631271 | G103: =Indexation!G$89 -> factor
A105: C_APP27019 | E105: =E96 & " at 2020 FYE price base" -> Net performance payment / (penalty) applied to revenue for in-period ODI adjustments ~ Residential retail at 2020 FYE price base | F105: =F96 * F$101 -> 0 | G105: £m
A106: C_APP27026 | E106: Net performance payment / (penalty) applied to revenue for end of period ODI adjustments ~ Residential retail at 2020 FYE price base | F106: =F97 * F$101 -> 0 | G106: £m
A107: C_R9045 | E107: =E98 & " at 2020 FYE price base" -> Residential retail revenue adjustment at end of AMP6 at 2020 FYE price base | F107: =F98 * F102 -> 0.1104263361 | G107: £m
A108: C_R10009 | E108: =E99 & " at 2020 FYE price base" -> SIM forecast revenue adjustment at 2020 FYE price base | F108: =F99 * F103 -> 0 | G108: £m
A111: BUSINESS RETAIL INPUTS INFLATION
A113: =Inputs!A$126 -> C_APP27020_PD002 | E113: =Inputs!E$126 -> Net performance payment / (penalty) applied to revenue for in-period ODI adjustments ~ Business retail | F113: =Inputs!F$126 -> 0 | G113: =Inputs!G$126 -> £m
A114: =Inputs!A$127 -> C_APP27027_PD002 | E114: =Inputs!E$127 -> Net performance payment / (penalty) applied to revenue for end of period ODI adjustments ~ Business retail | F114: =Inputs!F$127 -> 0 | G114: =Inputs!G$127 -> £m
E116: =Indexation!E$82 -> RPI inflate from 2013 FYA to 2020 FYE | F116: =Indexation!F$82 -> 1.208541943 | G116: =Indexation!G$82 -> factor
A118: C_APP27020 | E118: =E113 & " at 2020 FYE price base" -> Net performance payment / (penalty) applied to revenue for in-period ODI adjustments ~ Business retail at 2020 FYE price base | F118: =F113 * F$116 -> 0 | G118: £m
A119: C_APP27027 | E119: =E114 & " at 2020 FYE price base" -> Net performance payment / (penalty) applied to revenue for end of period ODI adjustments ~ Business retail at 2020 FYE price base | F119: =F114 * F$116 -> 0 | G119: £m
A122: PR14 REVENUE RECONCILIATION ADJUSTMENTS EXPRESSED IN 2017-18 FYA CPIH DEFLATED PRICE BASE
A124: =A$15 -> C_APP27015 | E124: =E$15 -> Net performance payment / (penalty) applied to revenue for in-period ODI adjustments ~ Water resources at 2020 FYE price base | F124: =F$15 -> 0 | G124: £m
A125: =A$16 -> C_APP27022 | E125: =E$16 -> Net performance payment / (penalty) applied to revenue for end of period ODI adjustments ~ Water resources at 2020 FYE price base | F125: =F$16 -> 8.308725861 | G125: £m
A126: =A$23 -> C_WS17013 | E126: =E$23 -> Water trading total value of export incentive ~ Water resources at 2020 FYE price base | F126: =F$23 -> 0 | G126: £m
A127: =A$24 -> C_WS17025 | E127: =E$24 -> Water trading total value of import incentive ~ Water resources at 2020 FYE price base | F127: =F$24 -> 0 | G127: £m
A128: =A$34 -> C00578 | E128: =E$34 -> Further 2010-15 reconciliation total adjustment carry forward to PR19 ~ Water network plus at 2020 FYE price base | F128: =F$34 -> -0.9145875734 | G128: £m
A129: =A$35 -> C_APP27016 | E129: =E$35 -> Net performance payment / (penalty) applied to revenue for in-period ODI adjustments ~ Water network plus at 2020 FYE price base | F129: =F$35 -> 0 | G129: £m
A130: =A$36 -> C_APP27023 | E130: =E$36 -> Net performance payment / (penalty) applied to revenue for end of period ODI adjustments ~ Water network plus at 2020 FYE price base | F130: =F$36 -> -0.3468515378 | G130: £m
A131: =A$37 -> C_WS15024 | E131: =E$37 -> Totex menu revenue adjustment ~ Water network plus at 2020 FYE price base | F131: =F$37 -> -3.375926973 | G131: £m
A132: =A$46 -> C_WS17014 | E132: =E$46 -> Water trading total value of export incentive - Water network plus at 2020 FYE price base | F132: =F$46 -> 0 | G132: £m
A133: =A$47 -> C_WS17026 | E133: =E$47 -> Water trading total value of import incentive - Water network plus at 2020 FYE price base | F133: =F$47 -> 0 | G133: £m
A134: =A$48 -> C_WS13026 | E134: =E$48 -> WRFIM total reward / (penalty) at the end of AMP6 ~ Water network plus at 2020 FYE price base | F134: =F$48 -> 0.0008226675294 | G134: £m
A135: =A$59 -> C_APP27018 | E135: =E$59 -> Net performance payment / (penalty) applied to revenue for in-period ODI adjustments ~ Bioresources at 2020 FYE price base | F135: =F$59 -> 0 | G135: £m
A136: =A$60 -> C_APP27025 | E136: =E$60 -> Net performance payment / (penalty) applied to revenue for end of period ODI adjustments ~ Bioresources at 2020 FYE price base | F136: =F$60 -> 0 | G136: £m
A137: =A$70 -> C00585 | E137: =E$70 -> Further 2010-15 reconciliation total adjustment carry forward to PR19 ~ Wastewater network plus at 2020 FYE price base | F137: =F$70 -> -4.965792961 | G137: £m
A138: =A$71 -> C_APP27017 | E138: =E$71 -> Net performance payment / (penalty) applied to revenue for in-period ODI adjustments ~ Wastewater network plus at 2020 FYE price base | F138: =F$71 -> 0 | G138: £m
A139: =A$72 -> C_APP27024 | E139: =E$72 -> Net performance payment / (penalty) applied to revenue for end of period ODI adjustments ~ Wastewater network plus at 2020 FYE price base | F139: =F$72 -> -3.862500051 | G139: £m
A140: =A$73 -> C_WWS15019 | E140: =E$73 -> Wastewater: revenue adjustment from totex menu model at 2020 FYE price base | F140: =F$73 -> -2.83337688 | G140: £m
A141: =A$78 -> C_WWS13026 | E141: =E$78 -> WRFIM total reward / (penalty) at the end of AMP6 ~ Wastewater network plus at 2020 FYE price base | F141: =F$78 -> -0.0009719697791 | G141: £m
A142: =A$85 -> C_WWS15019_DMMY | E142: =E$85 -> Dummy: revenue adjustment from totex menu model at 2020 FYE price base | F142: =F$85 -> 0 | G142: £m
A143: =A$90 -> C_WWS13026_DMMY | E143: =E$90 -> Dummy: WRFIM total reward / (penalty) at the end of AMP6 at 2020 FYE price base | F143: =F$90 -> 0 | G143: £m
A144: =A$105 -> C_APP27019 | E144: =E$105 -> Net performance payment / (penalty) applied to revenue for in-period ODI adjustments ~ Residential retail at 2020 FYE price base | F144: =F$105 -> 0 | G144: £m
A145: =A$106 -> C_APP27026 | E145: =E$106 -> Net performance payment / (penalty) applied to revenue for end of period ODI adjustments ~ Residential retail at 2020 FYE price base | F145: =F$106 -> 0 | G145: £m
A146: =A$107 -> C_R9045 | E146: =E$107 -> Residential retail revenue adjustment at end of AMP6 at 2020 FYE price base | F146: =F$107 -> 0.1104263361 | G146: £m
A147: =A$108 -> C_R10009 | E147: =E$108 -> SIM forecast revenue adjustment at 2020 FYE price base | F147: =F$108 -> 0 | G147: £m
A148: =A$118 -> C_APP27020 | E148: =E$118 -> Net performance payment / (penalty) applied to revenue for in-period ODI adjustments ~ Business retail at 2020 FYE price base | F148: =F$118 -> 0 | G148: £m
A149: =A$119 -> C_APP27027 | E149: =E$119 -> Net performance payment / (penalty) applied to revenue for end of period ODI adjustments ~ Business retail at 2020 FYE price base | F149: =F$119 -> 0 | G149: £m
E151: =Indexation!E$111 -> CPIH deflate from 2020 FYE to 2018 FYA | F151: =Indexation!F$111 -> 0.950015193 | G151: =Indexation!G$111 -> factor
A153: C_APP27034 | E153: ODI in-period revenue adjustment ~ Water resources at 2017-18 FYA CPIH deflated price base | F153: =F124 * F$151 -> 0 | G153: £m
A154: C_APP27041 | E154: ODI end of period revenue adjustment ~ Water resources at 2017-18 FYA CPIH deflated price base | F154: 7.893415802 | G154: £m
A155: C_WS17027 | E155: Water trading total value of export incentive ~ Water resources at 2017-18 FYA CPIH deflated price base | F155: 0 | G155: £m
A156: C_WS17030 | E156: Water trading total value of import incentive ~ Water resources at 2017-18 FYA CPIH deflated price base | F156: 0 | G156: £m
A157: C_APP25004 | E157: Further 2010-15 reconciliation total adjustment revenue carry forward to PR19 ~ Water network plus at 2017-18 FYA CPIH deflated price base | F157: -0.86887209 | G157: £m
A158: C_APP27035 | E158: ODI in-period revenue adjustment ~ Water network plus at 2017-18 FYA CPIH deflated price base | F158: 0 | G158: £m
A159: C_APP27042 | E159: ODI end of period revenue adjustment ~ Water network plus at 2017-18 FYA CPIH deflated price base | F159: -0.3295142306 | G159: £m
A160: C_WS15026 | E160: Water: Totex menu revenue adjustment at 2017-18 FYA CPIH deflated price base | F160: -3.207181914 | G160: £m
A161: C_WS17028 | E161: Water trading total value of export incentive ~ Water network plus at 2017-18 FYA CPIH deflated price base | F161: 0 | G161: £m
A162: C_WS17031 | E162: Water trading total value of import incentive ~ Water network plus at 2017-18 FYA CPIH deflated price base | F162: 0 | G162: £m
A163: C_WS13027 | E163: WRFIM total reward / (penalty) at the end of AMP6 ~ Water network plus at 2017-18 FYA CPIH deflated price base | F163: 0.0007815466517 | G163: £m
A164: C_APP27037 | E164: ODI in-period revenue adjustment ~ Bioresources at 2017-18 FYA CPIH deflated price base | F164: 0 | G164: £m
A165: C_APP27044 | E165: ODI end of period revenue adjustment ~ Bioresources at 2017-18 FYA CPIH deflated price base | F165: 0 | G165: £m
A166: C_APP25006 | E166: Further 2010-15 reconciliation total adjustment revenue carry forward to PR19 ~ Wastewater network plus at 2017-18 FYA CPIH deflated price base | F166: -4.717578758 | G166: £m
A167: C_APP27036 | E167: ODI in-period revenue adjustment ~ Wastewater network plus at 2017-18 FYA CPIH deflated price base | F167: 0 | G167: £m
A168: C_APP27043 | E168: ODI end of period revenue adjustment ~ Wastewater network plus at 2017-18 FYA CPIH deflated price base | F168: -3.669433731 | G168: £m
A169: C_WWS15021 | E169: Wastewater: Totex menu revenue adjustment at 2017-18 FYA CPIH deflated price base | F169: -2.691751083 | G169: £m
A170: C_WWS13027 | E170: WRFIM total reward / (penalty) at the end of AMP6 ~ Wastewater network plus at 2017-18 FYA CPIH deflated price base | F170: -0.0009233860572 | G170: £m
A171: C_WWS15021_DMMY | E171: Dummy: revenue adjustment from totex menu model at 2017-18 FYA CPIH deflated price base | F171: 0 | G171: £m
A172: C_WWS13027_DMMY | E172: WRFIM total reward / (penalty) at the end of AMP6 ~ Dummy at 2017-18 FYA CPIH deflated price base | F172: 0 | G172: £m
A173: C_APP27038 | E173: ODI in-period revenue adjustment ~ Residential retail at 2017-18 FYA CPIH deflated price base | F173: 0 | G173: £m
A174: C_APP27045 | E174: ODI end of period revenue adjustment ~ Residential retail at 2017-18 FYA CPIH deflated price base | F174: 0 | G174: £m
A175: C_R9046 | E175: Residential retail revenue adjustment at 2017-18 FYA CPIH deflated price base | F175: 0.104906697 | G175: £m
A176: C_R10009 | E176: SIM forecast revenue adjustment at 2017-18 FYA CPIH deflated price base | F176: 0 | G176: £m
A177: C_APP27039 | E177: ODI in-period revenue adjustment ~ Business retail at 2017-18 FYA CPIH deflated price base | F177: 0 | G177: £m
A178: C_APP27046 | E178: ODI end of period revenue adjustment ~ Business retail at 2017-18 FYA CPIH deflated price base | F178: 0 | G178: £m
A181: SUBTOTALS AS PER PRICE CONTROL FOR REVENUE ADJUSTMENTS 2017-18 FYA CPIH DEFLATED PRICE BASE
B183: Water resources revenue adjustment
A184: =A$153 -> C_APP27034 | E184: =E$153 -> ODI in-period revenue adjustment ~ Water resources at 2017-18 FYA CPIH deflated price base | F184: =F$153 -> 0 | G184: £m
A185: =A$154 -> C_APP27041 | E185: =E$154 -> ODI end of period revenue adjustment ~ Water resources at 2017-18 FYA CPIH deflated price base | F185: =F$154 -> 7.893415802 | G185: £m
A186: =A$155 -> C_WS17027 | E186: =E$155 -> Water trading total value of export incentive ~ Water resources at 2017-18 FYA CPIH deflated price base | F186: =F$155 -> 0 | G186: £m
A187: =A$156 -> C_WS17030 | E187: =E$156 -> Water trading total value of import incentive ~ Water resources at 2017-18 FYA CPIH deflated price base | F187: =F$156 -> 0 | G187: £m
A188: C048 | E188: Water resources revenue adjustment | F188: =SUM(F184:F187) -> 7.893415802 | G188: £m
B190: Water network plus revenue adjustment
A191: =A$157 -> C_APP25004 | E191: =E$157 -> Further 2010-15 reconciliation total adjustment revenue carry forward to PR19 ~ Water network plus at 2017-18 FYA CPIH deflated price base | F191: =F$157 -> -0.86887209 | G191: £m
A192: =A$158 -> C_APP27035 | E192: =E$158 -> ODI in-period revenue adjustment ~ Water network plus at 2017-18 FYA CPIH deflated price base | F192: =F$158 -> 0 | G192: £m
A193: =A$159 -> C_APP27042 | E193: =E$159 -> ODI end of period revenue adjustment ~ Water network plus at 2017-18 FYA CPIH deflated price base | F193: =F$159 -> -0.3295142306 | G193: £m
A194: =A$160 -> C_WS15026 | E194: =E$160 -> Water: Totex menu revenue adjustment at 2017-18 FYA CPIH deflated price base | F194: =F$160 -> -3.207181914 | G194: £m
A195: =A$161 -> C_WS17028 | E195: =E$161 -> Water trading total value of export incentive ~ Water network plus at 2017-18 FYA CPIH deflated price base | F195: =F$161 -> 0 | G195: £m
A196: =A$162 -> C_WS17031 | E196: =E$162 -> Water trading total value of import incentive ~ Water network plus at 2017-18 FYA CPIH deflated price base | F196: =F$162 -> 0 | G196: £m
A197: =A$163 -> C_WS13027 | E197: =E$163 -> WRFIM total reward / (penalty) at the end of AMP6 ~ Water network plus at 2017-18 FYA CPIH deflated price base | F197: =F$163 -> 0.0007815466517 | G197: £m
A198: C058 | E198: Water network plus revenue adjustment | F198: =SUM(F191:F197) -> -4.404786688 | G198: £m
B200: Bioresources revenue adjustment
A201: =A$164 -> C_APP27037 | E201: =E$164 -> ODI in-period revenue adjustment ~ Bioresources at 2017-18 FYA CPIH deflated price base | F201: =F$164 -> 0 | G201: £m
A202: =A$165 -> C_APP27044 | E202: =E$165 -> ODI end of period revenue adjustment ~ Bioresources at 2017-18 FYA CPIH deflated price base | F202: =F$165 -> 0 | G202: £m
A203: C068 | E203: Bioresources revenue adjustment | F203: =SUM(F201:F202) -> 0 | G203: £m
B205: Wastewater network plus revenue adjustment
A206: =A$166 -> C_APP25006 | E206: =E$166 -> Further 2010-15 reconciliation total adjustment revenue carry forward to PR19 ~ Wastewater network plus at 2017-18 FYA CPIH deflated price base | F206: =F$166 -> -4.717578758 | G206: £m
A207: =A$169 -> C_WWS15021 | E207: =E$169 -> Wastewater: Totex menu revenue adjustment at 2017-18 FYA CPIH deflated price base | F207: =F$169 -> -2.691751083 | G207: £m
A208: =A$167 -> C_APP27036 | E208: =E$167 -> ODI in-period revenue adjustment ~ Wastewater network plus at 2017-18 FYA CPIH deflated price base | F208: =F$167 -> 0 | G208: £m
A209: =A$168 -> C_APP27043 | E209: =E$168 -> ODI end of period revenue adjustment ~ Wastewater network plus at 2017-18 FYA CPIH deflated price base | F209: =F$168 -> -3.669433731 | G209: £m
A210: =A$170 -> C_WWS13027 | E210: =E$170 -> WRFIM total reward / (penalty) at the end of AMP6 ~ Wastewater network plus at 2017-18 FYA CPIH deflated price base | F210: =F$170 -> -0.0009233860572 | G210: £m
A211: C078 | E211: Wastewater network plus revenue adjustment | F211: =SUM(F206:F210) -> -11.07968696 | G211: £m
B213: Dummy revenue adjustment
A214: =A$171 -> C_WWS15021_DMMY | E214: =E$171 -> Dummy: revenue adjustment from totex menu model at 2017-18 FYA CPIH deflated price base | F214: =F$171 -> 0 | G214: =G$171 -> £m
A215: =A$172 -> C_WWS13027_DMMY | E215: =E$172 -> WRFIM total reward / (penalty) at the end of AMP6 ~ Dummy at 2017-18 FYA CPIH deflated price base | F215: =F$172 -> 0 | G215: £m
A216: C088 | E216: Dummy control revenue adjustment | F216: =SUM(F214:F215) -> 0 | G216: £m
B218: Residential retail revenue adjustment
A219: =A$173 -> C_APP27038 | E219: =E$173 -> ODI in-period revenue adjustment ~ Residential retail at 2017-18 FYA CPIH deflated price base | F219: =F$173 -> 0 | G219: £m
A220: =A$174 -> C_APP27045 | E220: =E$174 -> ODI end of period revenue adjustment ~ Residential retail at 2017-18 FYA CPIH deflated price base | F220: =F$174 -> 0 | G220: £m
A221: =A$175 -> C_R9046 | E221: =E$175 -> Residential retail revenue adjustment at 2017-18 FYA CPIH deflated price base | F221: =F$175 -> 0.104906697 | G221: £m
A222: =A$176 -> C_R10009 | E222: =E$176 -> SIM forecast revenue adjustment at 2017-18 FYA CPIH deflated price base | F222: =F$176 -> 0 | G222: £m
A223: C098 | E223: Residential retail revenue adjustment | F223: =SUM(F219:F222) -> 0.104906697 | G223: £m
B225: Business retail revenue adjustment
A226: =A$177 -> C_APP27039 | E226: =E$177 -> ODI in-period revenue adjustment ~ Business retail at 2017-18 FYA CPIH deflated price base | F226: =F$177 -> 0
A227: =A$178 -> C_APP27046 | E227: =E$178 -> ODI end of period revenue adjustment ~ Business retail at 2017-18 FYA CPIH deflated price base | F227: =F$178 -> 0
A228: C108 | E228: Business retail revenue adjustment | F228: =SUM(F226:F227) -> 0 | G228: £m

Sheet Profiling
A1: =RIGHT(CELL("filename", $A$1), LEN(CELL("filename", $A$1)) - SEARCH("]", CELL("filename", $A$1))) -> Profiling
E2: =Time!E$25 -> Model period ending | J2: =Time!J$25 -> 2013-03-31 | K2: =Time!K$25 -> 2014-03-31 | L2: =Time!L$25 -> 2015-03-31 | M2: =Time!M$25 -> 2016-03-31 | N2: =Time!N$25 -> 2017-03-31 | O2: =Time!O$25 -> 2018-03-31 | P2: =Time!P$25 -> 2019-03-31 | Q2: =Time!Q$25 -> 2020-03-31 | R2: =Time!R$25 -> 2021-03-31 | S2: =Time!S$25 -> 2022-03-31 | T2: =Time!T$25 -> 2023-03-31 | U2: =Time!U$25 -> 2024-03-31 | V2: =Time!V$25 -> 2025-03-31
E3: =Time!E$80 -> Timeline label | J3: =Time!J$80 -> Pre-Fcst | K3: =Time!K$80 -> Pre-Fcst | L3: =Time!L$80 -> Pre-Fcst | M3: =Time!M$80 -> Pre-Fcst | N3: =Time!N$80 -> Pre-Fcst | O3: =Time!O$80 -> Pre-Fcst | P3: =Time!P$80 -> Pre-Fcst | Q3: =Time!Q$80 -> Pre-Fcst | R3: =Time!R$80 -> Forecast | S3: =Time!S$80 -> Forecast | T3: =Time!T$80 -> Forecast | U3: =Time!U$80 -> Forecast | V3: =Time!V$80 -> Forecast
E4: =Time!E$103 -> Financial year ending | J4: =Time!J$103 -> 2013 | K4: =Time!K$103 -> 2014 | L4: =Time!L$103 -> 2015 | M4: =Time!M$103 -> 2016 | N4: =Time!N$103 -> 2017 | O4: =Time!O$103 -> 2018 | P4: =Time!P$103 -> 2019 | Q4: =Time!Q$103 -> 2020 | R4: =Time!R$103 -> 2021 | S4: =Time!S$103 -> 2022 | T4: =Time!T$103 -> 2023 | U4: =Time!U$103 -> 2024 | V4: =Time!V$103 -> 2025
E5: =Time!E$10 -> Model column counter | F5: Constant | G5: Unit | H5: Total | J5: =Time!J$10 -> 1 | K5: =Time!K$10 -> 2 | L5: =Time!L$10 -> 3 | M5: =Time!M$10 -> 4 | N5: =Time!N$10 -> 5 | O5: =Time!O$10 -> 6 | P5: =Time!P$10 -> 7 | Q5: =Time!Q$10 -> 8 | R5: =Time!R$10 -> 9 | S5: =Time!S$10 -> 10 | T5: =Time!T$10 -> 11 | U5: =Time!U$10 -> 12 | V5: =Time!V$10 -> 13
A7: DISCOUNT RATE FOR 2021-25
A9: =Inputs!A$134 -> C020 | E9: =Inputs!E$134 -> PV base date | F9: =Inputs!F$134 -> 2021-03-31 | G9: =Inputs!G$134 -> date
A10: =Inputs!A$163 -> C019 | E10: =Inputs!E$163 -> Days in a year | F10: =Inputs!F$163 -> 365 | G10: =Inputs!G$163 -> days
A11: =Time!A$25 -> 00:00:00 | E11: =Time!E$25 -> Model period ending | F11: =Time!F$25 -> 00:00:00 | G11: =Time!G$25 -> date | H11: =Time!H$25 -> 00:00:00 | I11: =Time!I$25 -> 00:00:00 | J11: =Time!J$25 -> 2013-03-31 | K11: =Time!K$25 -> 2014-03-31 | L11: =Time!L$25 -> 2015-03-31 | M11: =Time!M$25 -> 2016-03-31 | N11: =Time!N$25 -> 2017-03-31 | O11: =Time!O$25 -> 2018-03-31 | P11: =Time!P$25 -> 2019-03-31 | Q11: =Time!Q$25 -> 2020-03-31 | R11: =Time!R$25 -> 2021-03-31 | S11: =Time!S$25 -> 2022-03-31 | T11: =Time!T$25 -> 2023-03-31 | U11: =Time!U$25 -> 2024-03-31 | V11: =Time!V$25 -> 2025-03-31
A12: =Time!A$49 -> 0 | E12: =Time!E$49 -> Forecast period flag | F12: =Time!F$49 -> 0 | G12: =Time!G$49 -> flag | H12: =Time!H$49 -> 5 | I12: =Time!I$49 -> 0 | J12: =Time!J$49 -> 0 | K12: =Time!K$49 -> 0 | L12: =Time!L$49 -> 0 | M12: =Time!M$49 -> 0 | N12: =Time!N$49 -> 0 | O12: =Time!O$49 -> 0 | P12: =Time!P$49 -> 0 | Q12: =Time!Q$49 -> 0 | R12: =Time!R$49 -> 1 | S12: =Time!S$49 -> 1 | T12: =Time!T$49 -> 1 | U12: =Time!U$49 -> 1 | V12: =Time!V$49 -> 1
E13: Years from valuation date | G13: years | J13: =IF(J11 < $F9, 0, (J11 - $F9) / $F10) * J12 -> 0 | K13: 0 | L13: 0 | M13: 0 | N13: 0 | O13: 0 | P13: 0 | Q13: =IF(Q11 < $F9, 0, (Q11 - $F9) / $F10) * Q12 -> 0 | R13: =IF(R11 < $F9, 0, (R11 - $F9) / $F10) * R12 -> 0 | S13: =IF(S11 < $F9, 0, (S11 - $F9) / $F10) * S12 -> 1 | T13: 2 | U13: 3.002739726 | V13: 4.002739726
A15: =Inputs!A$136 -> C040 | E15: =Inputs!E$136 -> Discount rate - Water resources | F15: =Inputs!F$136 -> 0 | G15: =Inputs!G$136 -> %
A16: =Inputs!A$137 -> C050 | E16: =Inputs!E$137 -> Discount rate - Water network plus | F16: =Inputs!F$137 -> 0.036 | G16: =Inputs!G$137 -> %
A17: =Inputs!A$138 -> C060 | E17: =Inputs!E$138 -> Discount rate - Bioresources | F17: =Inputs!F$138 -> 0 | G17: =Inputs!G$138 -> %
A18: =Inputs!A$139 -> C070 | E18: =Inputs!E$139 -> Discount rate - Wastewater network plus | F18: =Inputs!F$139 -> 0 | G18: =Inputs!G$139 -> %
A19: =Inputs!A$140 -> C080 | E19: =Inputs!E$140 -> Discount rate - Dummy control | F19: =Inputs!F$140 -> 0 | G19: =Inputs!G$140 -> %
A20: =Inputs!A$141 -> C090 | E20: =Inputs!E$141 -> Discount rate - Residential retail | F20: =Inputs!F$141 -> 0 | G20: =Inputs!G$141 -> %
A21: =Inputs!A$142 -> C100 | E21: =Inputs!E$142 -> Discount rate - Business retail | F21: =Inputs!F$142 -> 0 | G21: =Inputs!G$142 -> %
A23: =Inputs!A$134 -> C020 | E23: =Inputs!E$134 -> PV base date | F23: =Inputs!F$134 -> 2021-03-31 | G23: =Inputs!G$134 -> date
E25: =Time!E$25 -> Model period ending | F25: =Time!F$25 -> 00:00:00 | G25: =Time!G$25 -> date | H25: =Time!H$25 -> 00:00:00 | I25: =Time!I$25 -> 00:00:00 | J25: =Time!J$25 -> 2013-03-31 | K25: =Time!K$25 -> 2014-03-31 | L25: =Time!L$25 -> 2015-03-31 | M25: =Time!M$25 -> 2016-03-31 | N25: =Time!N$25 -> 2017-03-31 | O25: =Time!O$25 -> 2018-03-31 | P25: =Time!P$25 -> 2019-03-31 | Q25: =Time!Q$25 -> 2020-03-31 | R25: =Time!R$25 -> 2021-03-31 | S25: =Time!S$25 -> 2022-03-31 | T25: =Time!T$25 -> 2023-03-31 | U25: =Time!U$25 -> 2024-03-31 | V25: =Time!V$25 -> 2025-03-31
E26: =E$13 -> Years from valuation date | F26: 0 | G26: years | H26: 0 | I26: 0 | J26: 0 | K26: 0 | L26: 0 | M26: 0 | N26: 0 | O26: 0 | P26: 0 | Q26: 0 | R26: 0 | S26: 1 | T26: 2 | U26: 3.002739726 | V26: 4.002739726
E28: PV discount factor - Water resources | G28: factor | H28: =SUM(J28:V28) -> 5 | J28: =IF(J$25 < $F$23, 0, 1 / ( 1 + $F15) ^ J$26) -> 0 | K28: =IF(K$25 < $F$23, 0, 1 / ( 1 + $F15) ^ K$26) -> 0 | L28: 0 | M28: 0 | N28: 0 | O28: 0 | P28: 0 | Q28: 0 | R28: =IF(R$25 < $F$23, 0, 1 / ( 1 + $F15) ^ R$26) -> 1 | S28: 1 | T28: 1 | U28: 1 | V28: 1
E29: PV discount factor - Water network | G29: factor | H29: =SUM(J29:V29) -> 4.66420502 | J29: =IF(J$25 < $F$23, 0, 1 / ( 1 + $F16) ^ J$26) -> 0 | K29: =IF(K$25 < $F$23, 0, 1 / ( 1 + $F16) ^ K$26) -> 0 | L29: 0 | M29: 0 | N29: 0 | O29: 0 | P29: 0 | Q29: 0 | R29: 1 | S29: 0.9652509653 | T29: 0.9317094259 | U29: 0.8992462849 | V29: 0.8679983445
E30: PV discount factor - Bioresources | G30: factor | H30: 5 | J30: =IF(J$25 < $F$23, 0, 1 / ( 1 + $F17) ^ J$26) -> 0 | K30: =IF(K$25 < $F$23, 0, 1 / ( 1 + $F17) ^ K$26) -> 0 | L30: 0 | M30: 0 | N30: 0 | O30: 0 | P30: 0 | Q30: 0 | R30: 1 | S30: 1 | T30: 1 | U30: 1 | V30: 1
E31: PV discount factor - Wastewater network | G31: factor | H31: 5 | J31: =IF(J$25 < $F$23, 0, 1 / ( 1 + $F18) ^ J$26) -> 0 | K31: 0 | L31: 0 | M31: 0 | N31: 0 | O31: 0 | P31: 0 | Q31: 0 | R31: 1 | S31: 1 | T31: 1 | U31: 1 | V31: 1
E32: PV discount factor - Dummy control | G32: factor | H32: =SUM(J32:V32) -> 5 | J32: 0 | K32: 0 | L32: 0 | M32: 0 | N32: 0 | O32: 0 | P32: 0 | Q32: 0 | R32: 1 | S32: 1 | T32: 1 | U32: 1 | V32: 1
E33: PV discount factor - Residential retail | G33: factor | H33: 5 | J33: =IF(J$25 < $F$23, 0, 1 / ( 1 + $F20) ^ J$26) -> 0 | K33: 0 | L33: 0 | M33: 0 | N33: 0 | O33: 0 | P33: 0 | Q33: 0 | R33: 1 | S33: 1 | T33: 1 | U33: 1 | V33: 1
E34: PV discount factor - Business retail | G34: factor | H34: 5 | J34: =IF(J$25 < $F$23, 0, 1 / ( 1 + $F21) ^ J$26) -> 0 | K34: 0 | L34: 0 | M34: 0 | N34: 0 | O34: 0 | P34: 0 | Q34: 0 | R34: 1 | S34: 1 | T34: 1 | U34: 1 | V34: 1
E36: =E$28 -> PV discount factor - Water resources | F36: 0 | G36: factor | H36: 5 | I36: 0 | J36: 0 | K36: 0 | L36: 0 | M36: 0 | N36: 0 | O36: 0 | P36: 0 | Q36: 0 | R36: 1 | S36: 1 | T36: 1 | U36: 1 | V36: 1
E37: =E$29 -> PV discount factor - Water network | F37: 0 | G37: factor | H37: 4.66420502 | I37: 0 | J37: 0 | K37: 0 | L37: 0 | M37: 0 | N37: 0 | O37: 0 | P37: 0 | Q37: 0 | R37: 1 | S37: 0.9652509653 | T37: 0.9317094259 | U37: 0.8992462849 | V37: 0.8679983445
E38: =E$30 -> PV discount factor - Bioresources | F38: =F$30 -> 0 | G38: factor | H38: 5 | I38: 0 | J38: 0 | K38: 0 | L38: 0 | M38: 0 | N38: 0 | O38: 0 | P38: 0 | Q38: 0 | R38: 1 | S38: 1 | T38: 1 | U38: 1 | V38: 1
E39: =E$31 -> PV discount factor - Wastewater network | F39: 0 | G39: factor | H39: 5 | I39: 0 | J39: 0 | K39: 0 | L39: 0 | M39: 0 | N39: 0 | O39: 0 | P39: 0 | Q39: 0 | R39: 1 | S39: 1 | T39: 1 | U39: 1 | V39: 1
E40: =E$32 -> PV discount factor - Dummy control | F40: 0 | G40: factor | H40: 5 | I40: 0 | J40: 0 | K40: 0 | L40: 0 | M40: 0 | N40: 0 | O40: 0 | P40: 0 | Q40: 0 | R40: 1 | S40: 1 | T40: 1 | U40: 1 | V40: 1
E41: =E$33 -> PV discount factor - Residential retail | F41: 0 | G41: factor | H41: 5 | I41: 0 | J41: 0 | K41: 0 | L41: 0 | M41: 0 | N41: 0 | O41: 0 | P41: 0 | Q41: 0 | R41: 1 | S41: 1 | T41: 1 | U41: 1 | V41: 1
E42: =E$34 -> PV discount factor - Business retail | F42: =F$34 -> 0 | G42: factor | H42: 5 | I42: 0 | J42: 0 | K42: 0 | L42: 0 | M42: 0 | N42: 0 | O42: 0 | P42: 0 | Q42: 0 | R42: 1 | S42: 1 | T42: 1 | U42: 1 | V42: 1
E45: Equivalent Annual Cost (EAC) factor - Water resources | F45: =SUM(J36:V36) -> 5 | G45: factor
E46: Equivalent Annual Cost (EAC) factor - Water network | F46: 4.66420502 | G46: factor
E47: Equivalent Annual Cost (EAC) factor - Bioresources | F47: 5 | G47: factor
E48: Equivalent Annual Cost (EAC) factor - Wastewater network | F48: 5 | G48: factor
E49: Equivalent Annual Cost (EAC) factor - Dummy control | F49: 5 | G49: factor
E50: Equivalent Annual Cost (EAC) factor - Residential retail | F50: 5 | G50: factor
E51: Equivalent Annual Cost (EAC) factor - Business retail | F51: 5 | G51: factor
A54: PROFILES
B56: Profile 0 - Apply in first year
A57: =Inputs!A$134 -> C020 | E57: =Inputs!E$134 -> PV base date | F57: =Inputs!F$134 -> 2021-03-31 | G57: =Inputs!G$134 -> date
E59: =Time!E$25 -> Model period ending | F59: =Time!F$25 -> 00:00:00 | G59: =Time!G$25 -> date | H59: =Time!H$25 -> 00:00:00 | I59: =Time!I$25 -> 00:00:00 | J59: =Time!J$25 -> 2013-03-31 | K59: =Time!K$25 -> 2014-03-31 | L59: =Time!L$25 -> 2015-03-31 | M59: =Time!M$25 -> 2016-03-31 | N59: =Time!N$25 -> 2017-03-31 | O59: =Time!O$25 -> 2018-03-31 | P59: =Time!P$25 -> 2019-03-31 | Q59: =Time!Q$25 -> 2020-03-31 | R59: =Time!R$25 -> 2021-03-31 | S59: =Time!S$25 -> 2022-03-31 | T59: =Time!T$25 -> 2023-03-31 | U59: =Time!U$25 -> 2024-03-31 | V59: =Time!V$25 -> 2025-03-31
E61: =E$28 -> PV discount factor - Water resources | F61: 0 | G61: factor | H61: 5 | I61: 0 | J61: 0 | K61: 0 | L61: 0 | M61: 0 | N61: 0 | O61: 0 | P61: 0 | Q61: 0 | R61: 1 | S61: 1 | T61: 1 | U61: 1 | V61: 1
E62: =E$29 -> PV discount factor - Water network | F62: 0 | G62: factor | H62: 4.66420502 | I62: 0 | J62: 0 | K62: 0 | L62: 0 | M62: 0 | N62: 0 | O62: 0 | P62: 0 | Q62: 0 | R62: 1 | S62: 0.9652509653 | T62: 0.9317094259 | U62: 0.8992462849 | V62: 0.8679983445
E63: =E$30 -> PV discount factor - Bioresources | F63: =F$30 -> 0 | G63: factor | H63: 5 | I63: 0 | J63: 0 | K63: 0 | L63: 0 | M63: 0 | N63: 0 | O63: 0 | P63: 0 | Q63: 0 | R63: 1 | S63: 1 | T63: 1 | U63: 1 | V63: 1
E64: =E$31 -> PV discount factor - Wastewater network | F64: 0 | G64: factor | H64: 5 | I64: 0 | J64: 0 | K64: 0 | L64: 0 | M64: 0 | N64: 0 | O64: 0 | P64: 0 | Q64: 0 | R64: 1 | S64: 1 | T64: 1 | U64: 1 | V64: 1
E65: =E$32 -> PV discount factor - Dummy control | F65: 0 | G65: factor | H65: 5 | I65: 0 | J65: 0 | K65: 0 | L65: 0 | M65: 0 | N65: 0 | O65: 0 | P65: 0 | Q65: 0 | R65: 1 | S65: 1 | T65: 1 | U65: 1 | V65: 1
E66: =E$33 -> PV discount factor - Residential retail | F66: 0 | G66: factor | H66: 5 | I66: 0 | J66: 0 | K66: 0 | L66: 0 | M66: 0 | N66: 0 | O66: 0 | P66: 0 | Q66: 0 | R66: 1 | S66: 1 | T66: 1 | U66: 1 | V66: 1
E67: =E$34 -> PV discount factor - Business retail | F67: =F$34 -> 0 | G67: factor | H67: 5 | I67: 0 | J67: 0 | K67: 0 | L67: 0 | M67: 0 | N67: 0 | O67: 0 | P67: 0 | Q67: 0 | R67: 1 | S67: 1 | T67: 1 | U67: 1 | V67: 1
E69: PV discount factor at base date - Water resources | G69: factor | J69: =IF($F$57 = J$59, J61, 0) -> 0 | K69: 0 | L69: 0 | M69: 0 | N69: 0 | O69: 0 | P69: 0 | Q69: 0 | R69: 1 | S69: 0 | T69: 0 | U69: 0 | V69: 0
E70: PV discount factor at base date - Water network | G70: factor | J70: =IF($F$57 = J$59, J62, 0) -> 0 | K70: 0 | L70: 0 | M70: 0 | N70: 0 | O70: 0 | P70: 0 | Q70: 0 | R70: 1 | S70: 0 | T70: 0 | U70: 0 | V70: 0
E71: PV discount factor at base date - Bioresources | G71: factor | J71: =IF($F$57 = J$59, J63, 0) -> 0 | K71: 0 | L71: 0 | M71: 0 | N71: 0 | O71: 0 | P71: 0 | Q71: 0 | R71: 1 | S71: 0 | T71: 0 | U71: 0 | V71: 0
E72: PV discount factor at base date - Wastewater network | G72: factor | J72: =IF($F$57 = J$59, J64, 0) -> 0 | K72: 0 | L72: 0 | M72: 0 | N72: 0 | O72: 0 | P72: 0 | Q72: 0 | R72: 1 | S72: 0 | T72: 0 | U72: 0 | V72: 0
E73: PV discount factor at base date - Dummy control | G73: factor | J73: 0 | K73: 0 | L73: 0 | M73: 0 | N73: 0 | O73: 0 | P73: 0 | Q73: 0 | R73: 1 | S73: 0 | T73: 0 | U73: 0 | V73: 0
E74: PV discount factor at base date - Residential retail | G74: factor | J74: =IF($F$57 = J$59, J66, 0) -> 0 | K74: 0 | L74: 0 | M74: 0 | N74: 0 | O74: 0 | P74: 0 | Q74: 0 | R74: 1 | S74: 0 | T74: 0 | U74: 0 | V74: 0
E75: PV discount factor at base date - Business retail | G75: factor | J75: =IF($F$57 = J$59, J67, 0) -> 0 | K75: 0 | L75: 0 | M75: 0 | N75: 0 | O75: 0 | P75: 0 | Q75: 0 | R75: 1 | S75: 0 | T75: 0 | U75: 0 | V75: 0
A77: =Calc!A$188 -> C048 | E77: =Calc!E$188 -> Water resources revenue adjustment | F77: =Calc!F$188 -> 7.893415802 | G77: =Calc!G$188 -> £m
A78: =Calc!A$198 -> C058 | E78: =Calc!E$198 -> Water network plus revenue adjustment | F78: =Calc!F$198 -> -4.404786688 | G78: =Calc!G$198 -> £m
A79: =Calc!A$203 -> C068 | E79: =Calc!E$203 -> Bioresources revenue adjustment | F79: =Calc!F$203 -> 0 | G79: =Calc!G$203 -> £m
A80: =Calc!A$211 -> C078 | E80: =Calc!E$211 -> Wastewater network plus revenue adjustment | F80: =Calc!F$211 -> -11.07968696 | G80: =Calc!G$211 -> £m
A81: =Calc!A$216 -> C088 | E81: =Calc!E$216 -> Dummy control revenue adjustment | F81: =Calc!F$216 -> 0 | G81: =Calc!G$216 -> £m
A82: =Calc!A$223 -> C098 | E82: =Calc!E$223 -> Residential retail revenue adjustment | F82: =Calc!F$223 -> 0.104906697 | G82: =Calc!G$223 -> £m
A83: =Calc!A$228 -> C108 | E83: =Calc!E$228 -> Business retail revenue adjustment | F83: =Calc!F$228 -> 0 | G83: =Calc!G$228 -> £m
E85: =E$69 -> PV discount factor at base date - Water resources | F85: 0 | G85: =G$69 -> factor | H85: 0 | I85: 0 | J85: 0 | K85: 0 | L85: 0 | M85: 0 | N85: 0 | O85: 0 | P85: 0 | Q85: 0 | R85: 1 | S85: 0 | T85: 0 | U85: 0 | V85: 0
E86: =E$70 -> PV discount factor at base date - Water network | F86: 0 | G86: factor | H86: 0 | I86: 0 | J86: 0 | K86: 0 | L86: 0 | M86: 0 | N86: 0 | O86: 0 | P86: 0 | Q86: 0 | R86: 1 | S86: 0 | T86: 0 | U86: 0 | V86: 0
E87: =E$71 -> PV discount factor at base date - Bioresources | F87: =F$71 -> 0 | G87: factor | H87: 0 | I87: 0 | J87: 0 | K87: 0 | L87: 0 | M87: 0 | N87: 0 | O87: 0 | P87: 0 | Q87: 0 | R87: 1 | S87: 0 | T87: 0 | U87: 0 | V87: 0
E88: =E$72 -> PV discount factor at base date - Wastewater network | F88: 0 | G88: factor | H88: 0 | I88: 0 | J88: 0 | K88: 0 | L88: 0 | M88: 0 | N88: 0 | O88: 0 | P88: 0 | Q88: 0 | R88: 1 | S88: 0 | T88: 0 | U88: 0 | V88: 0
E89: =E$73 -> PV discount factor at base date - Dummy control | F89: 0 | G89: factor | H89: 0 | I89: 0 | J89: 0 | K89: 0 | L89: 0 | M89: 0 | N89: 0 | O89: 0 | P89: 0 | Q89: 0 | R89: 1 | S89: 0 | T89: 0 | U89: 0 | V89: 0
E90: =E$74 -> PV discount factor at base date - Residential retail | F90: 0 | G90: factor | H90: 0 | I90: 0 | J90: 0 | K90: 0 | L90: 0 | M90: 0 | N90: 0 | O90: 0 | P90: 0 | Q90: 0 | R90: 1 | S90: 0 | T90: 0 | U90: 0 | V90: 0
E91: =E$75 -> PV discount factor at base date - Business retail | F91: =F$75 -> 0 | G91: factor | H91: 0 | I91: 0 | J91: 0 | K91: 0 | L91: 0 | M91: 0 | N91: 0 | O91: 0 | P91: 0 | Q91: 0 | R91: 1 | S91: 0 | T91: 0 | U91: 0 | V91: 0
E93: Water resources revenue adjustment applied in first year | G93: £m | H93: =SUM(J93:V93) -> 7.893415802 | J93: =$F77 * J85 -> 0 | K93: =$F77 * K85 -> 0 | L93: 0 | M93: 0 | N93: 0 | O93: 0 | P93: 0 | Q93: 0 | R93: 7.893415802 | S93: 0 | T93: 0 | U93: 0 | V93: 0
E94: Water network revenue adjustment applied in first year | G94: £m | H94: -4.404786688 | J94: =$F78 * J86 -> 0 | K94: =$F78 * K86 -> 0 | L94: 0 | M94: 0 | N94: 0 | O94: 0 | P94: 0 | Q94: 0 | R94: -4.404786688 | S94: 0 | T94: 0 | U94: 0 | V94: 0
E95: Bioresources revenue adjustment applied in first year | G95: £m | H95: 0 | J95: =$F79 * J87 -> 0 | K95: =$F79 * K87 -> 0 | L95: 0 | M95: 0 | N95: 0 | O95: 0 | P95: 0 | Q95: 0 | R95: 0 | S95: 0 | T95: 0 | U95: 0 | V95: 0
E96: Wastewater network revenue adjustment applied in first year | G96: £m | H96: -11.07968696 | J96: =$F80 * J88 -> 0 | K96: 0 | L96: 0 | M96: 0 | N96: 0 | O96: 0 | P96: 0 | Q96: 0 | R96: -11.07968696 | S96: 0 | T96: 0 | U96: 0 | V96: 0
E97: Dummy control revenue adjustment applied in first year | G97: £m | H97: =SUM(J97:V97) -> 0 | J97: 0 | K97: 0 | L97: 0 | M97: 0 | N97: 0 | O97: 0 | P97: 0 | Q97: 0 | R97: 0 | S97: 0 | T97: 0 | U97: 0 | V97: 0
E98: Residential retail revenue adjustment applied in first year | G98: £m | H98: 0.104906697 | J98: =$F82 * J90 -> 0 | K98: 0 | L98: 0 | M98: 0 | N98: 0 | O98: 0 | P98: 0 | Q98: 0 | R98: 0.104906697 | S98: 0 | T98: 0 | U98: 0 | V98: 0
E99: Business retail revenue adjustment applied in first year | G99: £m | H99: 0 | J99: =$F83 * J91 -> 0 | K99: =$F83 * K91 -> 0 | L99: 0 | M99: 0 | N99: 0 | O99: 0 | P99: 0 | Q99: 0 | R99: 0 | S99: 0 | T99: 0 | U99: 0 | V99: 0
B101: Profile 1 - Constant annuity 2020-25
A102: =Calc!A$188 -> C048 | E102: =Calc!E$188 -> Water resources revenue adjustment | F102: =Calc!F$188 -> 7.893415802 | G102: =Calc!G$188 -> £m
A103: =Calc!A$198 -> C058 | E103: =Calc!E$198 -> Water network plus revenue adjustment | F103: =Calc!F$198 -> -4.404786688 | G103: =Calc!G$198 -> £m
A104: =Calc!A$203 -> C068 | E104: =Calc!E$203 -> Bioresources revenue adjustment | F104: =Calc!F$203 -> 0 | G104: =Calc!G$203 -> £m
A105: =Calc!A$211 -> C078 | E105: =Calc!E$211 -> Wastewater network plus revenue adjustment | F105: =Calc!F$211 -> -11.07968696 | G105: =Calc!G$211 -> £m
A106: =Calc!A$216 -> C088 | E106: =Calc!E$216 -> Dummy control revenue adjustment | F106: =Calc!F$216 -> 0 | G106: =Calc!G$216 -> £m
A107: =Calc!A$223 -> C098 | E107: =Calc!E$223 -> Residential retail revenue adjustment | F107: =Calc!F$223 -> 0.104906697 | G107: =Calc!G$223 -> £m
A108: =Calc!A$228 -> C108 | E108: =Calc!E$228 -> Business retail revenue adjustment | F108: =Calc!F$228 -> 0 | G108: =Calc!G$228 -> £m
E110: =E$45 -> Equivalent Annual Cost (EAC) factor - Water resources | F110: 5 | G110: factor
E111: =E$46 -> Equivalent Annual Cost (EAC) factor - Water network | F111: 4.66420502 | G111: factor
E112: =E$47 -> Equivalent Annual Cost (EAC) factor - Bioresources | F112: =F$47 -> 5 | G112: factor
E113: =E$48 -> Equivalent Annual Cost (EAC) factor - Wastewater network | F113: =F$48 -> 5 | G113: =G$48 -> factor
E114: =E$49 -> Equivalent Annual Cost (EAC) factor - Dummy control | F114: =F$49 -> 5 | G114: factor
E115: =E$50 -> Equivalent Annual Cost (EAC) factor - Residential retail | F115: 5 | G115: factor
E116: =E$51 -> Equivalent Annual Cost (EAC) factor - Business retail | F116: =F$51 -> 5 | G116: factor
E118: =Time!E$49 -> Forecast period flag | F118: =Time!F$49 -> 0 | G118: =Time!G$49 -> flag | H118: =Time!H$49 -> 5 | I118: =Time!I$49 -> 0 | J118: =Time!J$49 -> 0 | K118: =Time!K$49 -> 0 | L118: =Time!L$49 -> 0 | M118: =Time!M$49 -> 0 | N118: =Time!N$49 -> 0 | O118: =Time!O$49 -> 0 | P118: =Time!P$49 -> 0 | Q118: =Time!Q$49 -> 0 | R118: =Time!R$49 -> 1 | S118: =Time!S$49 -> 1 | T118: =Time!T$49 -> 1 | U118: =Time!U$49 -> 1 | V118: =Time!V$49 -> 1
E120: Water resources revenue adjustment - EAC factor adjusted | G120: £m | H120: =SUM(J120:V120) -> 7.893415802 | J120: =($F102 / $F110) * J$118 -> 0 | K120: =($F102 / $F110) * K$118 -> 0 | L120: 0 | M120: 0 | N120: 0 | O120: 0 | P120: 0 | Q120: 0 | R120: 1.57868316 | S120: 1.57868316 | T120: 1.57868316 | U120: 1.57868316 | V120: 1.57868316
E121: Water network revenue adjustment - EAC factor adjusted | G121: £m | H121: -4.721905093 | J121: =($F103 / $F111) * J$118 -> 0 | K121: =($F103 / $F111) * K$118 -> 0 | L121: 0 | M121: 0 | N121: 0 | O121: 0 | P121: 0 | Q121: 0 | R121: -0.9443810186 | S121: -0.9443810186 | T121: -0.9443810186 | U121: -0.9443810186 | V121: -0.9443810186
E122: Bioresources revenue adjustment - EAC factor adjusted | G122: £m | H122: 0 | J122: =($F104 / $F112) * J$118 -> 0 | K122: =($F104 / $F112) * K$118 -> 0 | L122: 0 | M122: 0 | N122: 0 | O122: 0 | P122: 0 | Q122: 0 | R122: 0 | S122: 0 | T122: 0 | U122: 0 | V122: 0
E123: Wastewater network revenue adjustment - EAC factor adjusted | G123: £m | H123: -11.07968696 | J123: =($F105 / $F113) * J$118 -> 0 | K123: 0 | L123: 0 | M123: 0 | N123: 0 | O123: 0 | P123: 0 | Q123: 0 | R123: -2.215937392 | S123: -2.215937392 | T123: -2.215937392 | U123: -2.215937392 | V123: -2.215937392
E124: Dummy control revenue adjustment - EAC factor adjusted | G124: £m | H124: =SUM(J124:V124) -> 0 | J124: 0 | K124: 0 | L124: 0 | M124: 0 | N124: 0 | O124: 0 | P124: 0 | Q124: 0 | R124: 0 | S124: 0 | T124: 0 | U124: 0 | V124: 0
E125: Residential retail revenue adjustment - EAC factor adjusted | G125: £m | H125: 0.104906697 | J125: =($F107 / $F115) * J$118 -> 0 | K125: 0 | L125: 0 | M125: 0 | N125: 0 | O125: 0 | P125: 0 | Q125: 0 | R125: 0.02098133939 | S125: 0.02098133939 | T125: 0.02098133939 | U125: 0.02098133939 | V125: 0.02098133939
E126: Business retail revenue adjustment - EAC factor adjusted | G126: £m | H126: 0 | J126: =($F108 / $F116) * J$118 -> 0 | K126: 0 | L126: 0 | M126: 0 | N126: 0 | O126: 0 | P126: 0 | Q126: 0 | R126: 0 | S126: 0 | T126: 0 | U126: 0 | V126: 0
E128: =E$120 -> Water resources revenue adjustment - EAC factor adjusted | F128: 0 | G128: =G$120 -> £m | H128: =H$120 -> 7.893415802 | I128: =I$120 -> 0 | J128: =J$120 -> 0 | K128: =K$120 -> 0 | L128: =L$120 -> 0 | M128: =M$120 -> 0 | N128: =N$120 -> 0 | O128: =O$120 -> 0 | P128: =P$120 -> 0 | Q128: =Q$120 -> 0 | R128: =R$120 -> 1.57868316 | S128: =S$120 -> 1.57868316 | T128: =T$120 -> 1.57868316 | U128: =U$120 -> 1.57868316 | V128: =V$120 -> 1.57868316
E129: =E$121 -> Water network revenue adjustment - EAC factor adjusted | F129: 0 | G129: =G$121 -> £m | H129: =H$121 -> -4.721905093 | I129: =I$121 -> 0 | J129: =J$121 -> 0 | K129: =K$121 -> 0 | L129: =L$121 -> 0 | M129: =M$121 -> 0 | N129: =N$121 -> 0 | O129: =O$121 -> 0 | P129: =P$121 -> 0 | Q129: =Q$121 -> 0 | R129: =R$121 -> -0.9443810186 | S129: =S$121 -> -0.9443810186 | T129: =T$121 -> -0.9443810186 | U129: =U$121 -> -0.9443810186 | V129: =V$121 -> -0.9443810186
E130: =E$122 -> Bioresources revenue adjustment - EAC factor adjusted | F130: =F$122 -> 0 | G130: £m | H130: 0 | I130: 0 | J130: 0 | K130: 0 | L130: 0 | M130: 0 | N130: 0 | O130: 0 | P130: 0 | Q130: 0 | R130: 0 | S130: 0 | T130: 0 | U130: 0 | V130: 0
E131: =E$123 -> Wastewater network revenue adjustment - EAC factor adjusted | F131: =F$123 -> 0 | G131: =G$123 -> £m | H131: =H$123 -> -11.07968696 | I131: =I$123 -> 0 | J131: =J$123 -> 0 | K131: =K$123 -> 0 | L131: =L$123 -> 0 | M131: =M$123 -> 0 | N131: =N$123 -> 0 | O131: =O$123 -> 0 | P131: =P$123 -> 0 | Q131: =Q$123 -> 0 | R131: =R$123 -> -2.215937392 | S131: =S$123 -> -2.215937392 | T131: =T$123 -> -2.215937392 | U131: =U$123 -> -2.215937392 | V131: =V$123 -> -2.215937392
E132: =E$124 -> Dummy control revenue adjustment - EAC factor adjusted | F132: =F$124 -> 0 | G132: =G$124 -> £m | H132: =H$124 -> 0 | I132: =I$124 -> 0 | J132: =J$124 -> 0 | K132: =K$124 -> 0 | L132: =L$124 -> 0 | M132: =M$124 -> 0 | N132: =N$124 -> 0 | O132: =O$124 -> 0 | P132: =P$124 -> 0 | Q132: =Q$124 -> 0 | R132: =R$124 -> 0 | S132: =S$124 -> 0 | T132: =T$124 -> 0 | U132: =U$124 -> 0 | V132: =V$124 -> 0
E133: =E$125 -> Residential retail revenue adjustment - EAC factor adjusted | F133: 0 | G133: =G$125 -> £m | H133: =H$125 -> 0.104906697 | I133: =I$125 -> 0 | J133: =J$125 -> 0 | K133: =K$125 -> 0 | L133: =L$125 -> 0 | M133: =M$125 -> 0 | N133: =N$125 -> 0 | O133: =O$125 -> 0 | P133: =P$125 -> 0 | Q133: =Q$125 -> 0 | R133: =R$125 -> 0.02098133939 | S133: =S$125 -> 0.02098133939 | T133: =T$125 -> 0.02098133939 | U133: =U$125 -> 0.02098133939 | V133: =V$125 -> 0.02098133939
E134: =E$126 -> Business retail revenue adjustment - EAC factor adjusted | F134: =F$126 -> 0 | G134: £m | H134: 0 | I134: 0 | J134: 0 | K134: 0 | L134: 0 | M134: 0 | N134: 0 | O134: 0 | P134: 0 | Q134: 0 | R134: 0 | S134: 0 | T134: 0 | U134: 0 | V134: 0
E136: =E$28 -> PV discount factor - Water resources | F136: 0 | G136: factor | H136: 5 | I136: 0 | J136: 0 | K136: 0 | L136: 0 | M136: 0 | N136: 0 | O136: 0 | P136: 0 | Q136: 0 | R136: 1 | S136: 1 | T136: 1 | U136: 1 | V136: 1
E137: =E$29 -> PV discount factor - Water network | F137: 0 | G137: factor | H137: 4.66420502 | I137: 0 | J137: 0 | K137: 0 | L137: 0 | M137: 0 | N137: 0 | O137: 0 | P137: 0 | Q137: 0 | R137: 1 | S137: 0.9652509653 | T137: 0.9317094259 | U137: 0.8992462849 | V137: 0.8679983445
E138: =E$30 -> PV discount factor - Bioresources | F138: =F$30 -> 0 | G138: factor | H138: 5 | I138: 0 | J138: 0 | K138: 0 | L138: 0 | M138: 0 | N138: 0 | O138: 0 | P138: 0 | Q138: 0 | R138: 1 | S138: 1 | T138: 1 | U138: 1 | V138: 1
E139: =E$31 -> PV discount factor - Wastewater network | F139: 0 | G139: factor | H139: 5 | I139: 0 | J139: 0 | K139: 0 | L139: 0 | M139: 0 | N139: 0 | O139: 0 | P139: 0 | Q139: 0 | R139: 1 | S139: 1 | T139: 1 | U139: 1 | V139: 1
E140: =E$32 -> PV discount factor - Dummy control | F140: 0 | G140: factor | H140: 5 | I140: 0 | J140: 0 | K140: 0 | L140: 0 | M140: 0 | N140: 0 | O140: 0 | P140: 0 | Q140: 0 | R140: 1 | S140: 1 | T140: 1 | U140: 1 | V140: 1
E141: =E$33 -> PV discount factor - Residential retail | F141: 0 | G141: factor | H141: 5 | I141: 0 | J141: 0 | K141: 0 | L141: 0 | M141: 0 | N141: 0 | O141: 0 | P141: 0 | Q141: 0 | R141: 1 | S141: 1 | T141: 1 | U141: 1 | V141: 1
E142: =E$34 -> PV discount factor - Business retail | F142: =F$34 -> 0 | G142: factor | H142: 5 | I142: 0 | J142: 0 | K142: 0 | L142: 0 | M142: 0 | N142: 0 | O142: 0 | P142: 0 | Q142: 0 | R142: 1 | S142: 1 | T142: 1 | U142: 1 | V142: 1
E144: Water resources revenue adjustment - Constant annuity 2015-20 | G144: £m | H144: =SUM(J144:V144) -> 7.893415802 | J144: =J128 * J136 -> 0 | K144: 0 | L144: 0 | M144: 0 | N144: 0 | O144: 0 | P144: 0 | Q144: 0 | R144: 1.57868316 | S144: 1.57868316 | T144: 1.57868316 | U144: 1.57868316 | V144: 1.57868316
E145: Water network revenue adjustment - Constant annuity 2015-20 | G145: £m | H145: -4.404786688 | J145: =J129 * J137 -> 0 | K145: 0 | L145: 0 | M145: 0 | N145: 0 | O145: 0 | P145: 0 | Q145: 0 | R145: -0.9443810186 | S145: -0.9115646898 | T145: -0.8798886967 | U145: -0.8492311225 | V145: -0.8197211607
E146: Bioresources revenue adjustment - Constant annuity 2015-20 | G146: £m | H146: 0 | J146: =J130 * J138 -> 0 | K146: 0 | L146: 0 | M146: 0 | N146: 0 | O146: 0 | P146: 0 | Q146: 0 | R146: 0 | S146: 0 | T146: 0 | U146: 0 | V146: 0
E147: Wastewater network revenue adjustment - Constant annuity 2015-20 | G147: £m | H147: -11.07968696 | J147: =J131 * J139 -> 0 | K147: 0 | L147: 0 | M147: 0 | N147: 0 | O147: 0 | P147: 0 | Q147: 0 | R147: -2.215937392 | S147: -2.215937392 | T147: -2.215937392 | U147: -2.215937392 | V147: -2.215937392
E148: Dummy control revenue adjustment - Constant annuity 2015-20 | G148: £m | H148: =SUM(J148:V148) -> 0 | J148: 0 | K148: 0 | L148: 0 | M148: 0 | N148: 0 | O148: 0 | P148: 0 | Q148: 0 | R148: 0 | S148: 0 | T148: 0 | U148: 0 | V148: 0
E149: Residential retail revenue adjustment - Constant annuity 2015-20 | G149: £m | H149: 0.104906697 | J149: =J133 * J141 -> 0 | K149: 0 | L149: 0 | M149: 0 | N149: 0 | O149: 0 | P149: 0 | Q149: 0 | R149: 0.02098133939 | S149: 0.02098133939 | T149: 0.02098133939 | U149: 0.02098133939 | V149: 0.02098133939
E150: Business retail revenue adjustment - Constant annuity 2015-20 | G150: £m | H150: 0 | J150: =J134 * J142 -> 0 | K150: 0 | L150: 0 | M150: 0 | N150: 0 | O150: 0 | P150: 0 | Q150: 0 | R150: 0 | S150: 0 | T150: 0 | U150: 0 | V150: 0
B152: Profile 2 - Even allocation - NPV neutral
A153: =Calc!A$188 -> C048 | E153: =Calc!E$188 -> Water resources revenue adjustment | F153: =Calc!F$188 -> 7.893415802 | G153: =Calc!G$188 -> £m
A154: =Calc!A$198 -> C058 | E154: =Calc!E$198 -> Water network plus revenue adjustment | F154: =Calc!F$198 -> -4.404786688 | G154: =Calc!G$198 -> £m
A155: =Calc!A$203 -> C068 | E155: =Calc!E$203 -> Bioresources revenue adjustment | F155: =Calc!F$203 -> 0 | G155: =Calc!G$203 -> £m
A156: =Calc!A$211 -> C078 | E156: =Calc!E$211 -> Wastewater network plus revenue adjustment | F156: =Calc!F$211 -> -11.07968696 | G156: =Calc!G$211 -> £m
A157: =Calc!A$216 -> C088 | E157: =Calc!E$216 -> Dummy control revenue adjustment | F157: =Calc!F$216 -> 0 | G157: =Calc!G$216 -> £m
A158: =Calc!A$223 -> C098 | E158: =Calc!E$223 -> Residential retail revenue adjustment | F158: =Calc!F$223 -> 0.104906697 | G158: =Calc!G$223 -> £m
A159: =Calc!A$228 -> C108 | E159: =Calc!E$228 -> Business retail revenue adjustment | F159: =Calc!F$228 -> 0 | G159: =Calc!G$228 -> £m
A161: =Inputs!A$136 -> C040 | E161: =Inputs!E$136 -> Discount rate - Water resources | F161: =Inputs!F$136 -> 0 | G161: =Inputs!G$136 -> %
A162: =Inputs!A$137 -> C050 | E162: =Inputs!E$137 -> Discount rate - Water network plus | F162: =Inputs!F$137 -> 0.036 | G162: =Inputs!G$137 -> %
A163: =Inputs!A$138 -> C060 | E163: =Inputs!E$138 -> Discount rate - Bioresources | F163: =Inputs!F$138 -> 0 | G163: =Inputs!G$138 -> %
A164: =Inputs!A$139 -> C070 | E164: =Inputs!E$139 -> Discount rate - Wastewater network plus | F164: =Inputs!F$139 -> 0 | G164: =Inputs!G$139 -> %
A165: =Inputs!A$140 -> C080 | E165: =Inputs!E$140 -> Discount rate - Dummy control | F165: =Inputs!F$140 -> 0 | G165: =Inputs!G$140 -> %
A166: =Inputs!A$141 -> C090 | E166: =Inputs!E$141 -> Discount rate - Residential retail | F166: =Inputs!F$141 -> 0 | G166: =Inputs!G$141 -> %
A167: =Inputs!A$142 -> C100 | E167: =Inputs!E$142 -> Discount rate - Business retail | F167: =Inputs!F$142 -> 0 | G167: =Inputs!G$142 -> %
A169: =Inputs!A$144 -> C030 | E169: =Inputs!E$144 -> Number of years to profile over | F169: =Inputs!F$144 -> 5 | G169: =Inputs!G$144 -> #
E171: =E$13 -> Years from valuation date | F171: 0 | G171: =G$13 -> years | H171: 0 | I171: 0 | J171: 0 | K171: 0 | L171: 0 | M171: 0 | N171: 0 | O171: 0 | P171: 0 | Q171: 0 | R171: 0 | S171: 1 | T171: 2 | U171: 3.002739726 | V171: 4.002739726
E172: =Time!E$49 -> Forecast period flag | F172: =Time!F$49 -> 0 | G172: =Time!G$49 -> flag | H172: =Time!H$49 -> 5 | I172: =Time!I$49 -> 0 | J172: =Time!J$49 -> 0 | K172: =Time!K$49 -> 0 | L172: =Time!L$49 -> 0 | M172: =Time!M$49 -> 0 | N172: =Time!N$49 -> 0 | O172: =Time!O$49 -> 0 | P172: =Time!P$49 -> 0 | Q172: =Time!Q$49 -> 0 | R172: =Time!R$49 -> 1 | S172: =Time!S$49 -> 1 | T172: =Time!T$49 -> 1 | U172: =Time!U$49 -> 1 | V172: =Time!V$49 -> 1
E174: Water resources revenue adjustment - NPV adjusted | G174: £m | H174: =SUM(J174:V174) -> 7.893415802 | J174: =IF(J$171 + 1 <= $F$169 + 0.005, $F153 / $F$169, 0) * J$172 * (1 + $F161) ^ J$171 -> 0 | K174: =IF(K$171 + 1 <= $F$169 + 0.005, $F153 / $F$169, 0) * K$172 * (1 + $F161) ^ K$171 -> 0 | L174: 0 | M174: 0 | N174: 0 | O174: 0 | P174: 0 | Q174: 0 | R174: 1.57868316 | S174: 1.57868316 | T174: 1.57868316 | U174: 1.57868316 | V174: 1.57868316
E175: Water network revenue adjustment - NPV adjusted | G175: £m | H175: -4.733748786 | J175: 0 | K175: =IF(K$171 + 1 <= $F$169 + 0.005, $F154 / $F$169, 0) * K$172 * (1 + $F162) ^ K$171 -> 0 | L175: 0 | M175: 0 | N175: 0 | O175: 0 | P175: 0 | Q175: 0 | R175: -0.8809573377 | S175: -0.9126718018 | T175: -0.9455279867 | U175: -0.9796619152 | V175: -1.014929744
E176: Bioresources revenue adjustment - NPV adjusted | G176: £m | H176: 0 | J176: 0 | K176: =IF(K$171 + 1 <= $F$169 + 0.005, $F155 / $F$169, 0) * K$172 * (1 + $F163) ^ K$171 -> 0 | L176: 0 | M176: 0 | N176: 0 | O176: 0 | P176: 0 | Q176: 0 | R176: 0 | S176: 0 | T176: 0 | U176: 0 | V176: 0
E177: Wastewater network revenue adjustment - NPV adjusted | G177: £m | H177: -11.07968696 | J177: 0 | K177: =IF(K$171 + 1 <= $F$169 + 0.005, $F156 / $F$169, 0) * K$172 * (1 + $F164) ^ K$171 -> 0 | L177: 0 | M177: 0 | N177: 0 | O177: 0 | P177: 0 | Q177: 0 | R177: -2.215937392 | S177: -2.215937392 | T177: -2.215937392 | U177: -2.215937392 | V177: -2.215937392
E178: Dummy control revenue adjustment - NPV adjusted | G178: £m | H178: =SUM(J178:V178) -> 0 | J178: 0 | K178: =IF(K$171 + 1 <= $F$169 + 0.005, $F157 / $F$169, 0) * K$172 * (1 + $F165) ^ K$171 -> 0 | L178: 0 | M178: 0 | N178: 0 | O178: 0 | P178: 0 | Q178: 0 | R178: 0 | S178: 0 | T178: 0 | U178: 0 | V178: 0
E179: Residential retail revenue adjustment - NPV adjusted | G179: £m | H179: 0.104906697 | J179: 0 | K179: =IF(K$171 + 1 <= $F$169 + 0.005, $F158 / $F$169, 0) * K$172 * (1 + $F166) ^ K$171 -> 0 | L179: 0 | M179: 0 | N179: 0 | O179: 0 | P179: 0 | Q179: 0 | R179: 0.02098133939 | S179: 0.02098133939 | T179: 0.02098133939 | U179: 0.02098133939 | V179: 0.02098133939
E180: Business retail revenue adjustment - NPV adjusted | G180: £m | H180: 0 | J180: 0 | K180: =IF(K$171 + 1 <= $F$169 + 0.005, $F159 / $F$169, 0) * K$172 * (1 + $F167) ^ K$171 -> 0 | L180: 0 | M180: 0 | N180: 0 | O180: 0 | P180: 0 | Q180: 0 | R180: 0 | S180: 0 | T180: 0 | U180: 0 | V180: 0
E182: =E$174 -> Water resources revenue adjustment - NPV adjusted | F182: 0 | G182: =G$174 -> £m | H182: 7.893415802 | I182: 0 | J182: 0 | K182: 0 | L182: 0 | M182: 0 | N182: 0 | O182: 0 | P182: 0 | Q182: 0 | R182: 1.57868316 | S182: 1.57868316 | T182: 1.57868316 | U182: 1.57868316 | V182: 1.57868316
E183: =E$175 -> Water network revenue adjustment - NPV adjusted | F183: 0 | G183: =G$175 -> £m | H183: -4.733748786 | I183: 0 | J183: 0 | K183: 0 | L183: 0 | M183: 0 | N183: 0 | O183: 0 | P183: 0 | Q183: 0 | R183: -0.8809573377 | S183: -0.9126718018 | T183: -0.9455279867 | U183: -0.9796619152 | V183: -1.014929744
E184: =E$176 -> Bioresources revenue adjustment - NPV adjusted | F184: =F$176 -> 0 | G184: £m | H184: 0 | I184: 0 | J184: 0 | K184: 0 | L184: 0 | M184: 0 | N184: 0 | O184: 0 | P184: 0 | Q184: 0 | R184: 0 | S184: 0 | T184: 0 | U184: 0 | V184: 0
E185: =E$177 -> Wastewater network revenue adjustment - NPV adjusted | F185: =F$177 -> 0 | G185: =G$177 -> £m | H185: -11.07968696 | I185: 0 | J185: 0 | K185: 0 | L185: 0 | M185: 0 | N185: 0 | O185: 0 | P185: 0 | Q185: 0 | R185: -2.215937392 | S185: -2.215937392 | T185: -2.215937392 | U185: -2.215937392 | V185: -2.215937392
E186: =E$178 -> Dummy control revenue adjustment - NPV adjusted | F186: 0 | G186: £m | H186: 0 | I186: 0 | J186: 0 | K186: 0 | L186: 0 | M186: 0 | N186: 0 | O186: 0 | P186: 0 | Q186: 0 | R186: 0 | S186: 0 | T186: 0 | U186: 0 | V186: 0
E187: =E$179 -> Residential retail revenue adjustment - NPV adjusted | F187: 0 | G187: =G$179 -> £m | H187: 0.104906697 | I187: 0 | J187: 0 | K187: 0 | L187: 0 | M187: 0 | N187: 0 | O187: 0 | P187: 0 | Q187: 0 | R187: 0.02098133939 | S187: 0.02098133939 | T187: 0.02098133939 | U187: 0.02098133939 | V187: 0.02098133939
E188: =E$180 -> Business retail revenue adjustment - NPV adjusted | F188: =F$180 -> 0 | G188: £m | H188: 0 | I188: 0 | J188: 0 | K188: 0 | L188: 0 | M188: 0 | N188: 0 | O188: 0 | P188: 0 | Q188: 0 | R188: 0 | S188: 0 | T188: 0 | U188: 0 | V188: 0
E190: =E$28 -> PV discount factor - Water resources | F190: 0 | G190: factor | H190: 5 | I190: 0 | J190: 0 | K190: 0 | L190: 0 | M190: 0 | N190: 0 | O190: 0 | P190: 0 | Q190: 0 | R190: 1 | S190: 1 | T190: 1 | U190: 1 | V190: 1
E191: =E$29 -> PV discount factor - Water network | F191: 0 | G191: factor | H191: 4.66420502 | I191: 0 | J191: 0 | K191: 0 | L191: 0 | M191: 0 | N191: 0 | O191: 0 | P191: 0 | Q191: 0 | R191: 1 | S191: 0.9652509653 | T191: 0.9317094259 | U191: 0.8992462849 | V191: 0.8679983445
E192: =E$30 -> PV discount factor - Bioresources | F192: =F$30 -> 0 | G192: factor | H192: 5 | I192: 0 | J192: 0 | K192: 0 | L192: 0 | M192: 0 | N192: 0 | O192: 0 | P192: 0 | Q192: 0 | R192: 1 | S192: 1 | T192: 1 | U192: 1 | V192: 1
E193: =E$31 -> PV discount factor - Wastewater network | F193: 0 | G193: factor | H193: 5 | I193: 0 | J193: 0 | K193: 0 | L193: 0 | M193: 0 | N193: 0 | O193: 0 | P193: 0 | Q193: 0 | R193: 1 | S193: 1 | T193: 1 | U193: 1 | V193: 1
E194: =E$32 -> PV discount factor - Dummy control | F194: 0 | G194: factor | H194: 5 | I194: 0 | J194: 0 | K194: 0 | L194: 0 | M194: 0 | N194: 0 | O194: 0 | P194: 0 | Q194: 0 | R194: 1 | S194: 1 | T194: 1 | U194: 1 | V194: 1
E195: =E$33 -> PV discount factor - Residential retail | F195: 0 | G195: factor | H195: 5 | I195: 0 | J195: 0 | K195: 0 | L195: 0 | M195: 0 | N195: 0 | O195: 0 | P195: 0 | Q195: 0 | R195: 1 | S195: 1 | T195: 1 | U195: 1 | V195: 1
E196: =E$34 -> PV discount factor - Business retail | F196: =F$34 -> 0 | G196: factor | H196: 5 | I196: 0 | J196: 0 | K196: 0 | L196: 0 | M196: 0 | N196: 0 | O196: 0 | P196: 0 | Q196: 0 | R196: 1 | S196: 1 | T196: 1 | U196: 1 | V196: 1
E198: Water resources revenue adjustment - Even allocation - NPV neutral | G198: £m | H198: =SUM(J198:V198) -> 7.893415802 | J198: =J182 * J190 -> 0 | K198: 0 | L198: 0 | M198: 0 | N198: 0 | O198: 0 | P198: 0 | Q198: 0 | R198: 1.57868316 | S198: 1.57868316 | T198: 1.57868316 | U198: 1.57868316 | V198: 1.57868316
E199: Water network revenue adjustment - Even allocation - NPV neutral | G199: £m | H199: -4.404786688 | J199: =J183 * J191 -> 0 | K199: 0 | L199: 0 | M199: 0 | N199: 0 | O199: 0 | P199: 0 | Q199: 0 | R199: -0.8809573377 | S199: -0.8809573377 | T199: -0.8809573377 | U199: -0.8809573377 | V199: -0.8809573377
E200: Bioresources revenue adjustment - Even allocation - NPV neutral | G200: £m | H200: 0 | J200: =J184 * J192 -> 0 | K200: 0 | L200: 0 | M200: 0 | N200: 0 | O200: 0 | P200: 0 | Q200: 0 | R200: 0 | S200: 0 | T200: 0 | U200: 0 | V200: 0
E201: Wastewater network revenue adjustment - Even allocation - NPV neutral | G201: £m | H201: -11.07968696 | J201: =J185 * J193 -> 0 | K201: 0 | L201: 0 | M201: 0 | N201: 0 | O201: 0 | P201: 0 | Q201: 0 | R201: -2.215937392 | S201: -2.215937392 | T201: -2.215937392 | U201: -2.215937392 | V201: -2.215937392
E202: Dummy control revenue adjustment - Even allocation - NPV neutral | G202: £m | H202: =SUM(J202:V202) -> 0 | J202: 0 | K202: 0 | L202: 0 | M202: 0 | N202: 0 | O202: 0 | P202: 0 | Q202: 0 | R202: 0 | S202: 0 | T202: 0 | U202: 0 | V202: 0
E203: Residential retail revenue adjustment - Even allocation - NPV neutral | G203: £m | H203: 0.104906697 | J203: =J187 * J195 -> 0 | K203: 0 | L203: 0 | M203: 0 | N203: 0 | O203: 0 | P203: 0 | Q203: 0 | R203: 0.02098133939 | S203: 0.02098133939 | T203: 0.02098133939 | U203: 0.02098133939 | V203: 0.02098133939
E204: Business retail revenue adjustment - Even allocation - NPV neutral | G204: £m | H204: 0 | J204: =J188 * J196 -> 0 | K204: 0 | L204: 0 | M204: 0 | N204: 0 | O204: 0 | P204: 0 | Q204: 0 | R204: 0 | S204: 0 | T204: 0 | U204: 0 | V204: 0
A207: PROFILES SELECTION
A209: =Inputs!A$148 -> C041 | E209: =Inputs!E$148 -> Water resources revenue adjustment selector | F209: =Inputs!F$148 -> 0 | G209: =Inputs!G$148 -> 0 = Apply in first year, 1 = Constant annuity 2020-25, 2 = Even allocation - NPV neutral
A210: =Inputs!A$149 -> C051 | E210: =Inputs!E$149 -> Water network plus revenue adjustment selector | F210: =Inputs!F$149 -> 1 | G210: =Inputs!G$149 -> 0 = Apply in first year, 1 = Constant annuity 2020-25, 2 = Even allocation - NPV neutral
A211: =Inputs!A$150 -> C061 | E211: =Inputs!E$150 -> Bioresources revenue adjustment selector | F211: =Inputs!F$150 -> 0 | G211: =Inputs!G$150 -> 0 = Apply in first year, 1 = Constant annuity 2020-25, 2 = Even allocation - NPV neutral
A212: =Inputs!A$151 -> C071 | E212: =Inputs!E$151 -> Wastewater network plus revenue adjustment selector | F212: =Inputs!F$151 -> 0 | G212: =Inputs!G$151 -> 0 = Apply in first year, 1 = Constant annuity 2020-25, 2 = Even allocation - NPV neutral
A213: =Inputs!A$152 -> C081 | E213: =Inputs!E$152 -> Dummy control revenue adjustment selector | F213: =Inputs!F$152 -> 0 | G213: =Inputs!G$152 -> 0 = Apply in first year, 1 = Constant annuity 2020-25, 2 = Even allocation - NPV neutral
A214: =Inputs!A$153 -> C091 | E214: =Inputs!E$153 -> Residential retail revenue adjustment selector | F214: =Inputs!F$153 -> 0 | G214: =Inputs!G$153 -> 0 = Apply in first year, 1 = Constant annuity 2020-25, 2 = Even allocation - NPV neutral
A215: =Inputs!A$154 -> C101 | E215: =Inputs!E$154 -> Business retail revenue adjustment selector | F215: =Inputs!F$154 -> 0 | G215: =Inputs!G$154 -> 0 = Apply in first year, 1 = Constant annuity 2020-25, 2 = Even allocation - NPV neutral
E217: =E$93 -> Water resources revenue adjustment applied in first year | F217: 0 | G217: =G$93 -> £m | H217: 7.893415802 | I217: 0 | J217: 0 | K217: 0 | L217: 0 | M217: 0 | N217: 0 | O217: 0 | P217: 0 | Q217: 0 | R217: 7.893415802 | S217: 0 | T217: 0 | U217: 0 | V217: 0
E218: =E$94 -> Water network revenue adjustment applied in first year | F218: 0 | G218: =G$94 -> £m | H218: -4.404786688 | I218: 0 | J218: 0 | K218: 0 | L218: 0 | M218: 0 | N218: 0 | O218: 0 | P218: 0 | Q218: 0 | R218: -4.404786688 | S218: 0 | T218: 0 | U218: 0 | V218: 0
E219: =E$95 -> Bioresources revenue adjustment applied in first year | F219: =F$95 -> 0 | G219: £m | H219: 0 | I219: 0 | J219: 0 | K219: 0 | L219: 0 | M219: 0 | N219: 0 | O219: 0 | P219: 0 | Q219: 0 | R219: 0 | S219: 0 | T219: 0 | U219: 0 | V219: 0
E220: =E$96 -> Wastewater network revenue adjustment applied in first year | F220: 0 | G220: =G$96 -> £m | H220: -11.07968696 | I220: 0 | J220: 0 | K220: 0 | L220: 0 | M220: 0 | N220: 0 | O220: 0 | P220: 0 | Q220: 0 | R220: -11.07968696 | S220: 0 | T220: 0 | U220: 0 | V220: 0
E221: =E$97 -> Dummy control revenue adjustment applied in first year | F221: 0 | G221: £m | H221: 0 | I221: 0 | J221: 0 | K221: 0 | L221: 0 | M221: 0 | N221: 0 | O221: 0 | P221: 0 | Q221: 0 | R221: 0 | S221: 0 | T221: 0 | U221: 0 | V221: 0
E222: =E$98 -> Residential retail revenue adjustment applied in first year | F222: 0 | G222: =G$98 -> £m | H222: 0.104906697 | I222: 0 | J222: 0 | K222: 0 | L222: 0 | M222: 0 | N222: 0 | O222: 0 | P222: 0 | Q222: 0 | R222: 0.104906697 | S222: 0 | T222: 0 | U222: 0 | V222: 0
E223: =E$99 -> Business retail revenue adjustment applied in first year | F223: =F$99 -> 0 | G223: £m | H223: 0 | I223: 0 | J223: 0 | K223: 0 | L223: 0 | M223: 0 | N223: 0 | O223: 0 | P223: 0 | Q223: 0 | R223: 0 | S223: 0 | T223: 0 | U223: 0 | V223: 0
E225: =E$128 -> Water resources revenue adjustment - EAC factor adjusted | F225: =F$128 -> 0 | G225: £m | H225: 7.893415802 | I225: 0 | J225: 0 | K225: 0 | L225: 0 | M225: 0 | N225: 0 | O225: 0 | P225: 0 | Q225: 0 | R225: 1.57868316 | S225: 1.57868316 | T225: 1.57868316 | U225: 1.57868316 | V225: 1.57868316
E226: =E$129 -> Water network revenue adjustment - EAC factor adjusted | F226: =F$129 -> 0 | G226: £m | H226: -4.721905093 | I226: 0 | J226: 0 | K226: 0 | L226: 0 | M226: 0 | N226: 0 | O226: 0 | P226: 0 | Q226: 0 | R226: -0.9443810186 | S226: -0.9443810186 | T226: -0.9443810186 | U226: -0.9443810186 | V226: -0.9443810186
E227: =E$130 -> Bioresources revenue adjustment - EAC factor adjusted | F227: =F$130 -> 0 | G227: £m | H227: 0 | I227: 0 | J227: 0 | K227: 0 | L227: 0 | M227: 0 | N227: 0 | O227: 0 | P227: 0 | Q227: 0 | R227: 0 | S227: 0 | T227: 0 | U227: 0 | V227: 0
E228: =E$131 -> Wastewater network revenue adjustment - EAC factor adjusted | F228: =F$131 -> 0 | G228: £m | H228: -11.07968696 | I228: 0 | J228: 0 | K228: 0 | L228: 0 | M228: 0 | N228: 0 | O228: 0 | P228: 0 | Q228: 0 | R228: -2.215937392 | S228: -2.215937392 | T228: -2.215937392 | U228: -2.215937392 | V228: -2.215937392
E229: =E$132 -> Dummy control revenue adjustment - EAC factor adjusted | F229: 0 | G229: £m | H229: 0 | I229: 0 | J229: 0 | K229: 0 | L229: 0 | M229: 0 | N229: 0 | O229: 0 | P229: 0 | Q229: 0 | R229: 0 | S229: 0 | T229: 0 | U229: 0 | V229: 0
E230: =E$133 -> Residential retail revenue adjustment - EAC factor adjusted | F230: =F$133 -> 0 | G230: £m | H230: 0.104906697 | I230: 0 | J230: 0 | K230: 0 | L230: 0 | M230: 0 | N230: 0 | O230: 0 | P230: 0 | Q230: 0 | R230: 0.02098133939 | S230: 0.02098133939 | T230: 0.02098133939 | U230: 0.02098133939 | V230: 0.02098133939
E231: =E$134 -> Business retail revenue adjustment - EAC factor adjusted | F231: =F$134 -> 0 | G231: £m | H231: 0 | I231: 0 | J231: 0 | K231: 0 | L231: 0 | M231: 0 | N231: 0 | O231: 0 | P231: 0 | Q231: 0 | R231: 0 | S231: 0 | T231: 0 | U231: 0 | V231: 0
E233: =E$182 -> Water resources revenue adjustment - NPV adjusted | F233: =F$182 -> 0 | G233: £m | H233: 7.893415802 | I233: 0 | J233: 0 | K233: 0 | L233: 0 | M233: 0 | N233: 0 | O233: 0 | P233: 0 | Q233: 0 | R233: 1.57868316 | S233: 1.57868316 | T233: 1.57868316 | U233: 1.57868316 | V233: 1.57868316
E234: =E$183 -> Water network revenue adjustment - NPV adjusted | F234: =F$183 -> 0 | G234: £m | H234: -4.733748786 | I234: 0 | J234: 0 | K234: 0 | L234: 0 | M234: 0 | N234: 0 | O234: 0 | P234: 0 | Q234: 0 | R234: -0.8809573377 | S234: -0.9126718018 | T234: -0.9455279867 | U234: -0.9796619152 | V234: -1.014929744
E235: =E$184 -> Bioresources revenue adjustment - NPV adjusted | F235: =F$184 -> 0 | G235: £m | H235: 0 | I235: 0 | J235: 0 | K235: 0 | L235: 0 | M235: 0 | N235: 0 | O235: 0 | P235: 0 | Q235: 0 | R235: 0 | S235: 0 | T235: 0 | U235: 0 | V235: 0
E236: =E$185 -> Wastewater network revenue adjustment - NPV adjusted | F236: =F$185 -> 0 | G236: £m | H236: -11.07968696 | I236: 0 | J236: 0 | K236: 0 | L236: 0 | M236: 0 | N236: 0 | O236: 0 | P236: 0 | Q236: 0 | R236: -2.215937392 | S236: -2.215937392 | T236: -2.215937392 | U236: -2.215937392 | V236: -2.215937392
E237: =E$186 -> Dummy control revenue adjustment - NPV adjusted | F237: 0 | G237: £m | H237: 0 | I237: 0 | J237: 0 | K237: 0 | L237: 0 | M237: 0 | N237: 0 | O237: 0 | P237: 0 | Q237: 0 | R237: 0 | S237: 0 | T237: 0 | U237: 0 | V237: 0
E238: =E$187 -> Residential retail revenue adjustment - NPV adjusted | F238: =F$187 -> 0 | G238: £m | H238: 0.104906697 | I238: 0 | J238: 0 | K238: 0 | L238: 0 | M238: 0 | N238: 0 | O238: 0 | P238: 0 | Q238: 0 | R238: 0.02098133939 | S238: 0.02098133939 | T238: 0.02098133939 | U238: 0.02098133939 | V238: 0.02098133939
E239: =E$188 -> Business retail revenue adjustment - NPV adjusted | F239: =F$188 -> 0 | G239: £m | H239: 0 | I239: 0 | J239: 0 | K239: 0 | L239: 0 | M239: 0 | N239: 0 | O239: 0 | P239: 0 | Q239: 0 | R239: 0 | S239: 0 | T239: 0 | U239: 0 | V239: 0
... 7 more rows

Sheet Summary_Output
A1: =RIGHT(CELL("filename", $A$1), LEN(CELL("filename", $A$1)) - SEARCH("]", CELL("filename", $A$1))) -> Summary_Output
E2: =Time!E$25 -> Model period ending | J2: =Time!J$25 -> 2013-03-31 | K2: =Time!K$25 -> 2014-03-31 | L2: =Time!L$25 -> 2015-03-31 | M2: =Time!M$25 -> 2016-03-31 | N2: =Time!N$25 -> 2017-03-31 | O2: =Time!O$25 -> 2018-03-31 | P2: =Time!P$25 -> 2019-03-31 | Q2: =Time!Q$25 -> 2020-03-31 | R2: =Time!R$25 -> 2021-03-31 | S2: =Time!S$25 -> 2022-03-31 | T2: =Time!T$25 -> 2023-03-31 | U2: =Time!U$25 -> 2024-03-31 | V2: =Time!V$25 -> 2025-03-31
E3: =Time!E$80 -> Timeline label | J3: =Time!J$80 -> Pre-Fcst | K3: =Time!K$80 -> Pre-Fcst | L3: =Time!L$80 -> Pre-Fcst | M3: =Time!M$80 -> Pre-Fcst | N3: =Time!N$80 -> Pre-Fcst | O3: =Time!O$80 -> Pre-Fcst | P3: =Time!P$80 -> Pre-Fcst | Q3: =Time!Q$80 -> Pre-Fcst | R3: =Time!R$80 -> Forecast | S3: =Time!S$80 -> Forecast | T3: =Time!T$80 -> Forecast | U3: =Time!U$80 -> Forecast | V3: =Time!V$80 -> Forecast
E4: =Time!E$103 -> Financial year ending | J4: =Time!J$103 -> 2013 | K4: =Time!K$103 -> 2014 | L4: =Time!L$103 -> 2015 | M4: =Time!M$103 -> 2016 | N4: =Time!N$103 -> 2017 | O4: =Time!O$103 -> 2018 | P4: =Time!P$103 -> 2019 | Q4: =Time!Q$103 -> 2020 | R4: =Time!R$103 -> 2021 | S4: =Time!S$103 -> 2022 | T4: =Time!T$103 -> 2023 | U4: =Time!U$103 -> 2024 | V4: =Time!V$103 -> 2025
E5: =Time!E$10 -> Model column counter | F5: Constant | G5: Unit | J5: =Time!J$10 -> 1 | K5: =Time!K$10 -> 2 | L5: =Time!L$10 -> 3 | M5: =Time!M$10 -> 4 | N5: =Time!N$10 -> 5 | O5: =Time!O$10 -> 6 | P5: =Time!P$10 -> 7 | Q5: =Time!Q$10 -> 8 | R5: =Time!R$10 -> 9 | S5: =Time!S$10 -> 10 | T5: =Time!T$10 -> 11 | U5: =Time!U$10 -> 12 | V5: =Time!V$10 -> 13
A7: PR14 REVENUE RECONCILIATION ADJUSTMENTS EXPRESSED IN 2017/18 FYA CPIH DEFLATED PRICE BASE BY TABLE
B9: Table App25
A10: =Calc!A$157 & "_PR19PD011" -> C_APP25004_PR19PD011 | E10: =Calc!E$157 -> Further 2010-15 reconciliation total adjustment revenue carry forward to PR19 ~ Water network plus at 2017-18 FYA CPIH deflated price base | F10: =Calc!F$157 -> -0.86887209 | G10: =Calc!G$157 -> £m
A11: =Calc!A$166 & "_PR19PD011" -> C_APP25006_PR19PD011 | E11: =Calc!E$166 -> Further 2010-15 reconciliation total adjustment revenue carry forward to PR19 ~ Wastewater network plus at 2017-18 FYA CPIH deflated price base | F11: =Calc!F$166 -> -4.717578758 | G11: =Calc!G$166 -> £m
B13: Table App27
A14: =Calc!A$153 & "_PR19PD011" -> C_APP27034_PR19PD011 | E14: =Calc!E$153 -> ODI in-period revenue adjustment ~ Water resources at 2017-18 FYA CPIH deflated price base | F14: =Calc!F$153 -> 0 | G14: =Calc!G$153 -> £m
A15: =Calc!A$158 & "_PR19PD011" -> C_APP27035_PR19PD011 | E15: =Calc!E$158 -> ODI in-period revenue adjustment ~ Water network plus at 2017-18 FYA CPIH deflated price base | F15: =Calc!F$158 -> 0 | G15: =Calc!G$158 -> £m
A16: =Calc!A$164 & "_PR19PD011" -> C_APP27037_PR19PD011 | E16: =Calc!E$164 -> ODI in-period revenue adjustment ~ Bioresources at 2017-18 FYA CPIH deflated price base | F16: =Calc!F$164 -> 0 | G16: =Calc!G$164 -> £m
A17: =Calc!A$167 & "_PR19PD011" -> C_APP27036_PR19PD011 | E17: =Calc!E$167 -> ODI in-period revenue adjustment ~ Wastewater network plus at 2017-18 FYA CPIH deflated price base | F17: =Calc!F$167 -> 0 | G17: =Calc!G$167 -> £m
A18: =Calc!A$173 & "_PR19PD011" -> C_APP27038_PR19PD011 | E18: =Calc!E$173 -> ODI in-period revenue adjustment ~ Residential retail at 2017-18 FYA CPIH deflated price base | F18: =Calc!F$173 -> 0 | G18: =Calc!G$173 -> £m
A19: =Calc!A$177 & "_PR19PD011" -> C_APP27039_PR19PD011 | E19: =Calc!E$177 -> ODI in-period revenue adjustment ~ Business retail at 2017-18 FYA CPIH deflated price base | F19: =Calc!F$177 -> 0 | G19: =Calc!G$177 -> £m
A21: =Calc!A$154 & "_PR19PD011" -> C_APP27041_PR19PD011 | E21: =Calc!E$154 -> ODI end of period revenue adjustment ~ Water resources at 2017-18 FYA CPIH deflated price base | F21: =Calc!F$154 -> 7.893415802 | G21: =Calc!G$154 -> £m
A22: =Calc!A$159 & "_PR19PD011" -> C_APP27042_PR19PD011 | E22: =Calc!E$159 -> ODI end of period revenue adjustment ~ Water network plus at 2017-18 FYA CPIH deflated price base | F22: =Calc!F$159 -> -0.3295142306 | G22: =Calc!G$159 -> £m
A23: =Calc!A$165 & "_PR19PD011" -> C_APP27044_PR19PD011 | E23: =Calc!E$165 -> ODI end of period revenue adjustment ~ Bioresources at 2017-18 FYA CPIH deflated price base | F23: =Calc!F$165 -> 0 | G23: =Calc!G$165 -> £m
A24: =Calc!A$168 & "_PR19PD011" -> C_APP27043_PR19PD011 | E24: =Calc!E$168 -> ODI end of period revenue adjustment ~ Wastewater network plus at 2017-18 FYA CPIH deflated price base | F24: =Calc!F$168 -> -3.669433731 | G24: =Calc!G$168 -> £m
A25: =Calc!A$174 & "_PR19PD011" -> C_APP27045_PR19PD011 | E25: =Calc!E$174 -> ODI end of period revenue adjustment ~ Residential retail at 2017-18 FYA CPIH deflated price base | F25: =Calc!F$174 -> 0 | G25: =Calc!G$174 -> £m
A26: =Calc!A$178 & "_PR19PD011" -> C_APP27046_PR19PD011 | E26: =Calc!E$178 -> ODI end of period revenue adjustment ~ Business retail at 2017-18 FYA CPIH deflated price base | F26: =Calc!F$178 -> 0 | G26: =Calc!G$178 -> £m
B28: Table WS13
A29: =Calc!A$163 & "_PR19PD011" -> C_WS13027_PR19PD011 | E29: =Calc!E$163 -> WRFIM total reward / (penalty) at the end of AMP6 ~ Water network plus at 2017-18 FYA CPIH deflated price base | F29: =Calc!F$163 -> 0.0007815466517 | G29: =Calc!G$163 -> £m
B31: Table WS15
A32: =Calc!A$160 & "_PR19PD011" -> C_WS15026_PR19PD011 | E32: =Calc!E$160 -> Water: Totex menu revenue adjustment at 2017-18 FYA CPIH deflated price base | F32: =Calc!F$160 -> -3.207181914 | G32: =Calc!G$160 -> £m
B34: Table WS17
A35: =Calc!A$155 & "_PR19PD011" -> C_WS17027_PR19PD011 | E35: =Calc!E$155 -> Water trading total value of export incentive ~ Water resources at 2017-18 FYA CPIH deflated price base | F35: =Calc!F$155 -> 0 | G35: =Calc!G$155 -> £m
A36: =Calc!A$161 & "_PR19PD011" -> C_WS17028_PR19PD011 | E36: =Calc!E$161 -> Water trading total value of export incentive ~ Water network plus at 2017-18 FYA CPIH deflated price base | F36: =Calc!F$161 -> 0 | G36: =Calc!G$161 -> £m
A37: =Calc!A$156 & "_PR19PD011" -> C_WS17030_PR19PD011 | E37: =Calc!E$156 -> Water trading total value of import incentive ~ Water resources at 2017-18 FYA CPIH deflated price base | F37: =Calc!F$156 -> 0 | G37: =Calc!G$156 -> £m
A38: =Calc!A$162 & "_PR19PD011" -> C_WS17031_PR19PD011 | E38: =Calc!E$162 -> Water trading total value of import incentive ~ Water network plus at 2017-18 FYA CPIH deflated price base | F38: =Calc!F$162 -> 0 | G38: =Calc!G$162 -> £m
B40: Table WWS13
A41: =Calc!A$170 & "_PR19PD011" -> C_WWS13027_PR19PD011 | E41: =Calc!E$170 -> WRFIM total reward / (penalty) at the end of AMP6 ~ Wastewater network plus at 2017-18 FYA CPIH deflated price base | F41: =Calc!F$170 -> -0.0009233860572 | G41: =Calc!G$170 -> £m
B43: Table WWS15
A44: =Calc!A$169 & "_PR19PD011" -> C_WWS15021_PR19PD011 | E44: =Calc!E$169 -> Wastewater: Totex menu revenue adjustment at 2017-18 FYA CPIH deflated price base | F44: =Calc!F$169 -> -2.691751083 | G44: =Calc!G$169 -> £m
B46: Table Dmmy10
A47: =Calc!A$171 & "_PR19PD011" -> C_WWS15021_DMMY_PR19PD011 | E47: =Calc!E$171 -> Dummy: revenue adjustment from totex menu model at 2017-18 FYA CPIH deflated price base | F47: =Calc!F$171 -> 0 | G47: =Calc!G$171 -> £m
B49: Table Dmmy11
A50: =Calc!A$172 & "_PR19PD011" -> C_WWS13027_DMMY_PR19PD011 | E50: =Calc!E$172 -> WRFIM total reward / (penalty) at the end of AMP6 ~ Dummy at 2017-18 FYA CPIH deflated price base | F50: =Calc!F$172 -> 0 | G50: =Calc!G$172 -> £m
B52: Table R9
A53: =Calc!A$175 & "_PR19PD011" -> C_R9046_PR19PD011 | E53: =Calc!E$175 -> Residential retail revenue adjustment at 2017-18 FYA CPIH deflated price base | F53: =Calc!F$175 -> 0.104906697 | G53: =Calc!G$175 -> £m
B55: Table R10
A56: =Calc!A$176 & "_PR19PD011" -> C_R10009_PR19PD011 | E56: =Calc!E$176 -> SIM forecast revenue adjustment at 2017-18 FYA CPIH deflated price base | F56: =Calc!F$176 -> 0 | G56: =Calc!G$176 -> £m
A59: SUBTOTALS AS PER PRICE CONTROL FOR REVENUE ADJUSTMENTS
A61: =Calc!A$188 & "_PR19PD011" -> C048_PR19PD011 | E61: =Calc!E$188 -> Water resources revenue adjustment | F61: =Calc!F$188 -> 7.893415802 | G61: =Calc!G$188 -> £m
A62: =Calc!A$198 & "_PR19PD011" -> C058_PR19PD011 | E62: =Calc!E$198 -> Water network plus revenue adjustment | F62: =Calc!F$198 -> -4.404786688 | G62: =Calc!G$198 -> £m
A63: =Calc!A$203 & "_PR19PD011" -> C068_PR19PD011 | E63: =Calc!E203 -> Bioresources revenue adjustment | F63: =Calc!F203 -> 0 | G63: =Calc!G203 -> £m
A64: =Calc!A$211 & "_PR19PD011" -> C078_PR19PD011 | E64: =Calc!E$211 -> Wastewater network plus revenue adjustment | F64: =Calc!F$211 -> -11.07968696 | G64: =Calc!G$211 -> £m
A65: =Calc!A$216 & "_PR19PD011" -> C088_PR19PD011 | E65: =Calc!E$216 -> Dummy control revenue adjustment | F65: =Calc!F$216 -> 0 | G65: =Calc!G$216 -> £m
A66: =Calc!A$223 & "_PR19PD011" -> C098_PR19PD011 | E66: =Calc!E$223 -> Residential retail revenue adjustment | F66: =Calc!F$223 -> 0.104906697 | G66: =Calc!G$223 -> £m
A67: =Calc!A$228 & "_PR19PD011" -> C108_PR19PD011 | E67: =Calc!E$228 -> Business retail revenue adjustment | F67: =Calc!F$228 -> 0 | G67: =Calc!G$228 -> £m
A70: PROFILES SELECTED
A72: =Profiling!A$241 & "_PR19PD011" -> C049_PR19PD011 | E72: =Profiling!E$241 -> Water resources revenue adjustment active | F72: =Profiling!F$241 -> 0 | G72: =Profiling!G$241 -> £m | H72: =Profiling!H$241 -> 7.893415802 | I72: =Profiling!I$241 -> 0 | J72: =Profiling!J$241 -> 0 | K72: =Profiling!K$241 -> 0 | L72: =Profiling!L$241 -> 0 | M72: =Profiling!M$241 -> 0 | N72: =Profiling!N$241 -> 0 | O72: =Profiling!O$241 -> 0 | P72: =Profiling!P$241 -> 0 | Q72: =Profiling!Q$241 -> 0 | R72: =Profiling!R$241 -> 7.893415802 | S72: =Profiling!S$241 -> 0 | T72: =Profiling!T$241 -> 0 | U72: =Profiling!U$241 -> 0 | V72: =Profiling!V$241 -> 0
A73: =Profiling!A$242 & "_PR19PD011" -> C059_PR19PD011 | E73: =Profiling!E$242 -> Water network revenue adjustment active | F73: =Profiling!F$242 -> 0 | G73: =Profiling!G$242 -> £m | H73: =Profiling!H$242 -> -4.721905093 | I73: =Profiling!I$242 -> 0 | J73: =Profiling!J$242 -> 0 | K73: =Profiling!K$242 -> 0 | L73: =Profiling!L$242 -> 0 | M73: =Profiling!M$242 -> 0 | N73: =Profiling!N$242 -> 0 | O73: =Profiling!O$242 -> 0 | P73: =Profiling!P$242 -> 0 | Q73: =Profiling!Q$242 -> 0 | R73: =Profiling!R$242 -> -0.9443810186 | S73: =Profiling!S$242 -> -0.9443810186 | T73: =Profiling!T$242 -> -0.9443810186 | U73: =Profiling!U$242 -> -0.9443810186 | V73: =Profiling!V$242 -> -0.9443810186
A74: =Profiling!A$243 & "_PR19PD011" -> C069_PR19PD011 | E74: =Profiling!E$243 -> Bioresources revenue adjustment active | F74: =Profiling!F$243 -> 0 | G74: =Profiling!G$243 -> £m | H74: =Profiling!H$243 -> 0 | I74: =Profiling!I$243 -> 0 | J74: =Profiling!J$243 -> 0 | K74: =Profiling!K$243 -> 0 | L74: =Profiling!L$243 -> 0 | M74: =Profiling!M$243 -> 0 | N74: =Profiling!N$243 -> 0 | O74: =Profiling!O$243 -> 0 | P74: =Profiling!P$243 -> 0 | Q74: =Profiling!Q$243 -> 0 | R74: =Profiling!R$243 -> 0 | S74: =Profiling!S$243 -> 0 | T74: =Profiling!T$243 -> 0 | U74: =Profiling!U$243 -> 0 | V74: =Profiling!V$243 -> 0
A75: =Profiling!A$244 & "_PR19PD011" -> C079_PR19PD011 | E75: =Profiling!E$244 -> Wastewater network revenue adjustment active | F75: =Profiling!F$244 -> 0 | G75: =Profiling!G$244 -> £m | H75: =Profiling!H$244 -> -11.07968696 | I75: =Profiling!I$244 -> 0 | J75: =Profiling!J$244 -> 0 | K75: =Profiling!K$244 -> 0 | L75: =Profiling!L$244 -> 0 | M75: =Profiling!M$244 -> 0 | N75: =Profiling!N$244 -> 0 | O75: =Profiling!O$244 -> 0 | P75: =Profiling!P$244 -> 0 | Q75: =Profiling!Q$244 -> 0 | R75: =Profiling!R$244 -> -11.07968696 | S75: =Profiling!S$244 -> 0 | T75: =Profiling!T$244 -> 0 | U75: =Profiling!U$244 -> 0 | V75: =Profiling!V$244 -> 0
A76: =Profiling!A$245 & "_PR19PD011" -> C089_PR19PD011 | E76: =Profiling!E$245 -> Dummy control revenue adjustment active | F76: =Profiling!F$245 -> 0 | G76: =Profiling!G$245 -> £m | H76: =Profiling!H$245 -> 0 | I76: =Profiling!I$245 -> 0 | J76: =Profiling!J$245 -> 0 | K76: =Profiling!K$245 -> 0 | L76: =Profiling!L$245 -> 0 | M76: =Profiling!M$245 -> 0 | N76: =Profiling!N$245 -> 0 | O76: =Profiling!O$245 -> 0 | P76: =Profiling!P$245 -> 0 | Q76: =Profiling!Q$245 -> 0 | R76: =Profiling!R$245 -> 0 | S76: =Profiling!S$245 -> 0 | T76: =Profiling!T$245 -> 0 | U76: =Profiling!U$245 -> 0 | V76: =Profiling!V$245 -> 0
A77: =Profiling!A$246 & "_PR19PD011" -> C099_PR19PD011 | E77: =Profiling!E$246 -> Residential retail revenue adjustment active | F77: =Profiling!F$246 -> 0 | G77: =Profiling!G$246 -> £m | H77: =Profiling!H$246 -> 0.104906697 | I77: =Profiling!I$246 -> 0 | J77: =Profiling!J$246 -> 0 | K77: =Profiling!K$246 -> 0 | L77: =Profiling!L$246 -> 0 | M77: =Profiling!M$246 -> 0 | N77: =Profiling!N$246 -> 0 | O77: =Profiling!O$246 -> 0 | P77: =Profiling!P$246 -> 0 | Q77: =Profiling!Q$246 -> 0 | R77: =Profiling!R$246 -> 0.104906697 | S77: =Profiling!S$246 -> 0 | T77: =Profiling!T$246 -> 0 | U77: =Profiling!U$246 -> 0 | V77: =Profiling!V$246 -> 0
A78: =Profiling!A$247 & "_PR19PD011" -> C109_PR19PD011 | E78: =Profiling!E$247 -> Business retail revenue adjustment active | F78: =Profiling!F$247 -> 0 | G78: =Profiling!G$247 -> £m | H78: =Profiling!H$247 -> 0 | I78: =Profiling!I$247 -> 0 | J78: =Profiling!J$247 -> 0 | K78: =Profiling!K$247 -> 0 | L78: =Profiling!L$247 -> 0 | M78: =Profiling!M$247 -> 0 | N78: =Profiling!N$247 -> 0 | O78: =Profiling!O$247 -> 0 | P78: =Profiling!P$247 -> 0 | Q78: =Profiling!Q$247 -> 0 | R78: =Profiling!R$247 -> 0 | S78: =Profiling!S$247 -> 0 | T78: =Profiling!T$247 -> 0 | U78: =Profiling!U$247 -> 0 | V78: =Profiling!V$247 -> 0

Sheet F_Outputs
C1: PR19PD011_OUT
A2: Acronym | B2: Reference | C2: Item description | D2: Unit | E2: Model | F2: PR19 application | G2: 2020-21 | H2: 2021-22 | I2: 2022-23 | J2: 2023-24 | K2: 2024-25
B4: C001_PR19PD011 | C4: 1st model column start date | D4: nr | E4: Price Review 2019 | F4: =Inputs!$F$13 -> 41000
B5: C002_PR19PD011 | C5: First modelling column financial year# | D5: nr | E5: Price Review 2019 | F5: =Inputs!$F$16 -> 2013
B6: C003_PR19PD011 | C6: Financial year end month number | D6: nr | E6: Price Review 2019 | F6: =Inputs!$F$17 -> 3
B7: C004_PR19PD011 | C7: Pre - forecast period | D7: Text | E7: Price Review 2019 | F7: =Inputs!$F$20 -> Pre-Fcst
B8: C005_PR19PD011 | C8: Forecast period | D8: Text | E8: Price Review 2019 | F8: =Inputs!$F$21 -> Forecast
B9: C006_PR19PD011 | C9: Post - forecast period | D9: Text | E9: Price Review 2019 | F9: =Inputs!$F$22 -> Post-Fcst
B10: C007_PR19PD011 | C10: Forecast start date | D10: nr | E10: Price Review 2019 | F10: =Inputs!$F$26 -> 43922
B11: C008_PR19PD011 | C11: Forecast duration | D11: nr | E11: Price Review 2019 | F11: =Inputs!$F$27 -> 5
B12: C009_PR19PD011 | C12: Forecast duration (text) | D12: Text | E12: Price Review 2019 | F12: =Inputs!$F$28 -> 2020-25
B13: C010_PR19PD011 | C13: Inflation: Year reference for FYA base price 1 | D13: nr | E13: Price Review 2019 | F13: =Inputs!F69 -> 2013
B14: C011_PR19PD011 | C14: Inflation: Year reference for FYA base price 2 | D14: nr | E14: Price Review 2019 | F14: =Inputs!F70 -> 2018
B15: C012_PR19PD011 | C15: Inflation: Year reference for FYE base price 1 | D15: nr | E15: Price Review 2019 | F15: =Inputs!F71 -> 2020
B16: C013_PR19PD011 | C16: Inflation: Year reference for FYE base price 2 | D16: nr | E16: Price Review 2019 | F16: =Inputs!F72 -> 2019
B17: C014_PR19PD011 | C17: Inflation: Year reference for FYE end price | D17: nr | E17: Price Review 2019 | F17: =Inputs!F73 -> 2020
B18: C015_PR19PD011 | C18: Deflation: Year reference for FYE base price | D18: nr | E18: Price Review 2019 | F18: =Inputs!F77 -> 2020
B19: C016_PR19PD011 | C19: Deflation: Year reference for FYA end price | D19: nr | E19: Price Review 2019 | F19: =Inputs!F78 -> 2018
B20: C017_PR19PD011 | C20: Months per model period | D20: nr | E20: Price Review 2019 | F20: =Inputs!F159 -> 12
B21: C018_PR19PD011 | C21: Months in a year | D21: nr | E21: Price Review 2019 | F21: =Inputs!F161 -> 12
B22: C019_PR19PD011 | C22: Days in a year | D22: nr | E22: Price Review 2019 | F22: =Inputs!F163 -> 365
B23: C020_PR19PD011 | C23: PV base date | D23: Text | E23: Price Review 2019 | F23: =Inputs!F134 -> 44286
B24: C040_PR19PD011 | C24: Discount rate - Water resources | D24: % | E24: Price Review 2019 | F24: =Inputs!F136 -> 0
B25: C050_PR19PD011 | C25: Discount rate - Water network plus | D25: % | E25: Price Review 2019 | F25: =Inputs!F137 -> 0.036
B26: C060_PR19PD011 | C26: Discount rate - Bioresources | D26: % | E26: Price Review 2019 | F26: =Inputs!F138 -> 0
B27: C070_PR19PD011 | C27: Discount rate - Wastewater network plus | D27: % | E27: Price Review 2019 | F27: =Inputs!F139 -> 0
B28: C080_PR19PD011 | C28: Discount rate - Dummy control | D28: % | E28: Price Review 2019 | F28: =Inputs!F140 -> 0
B29: C090_PR19PD011 | C29: Discount rate - Residential retail | D29: % | E29: Price Review 2019 | F29: =Inputs!F141 -> 0
B30: C100_PR19PD011 | C30: Discount rate - Business retail | D30: % | E30: Price Review 2019 | F30: =Inputs!F142 -> 0
B31: C030_PR19PD011 | C31: Number of years to profile over | D31: nr | E31: Price Review 2019 | F31: =Inputs!F144 -> 5
B32: C041_PR19PD011 | C32: Water resources revenue adjustment selector | D32: nr | E32: Price Review 2019 | F32: =Inputs!F148 -> 0
B33: C051_PR19PD011 | C33: Water network plus revenue adjustment selector | D33: nr | E33: Price Review 2019 | F33: =Inputs!F149 -> 1
B34: C061_PR19PD011 | C34: Bioesources revenue adjustment selector | D34: nr | E34: Price Review 2019 | F34: =Inputs!F150 -> 0
B35: C071_PR19PD011 | C35: Wastewater network plus revenue adjustment selector | D35: nr | E35: Price Review 2019 | F35: =Inputs!F151 -> 0
B36: C081_PR19PD011 | C36: Dummy control revenue adjustment selector | D36: nr | E36: Price Review 2019 | F36: =Inputs!F152 -> 0
B37: C091_PR19PD011 | C37: Residential retail revenue adjustment selector | D37: nr | E37: Price Review 2019 | F37: =Inputs!F153 -> 0
B38: C101_PR19PD011 | C38: Business retail revenue adjustment selector | D38: nr | E38: Price Review 2019 | F38: =Inputs!F154 -> 0
B39: C_APP25004_PR19PD011 | C39: Further 2010-15 reconciliation total adjustment revenue carry forward to PR19 ~ Water network plus at 2017-18 FYA CPIH deflated price base | D39: £m | E39: Price Review 2019 | F39: =Summary_Output!$F10 -> -0.86887209
B40: C_APP25006_PR19PD011 | C40: Further 2010-15 reconciliation total adjustment revenue carry forward to PR19 ~ Wastewater network plus at 2017-18 FYA CPIH deflated price base | D40: £m | E40: Price Review 2019 | F40: =Summary_Output!$F11 -> -4.717578758
B41: C_APP27034_PR19PD011 | C41: ODI in-period revenue adjustment ~ Water resources at 2017-18 FYA CPIH deflated price base | D41: £m | E41: Price Review 2019 | F41: =Summary_Output!$F14 -> 0
B42: C_APP27035_PR19PD011 | C42: ODI in-period revenue adjustment ~ Water network plus at 2017-18 FYA CPIH deflated price base | D42: £m | E42: Price Review 2019 | F42: =Summary_Output!$F15 -> 0
B43: C_APP27037_PR19PD011 | C43: ODI in-period revenue adjustment ~ Bioresources at 2017-18 FYA CPIH deflated price base | D43: £m | E43: Price Review 2019 | F43: =Summary_Output!$F16 -> 0
B44: C_APP27036_PR19PD011 | C44: ODI in-period revenue adjustment ~ Wastewater network plus at 2017-18 FYA CPIH deflated price base | D44: £m | E44: Price Review 2019 | F44: =Summary_Output!$F17 -> 0
B45: C_APP27038_PR19PD011 | C45: ODI in-period revenue adjustment ~ Residential retail at 2017-18 FYA CPIH deflated price base | D45: £m | E45: Price Review 2019 | F45: =Summary_Output!$F18 -> 0
B46: C_APP27039_PR19PD011 | C46: ODI in-period revenue adjustment ~ Business retail at 2017-18 FYA CPIH deflated price base | D46: £m | E46: Price Review 2019 | F46: =Summary_Output!$F19 -> 0
B47: C_APP27041_PR19PD011 | C47: ODI end of period revenue adjustment ~ Water resources at 2017-18 FYA CPIH deflated price base | D47: £m | E47: Price Review 2019 | F47: =Summary_Output!$F21 -> 7.893415802
B48: C_APP27042_PR19PD011 | C48: ODI end of period revenue adjustment ~ Water network plus at 2017-18 FYA CPIH deflated price base | D48: £m | E48: Price Review 2019 | F48: =Summary_Output!$F22 -> -0.3295142306
B49: C_APP27044_PR19PD011 | C49: ODI end of period revenue adjustment ~ Bioresources at 2017-18 FYA CPIH deflated price base | D49: £m | E49: Price Review 2019 | F49: =Summary_Output!$F23 -> 0
B50: C_APP27043_PR19PD011 | C50: ODI end of period revenue adjustment ~ Wastewater network plus at 2017-18 FYA CPIH deflated price base | D50: £m | E50: Price Review 2019 | F50: =Summary_Output!$F24 -> -3.669433731
B51: C_APP27045_PR19PD011 | C51: ODI end of period revenue adjustment ~ Residential retail at 2017-18 FYA CPIH deflated price base | D51: £m | E51: Price Review 2019 | F51: =Summary_Output!$F25 -> 0
B52: C_APP27046_PR19PD011 | C52: ODI end of period revenue adjustment ~ Business retail at 2017-18 FYA CPIH deflated price base | D52: £m | E52: Price Review 2019 | F52: =Summary_Output!$F26 -> 0
B53: C_WS13027_PR19PD011 | C53: WRFIM total reward / (penalty) at the end of AMP6 ~ Water network plus at 2017-18 FYA CPIH deflated price base | D53: £m | E53: Price Review 2019 | F53: =Summary_Output!$F29 -> 0.0007815466517
B54: C_WS15026_PR19PD011 | C54: Water: Totex menu revenue adjustment at 2017-18 FYA CPIH deflated price base | D54: £m | E54: Price Review 2019 | F54: =Summary_Output!$F32 -> -3.207181914
B55: C_WS17027_PR19PD011 | C55: Water trading total value of export incentive ~ Water resources at 2017-18 FYA CPIH deflated price base | D55: £m | E55: Price Review 2019 | F55: =Summary_Output!$F35 -> 0
B56: C_WS17028_PR19PD011 | C56: Water trading total value of export incentive ~ Water network plus at 2017-18 FYA CPIH deflated price base | D56: £m | E56: Price Review 2019 | F56: =Summary_Output!$F36 -> 0
B57: C_WS17030_PR19PD011 | C57: Water trading total value of import incentive ~ Water resources at 2017-18 FYA CPIH deflated price base | D57: £m | E57: Price Review 2019 | F57: =Summary_Output!$F37 -> 0
B58: C_WS17031_PR19PD011 | C58: Water trading total value of import incentive ~ Water network plus at 2017-18 FYA CPIH deflated price base | D58: £m | E58: Price Review 2019 | F58: =Summary_Output!$F38 -> 0
B59: C_WWS13027_PR19PD011 | C59: WRFIM total reward / (penalty) at the end of AMP6 ~ Wastewater network plus at 2017-18 FYA CPIH deflated price base | D59: £m | E59: Price Review 2019 | F59: =Summary_Output!$F41 -> -0.0009233860572
B60: C_WWS15021_PR19PD011 | C60: Wastewater: Totex menu revenue adjustment at 2017-18 FYA CPIH deflated price base | D60: £m | E60: Price Review 2019 | F60: =Summary_Output!$F44 -> -2.691751083
B61: C_WWS15021_DMMY_PR19PD011 | C61: Dummy: revenue adjustment from totex menu model at 2017-18 FYA CPIH deflated price base | D61: £m | E61: Price Review 2019 | F61: =Summary_Output!$F47 -> 0
B62: C_WWS13027_DMMY_PR19PD011 | C62: WRFIM total reward / (penalty) at the end of AMP6 ~ Dummy at 2017-18 FYA CPIH deflated price base | D62: £m | E62: Price Review 2019 | F62: =Summary_Output!$F50 -> 0
B63: C_R9046_PR19PD011 | C63: Residential retail revenue adjustment at 2017-18 FYA CPIH deflated price base | D63: £m | E63: Price Review 2019 | F63: =Summary_Output!$F53 -> 0.104906697
B64: C_R10009_PR19PD011 | C64: SIM forecast revenue adjustment at 2017-18 FYA CPIH deflated price base | D64: £m | E64: Price Review 2019 | F64: =Summary_Output!$F56 -> 0
B65: C048_PR19PD011 | C65: Water resources revenue adjustment | D65: £m | E65: Price Review 2019 | F65: =Summary_Output!$F61 -> 7.893415802
B66: C058_PR19PD011 | C66: Water network plus revenue adjustment | D66: £m | E66: Price Review 2019 | F66: =Summary_Output!$F62 -> -4.404786688
B67: C068_PR19PD011 | C67: Bioresources revenue adjustment | D67: £m | E67: Price Review 2019 | F67: =Summary_Output!$F63 -> 0
B68: C078_PR19PD011 | C68: Wastewater network plus revenue adjustment | D68: £m | E68: Price Review 2019 | F68: =Summary_Output!$F64 -> -11.07968696
B69: C088_PR19PD011 | C69: Dummy control revenue adjustment | D69: £m | E69: Price Review 2019 | F69: =Summary_Output!$F65 -> 0
B70: C098_PR19PD011 | C70: Residential retail revenue adjustment | D70: £m | E70: Price Review 2019 | F70: =Summary_Output!$F66 -> 0.104906697
B71: C108_PR19PD011 | C71: Business retail revenue adjustment | D71: £m | E71: Price Review 2019 | F71: =Summary_Output!$F67 -> 0
B72: C049_PR19PD011 | C72: Water resources revenue adjustment active | D72: £m | E72: Price Review 2019 | G72: =Summary_Output!R72 -> 7.893415802 | H72: =Summary_Output!S72 -> 0 | I72: =Summary_Output!T72 -> 0 | J72: =Summary_Output!U72 -> 0 | K72: =Summary_Output!V72 -> 0
B73: C059_PR19PD011 | C73: Water network revenue adjustment active | D73: £m | E73: Price Review 2019 | G73: =Summary_Output!R73 -> -0.9443810186 | H73: =Summary_Output!S73 -> -0.9443810186 | I73: =Summary_Output!T73 -> -0.9443810186 | J73: =Summary_Output!U73 -> -0.9443810186 | K73: =Summary_Output!V73 -> -0.9443810186
B74: C069_PR19PD011 | C74: Bioresources revenue adjustment active | D74: £m | E74: Price Review 2019 | G74: =Summary_Output!R74 -> 0 | H74: =Summary_Output!S74 -> 0 | I74: =Summary_Output!T74 -> 0 | J74: =Summary_Output!U74 -> 0 | K74: =Summary_Output!V74 -> 0
B75: C079_PR19PD011 | C75: Wastewater network revenue adjustment active | D75: £m | E75: Price Review 2019 | G75: =Summary_Output!R75 -> -11.07968696 | H75: =Summary_Output!S75 -> 0 | I75: =Summary_Output!T75 -> 0 | J75: =Summary_Output!U75 -> 0 | K75: =Summary_Output!V75 -> 0
B76: C089_PR19PD011 | C76: Dummy control revenue adjustment active | D76: £m | E76: Price Review 2019 | G76: =Summary_Output!R76 -> 0 | H76: =Summary_Output!S76 -> 0 | I76: =Summary_Output!T76 -> 0 | J76: =Summary_Output!U76 -> 0 | K76: =Summary_Output!V76 -> 0
B77: C099_PR19PD011 | C77: Residential retail revenue adjustment active | D77: £m | E77: Price Review 2019 | G77: =Summary_Output!R77 -> 0.104906697 | H77: =Summary_Output!S77 -> 0 | I77: =Summary_Output!T77 -> 0 | J77: =Summary_Output!U77 -> 0 | K77: =Summary_Output!V77 -> 0
B78: C109_PR19PD011 | C78: Business retail revenue adjustment active | D78: £m | E78: Price Review 2019 | G78: =Summary_Output!R78 -> 0 | H78: =Summary_Output!S78 -> 0 | I78: =Summary_Output!T78 -> 0 | J78: =Summary_Output!U78 -> 0 | K78: =Summary_Output!V78 -> 0
B79: PR19QA_D0011_OUT_1 | C79: Date & Time for Model PR19D011 PR14 Revenue adjustments | D79: Text | E79: Price Review 2019 | F79: =NOW() -> 2019-02-04T16:16:24.350 | G79: 2019-02-04T16:16:24.350 | H79: 2019-02-04T16:16:24.350 | I79: 2019-02-04T16:16:24.350 | J79: 2019-02-04T16:16:24.350 | K79: 2019-02-04T16:16:24.350
B80: PR19QA_D0011_OUT_2 | C80: Name & Path of Model PR19D011 PR14 Revenenue adjustments | D80: Text | E80: Price Review 2019 | F80: =MID(CELL("filename"),SEARCH("[",CELL("filename"))+1,SEARCH("]",CELL("filename"))-SEARCH("[",CELL("filename"))-1) -> PR19PD011_SRN_IAP.xlsm | G80: PR19PD011_SRN_IAP.xlsm | H80: PR19PD011_SRN_IAP.xlsm | I80: PR19PD011_SRN_IAP.xlsm | J80: PR19PD011_SRN_IAP.xlsm | K80: PR19PD011_SRN_IAP.xlsm
